,Directorate,Supplier Name,Supplier Invoice No,Payment Date,Gross Invoice Value,Vat Amount,Vendor Id,Purpose of Expenditure,Description,Redact flag,Year,Period
1,Community and Housing,SOUTHPARK RESIDENTIAL HOME,975344,07-Jun-23,3220.32,0,19,Older People Placements - East,321017              Nursing & Residential Care Homes,A,2023,3
2,Community and Housing,SOUTHPARK RESIDENTIAL HOME,975412,07-Jun-23,3220.2,0,19,Older People Placements - East,321017              Nursing & Residential Care Homes,A,2023,3
3,Community and Housing,SOUTHPARK RESIDENTIAL HOME,975690,07-Jun-23,2965.2,0,19,Older People Placements - East,321017              Nursing & Residential Care Homes,A,2023,3
4,Community and Housing,THE WHITE HOUSE NURSING HOME,975669,07-Jun-23,3396,0,611,Older People Placements - East,321000              Social Community Care Supplies & Services - Adult,A,2023,3
5,"Children, Schools and Family",BLOSSOM HOUSE SCHOOL,9532,30-Jun-23,1680,0,777,Non-Delegated Statements,170000              Education,A,2023,3
6,"Children, Schools and Family",BLOSSOM HOUSE SCHOOL,9337,03-Jul-23,19650,0,777,Non-Delegated Statements,170000              Education,A,2023,3
7,Unassigned,PERSEID SCHOOL,SCHOOLS 2324/3 A,07-Jun-23,392754.48,0,983,Schools,170000              Education,A,2023,3
8,"Children, Schools and Family",PERSEID SCHOOL,PER03CFADV,08-Jun-23,300000,0,983,Delegated Special Schools,170000              Education,A,2023,3
9,Community and Housing,SUTTON NURSING HOMES LTD,975292,07-Jun-23,3056.44,0,1208,Older People Placements - East,321017              Nursing & Residential Care Homes,A,2023,3
10,Community and Housing,SUTTON NURSING HOMES LTD,975385,07-Jun-23,3087.16,0,1208,Older People Placements - East,321017              Nursing & Residential Care Homes,A,2023,3
11,Environment and Regeneration,LONDON BOROUGH OF CROYDON,3021314,05-Jun-23,337294.15,56215.69,1258,PARK OPERATIONS,OLA,A,2023,3
12,Environment and Regeneration,LONDON BOROUGH OF CROYDON,3022197,13-Jun-23,280201.78,45224.97,1258,PARK OPERATIONS,OLA,A,2023,3
13,Environment and Regeneration,LONDON BOROUGH OF CROYDON,3021685,20-Jun-23,8795.75,0,1258,Greenspaces Team (General),OLA,A,2023,3
14,Environment and Regeneration,LONDON BOROUGH OF CROYDON,3021689,22-Jun-23,64181.47,10696.91,1258,PARK OPERATIONS,OLA,A,2023,3
15,Environment and Regeneration,LONDON BOROUGH OF CROYDON,3021682,28-Jun-23,64181.47,10696.91,1258,PARK OPERATIONS,OLA,A,2023,3
16,Environment and Regeneration,LONDON BOROUGH OF CROYDON,3021686,28-Jun-23,257746.56,42957.76,1258,PARK OPERATIONS,OLA,A,2023,3
17,Environment and Regeneration,LONDON BOROUGH OF CROYDON,3021581,28-Jun-23,240284.94,40047.49,1258,PARK OPERATIONS,OLA,A,2023,3
18,Corporate Services,L.B OF RICHMOND UPON THAMES,RC376792128M02E,21-Jun-23,5750,0,1353,SLLP Client Income,OLA,A,2023,3
19,Unassigned,MELROSE SPECIAL SCHOOL,SCHOOLS 2324/3 A,07-Jun-23,348799.1,0,1393,Schools,170000              Education,A,2023,3
20,Unassigned,WILLIAM MORRIS PRIMARY SCHOOL,SCHOOLS 2324/3 A,07-Jun-23,143701.23,0,1416,Schools,170000              Education,A,2023,3
21,Unassigned,ST THOMAS OF CANTERBURY PRIMARY,SCHOOLS 2324/3 A,07-Jun-23,191590.76,0,1418,Schools,170000              Education,A,2023,3
22,"Children, Schools and Family",ST THOMAS OF CANTERBURY PRIMARY,STOC03CFADV,22-Jun-23,100000,0,1418,Delegated Primary Schools,170000              Education,A,2023,3
23,Unassigned,PRIORY C OF E MIDDLE SCHOOL,SCHOOLS 2324/3 A,07-Jun-23,102651.12,0,1420,Schools,170000              Education,A,2023,3
24,Unassigned,LIBERTY PRIMARY SCHOOL,SCHOOLS 2324/3 A,07-Jun-23,198290.82,0,1424,Schools,170000              Education,A,2023,3
25,Unassigned,HILLCROSS PRIMARY SCHOOL,SCHOOLS 2324/3 A,07-Jun-23,191024.74,0,1425,Schools,170000              Education,A,2023,3
26,Unassigned,CRANMER PRIMARY SCHOOL,SCHOOLS 2324/3 A,07-Jun-23,303555.28,0,1426,Schools,170000              Education,A,2023,3
27,Unassigned,WIMBLEDON COLLEGE SCHOOL,SCHOOLS 2324/3 A,07-Jun-23,719605.61,0,1428,Schools,170000              Education,A,2023,3
28,Unassigned,URSULINE HIGH SCHOOL,SCHOOLS 2324/3 A,07-Jun-23,747461.04,0,1429,Schools,170000              Education,A,2023,3
29,Unassigned,RUTLISH SCHOOL,SCHOOLS 2324/3 A,07-Jun-23,793573.88,0,1431,Schools,170000              Education,A,2023,3
30,Unassigned,RICARDS LODGE SECONDARY SCHOOL,SCHOOLS 2324/3 A,07-Jun-23,652395.71,0,1433,Schools,170000              Education,A,2023,3
31,Unassigned,WIMBLEDON PARK PRIMARY SCHOOL,SCHOOLS 2324/3 A,07-Jun-23,250254.99,0,1436,Schools,170000              Education,A,2023,3
32,Unassigned,ST TERESA'S R C PRIMARY SCHOOL,SCHOOLS 2324/3 A,07-Jun-23,200212.38,0,1438,Schools,170000              Education,A,2023,3
33,Unassigned,ST MARYS CATHOLIC PRIMARY SCHOOL,SCHOOLS 2324/3 A,07-Jun-23,168685.48,0,1439,Schools,170000              Education,A,2023,3
34,Unassigned,ST MARKS PRIMARY SCHOOL,SCHOOLS 2324/3 A,07-Jun-23,117393.83,0,1440,Schools,170000              Education,A,2023,3
35,Unassigned,ST JOHN FISHER RC PRIMARY SCH.,SCHOOLS 2324/3 A,07-Jun-23,177926.59,0,1441,Schools,170000              Education,A,2023,3
36,Unassigned,SINGLEGATE PRIMARY SCHOOL,SCHOOLS 2324/3 A,07-Jun-23,254837.86,0,1442,Schools,170000              Education,A,2023,3
37,"Children, Schools and Family",SHERWOOD PRIMARY SCHOOL,TSS001/2324,05-Jun-23,1320,0,1443,Attain,170000              Education,A,2023,3
38,Unassigned,SHERWOOD PRIMARY SCHOOL,SCHOOLS 2324/3 A,07-Jun-23,173547.06,0,1443,Schools,170000              Education,A,2023,3
39,Unassigned,POPLAR PRIMARY SCHOOL,SCHOOLS 2324/3 A,07-Jun-23,270089.94,0,1444,Schools,170000              Education,A,2023,3
40,Unassigned,PELHAM PRIMARY SCHOOL,SCHOOLS 2324/3 A,07-Jun-23,185958.73,0,1445,Schools,170000              Education,A,2023,3
41,Unassigned,MORDEN PRIMARY SCHOOL,SCHOOLS 2324/3 A,07-Jun-23,114677.22,0,1446,Schools,170000              Education,A,2023,3
42,Unassigned,MERTON PARK PRIMARY SCHOOL,SCHOOLS 2324/3 A,07-Jun-23,93772.02,0,1447,Schools,170000              Education,A,2023,3
43,Unassigned,MERTON ABBEY PRIMARY SCHOOL,SCHOOLS 2324/3 A,07-Jun-23,163699.8,0,1448,Schools,170000              Education,A,2023,3
44,Unassigned,LONESOME PRIMARY SCHOOL,SCHOOLS 2324/3 A,07-Jun-23,183353.8,0,1450,Schools,170000              Education,A,2023,3
45,Unassigned,LINKS PRIMARY SCHOOL,SCHOOLS 2324/3 A,07-Jun-23,173088.5,0,1451,Schools,170000              Education,A,2023,3
46,Unassigned,JOSEPH HOOD PRIMARY SCHOOL,SCHOOLS 2324/3 A,07-Jun-23,163640.35,0,1452,Schools,170000              Education,A,2023,3
47,"Children, Schools and Family",HOLY TRINITY C OF E PRIMARY SCHOOL,454,05-Jun-23,1320,0,1453,Attain,170000              Education,A,2023,3
48,Unassigned,HOLY TRINITY C OF E PRIMARY SCHOOL,SCHOOLS 2324/3 A,07-Jun-23,181483.69,0,1453,Schools,170000              Education,A,2023,3
49,Unassigned,HOLLYMOUNT PRIMARY SCHOOL,SCHOOLS 2324/3 A,07-Jun-23,175737.94,0,1454,Schools,170000              Education,A,2023,3
50,Unassigned,HATFEILD PRIMARY SCHOOL,SCHOOLS 2324/3 A,07-Jun-23,209779.26,0,1455,Schools,170000              Education,A,2023,3
51,Unassigned,HASLEMERE PRIMARY SCHOOL,SCHOOLS 2324/3 A,07-Jun-23,209976.62,0,1456,Schools,170000              Education,A,2023,3
52,Unassigned,GARFIELD PRIMARY SCHOOL,SCHOOLS 2324/3 A,07-Jun-23,161493.33,0,1460,Schools,170000              Education,A,2023,3
53,Unassigned,BOND PRIMARY SCHOOL,SCHOOLS 2324/3 A,07-Jun-23,192937.72,0,1462,Schools,170000              Education,A,2023,3
54,Unassigned,BISHOP GILPIN C OF E PRIMARY,SCHOOLS 2324/3 A,07-Jun-23,174448.8,0,1463,Schools,170000              Education,A,2023,3
55,Unassigned,ABBOTSBURY PRIMARY SCHOOL,SCHOOLS 2324/3 A,07-Jun-23,184655.38,0,1467,Schools,170000              Education,A,2023,3
56,Unassigned,WIMBLEDON CHASE PRIMARY SCHOOL,SCHOOLS 2324/3 A,07-Jun-23,288683.13,0,1469,Schools,170000              Education,A,2023,3
57,Unassigned,GORRINGE PARK PRIMARY SCHOOL,SCHOOLS 2324/3 A,07-Jun-23,188933.63,0,1470,Schools,170000              Education,A,2023,3
58,Unassigned,RAYNES PARK SECONDARY SCHOOL,SCHOOLS 2324/3 A,07-Jun-23,755501.83,0,1471,Schools,170000              Education,A,2023,3
59,Unassigned,SS PETER AND PAUL RC PRIMARY SCH,SCHOOLS 2324/3 A,07-Jun-23,129041.59,0,1472,Schools,170000              Education,A,2023,3
60,Unassigned,DUNDONALD PRIMARY SCHOOL,SCHOOLS 2324/3 A,07-Jun-23,167188.31,0,1473,Schools,170000              Education,A,2023,3
61,Community and Housing,MERTON MENCAP,4405,15-Jun-23,560,0,1519,Learning Disabilities Placemnt,200000              Financial Services,A,2023,3
62,Community and Housing,MERTON MENCAP,4370,15-Jun-23,1040,0,1519,Learning Disabilities Placemnt,200000              Financial Services,A,2023,3
63,Unassigned,ALL SAINTS C OF E PRIMARY SCH,SCHOOLS 2324/3 A,07-Jun-23,169698.42,0,1680,Schools,170000              Education,A,2023,3
64,"Children, Schools and Family",REDACTED PERSONAL DATA,973572,02-Jun-23,637.31,0,1801,Placements Under 18,321100              Social Community Care Supplies & Services - Children,R,2023,3
65,"Children, Schools and Family",REDACTED PERSONAL DATA,977015,09-Jun-23,548.09,0,1801,Placements Under 18,321100              Social Community Care Supplies & Services - Children,R,2023,3
66,"Children, Schools and Family",REDACTED PERSONAL DATA,979564,16-Jun-23,548.09,0,1801,Placements Under 18,321100              Social Community Care Supplies & Services - Children,R,2023,3
67,"Children, Schools and Family",REDACTED PERSONAL DATA,982577,23-Jun-23,548.09,0,1801,Placements Under 18,321100              Social Community Care Supplies & Services - Children,R,2023,3
68,"Children, Schools and Family",REDACTED PERSONAL DATA,984104,30-Jun-23,548.09,0,1801,Placements Under 18,321100              Social Community Care Supplies & Services - Children,R,2023,3
69,Community and Housing,CIVICA UK LIMITED,C/BN271889,08-Jun-23,6350.4,1058.4,1873,Financial Assessment Team (FA),270000              Information Communication Technology,A,2023,3
70,Corporate Services,CIVICA UK LIMITED,M/LN116195,29-Jun-23,1213.49,202.25,1873,Local Taxation Services,270000              Information Communication Technology,A,2023,3
71,Community and Housing,CIVICA UK LIMITED,C/BN273804,14-Jun-23,4393.2,732.2,1873,Financial Assessment Team (FA),270000              Information Communication Technology,A,2023,3
72,"Children, Schools and Family",THE CHILDRENS TRUST,6339,19-Jun-23,5736.6,0,1980,Non-Delegated Statements,170000              Education,A,2023,3
73,Community and Housing,THE FRANCES TAYLOR FOUNDATION,975368,07-Jun-23,3812.04,0,2011,Learning Disabilities Placemnt,321017              Nursing & Residential Care Homes,A,2023,3
74,Unassigned,SACRED HEART R C PRIMARY SCH.,SCHOOLS 2324/3 A,07-Jun-23,155792.36,0,2076,Schools,170000              Education,A,2023,3
75,Community and Housing,GENEVA ROAD LIMITED,310523JW,16-Jun-23,721.01,120.17,2198,Older People Placements - East,321000              Social Community Care Supplies & Services - Adult,A,2023,3
76,Corporate Services,LONDON BOROUGH OF SUTTON,"""SLLPINCOMEM0223",09-Jun-23,9390,0,2313,SLLP Client Income,OLA,A,2023,3
77,Community and Housing,FREEWAYS TRUST LTD,975272,07-Jun-23,3186.04,0,2474,Learning Disabilities Placemnt,321017              Nursing & Residential Care Homes,A,2023,3
78,Environment and Regeneration,DEEN CITY FARM,2272,05-Jun-23,76410,0,2529,Deen City Farm,290000              Arts & Leisure Services,A,2023,3
79,Community and Housing,CLOYDA LTD,975551,07-Jun-23,3294.48,0,10762,Older People Placements - East,321017              Nursing & Residential Care Homes,A,2023,3
80,Community and Housing,CHEGWORTH N.H. (BAYSWIFT LTD),975511,07-Jun-23,3056.4,0,11057,Learning Disabilities Placemnt,321000              Social Community Care Supplies & Services - Adult,A,2023,3
81,"Children, Schools and Family",REDACTED PERSONAL DATA,973523,02-Jun-23,692.46,0,11130,Placements Under 18,321100              Social Community Care Supplies & Services - Children,R,2023,3
82,"Children, Schools and Family",REDACTED PERSONAL DATA,976970,09-Jun-23,692.46,0,11130,Placements Under 18,321100              Social Community Care Supplies & Services - Children,R,2023,3
83,"Children, Schools and Family",REDACTED PERSONAL DATA,979517,16-Jun-23,692.46,0,11130,Placements Under 18,321100              Social Community Care Supplies & Services - Children,R,2023,3
84,"Children, Schools and Family",REDACTED PERSONAL DATA,982531,23-Jun-23,692.46,0,11130,Placements Under 18,321100              Social Community Care Supplies & Services - Children,R,2023,3
85,"Children, Schools and Family",REDACTED PERSONAL DATA,984061,30-Jun-23,692.46,0,11130,Placements Under 18,321100              Social Community Care Supplies & Services - Children,R,2023,3
86,Community and Housing,Queens Court,975305,07-Jun-23,3220.32,0,12747,Older People Placements - East,321017              Nursing & Residential Care Homes,A,2023,3
87,Community and Housing,ASHCROFT CARE SERVICES,975510,07-Jun-23,6116.88,0,13287,Learning Disabilities Placemnt,321017              Nursing & Residential Care Homes,A,2023,3
88,Community and Housing,SHARE COMMUNITY LTD,240271,05-Jun-23,840,0,13487,Learning Disabilities Placemnt,321017              Nursing & Residential Care Homes,A,2023,3
89,Community and Housing,SHARE COMMUNITY LTD,240260,12-Jun-23,840,0,13487,Learning Disabilities Placemnt,321017              Nursing & Residential Care Homes,A,2023,3
90,Community and Housing,FITZROY SUPPORT,975618,07-Jun-23,8304.28,0,13535,Learning Disabilities Placemnt,321017              Nursing & Residential Care Homes,A,2023,3
91,Community and Housing,CANTERBURY OAST TRUST LTD,975285,07-Jun-23,2496.88,0,13566,Learning Disabilities Placemnt,321017              Nursing & Residential Care Homes,A,2023,3
92,Community and Housing,MACINTYRE,975297,07-Jun-23,5731.64,0,13585,Learning Disabilities Placemnt,321017              Nursing & Residential Care Homes,A,2023,3
93,Community and Housing,MACINTYRE,975482,07-Jun-23,5641.36,0,13585,Learning Disabilities Placemnt,321017              Nursing & Residential Care Homes,A,2023,3
94,Community and Housing,MACINTYRE,975583,07-Jun-23,5641.36,0,13585,Older People Placements - East,321017              Nursing & Residential Care Homes,A,2023,3
95,Community and Housing,MACINTYRE,975617,07-Jun-23,4825.24,0,13585,Learning Disabilities Placemnt,321017              Nursing & Residential Care Homes,A,2023,3
96,Community and Housing,KENT AUTISTIC TRUST,975593,07-Jun-23,7494.72,0,13670,Learning Disabilities Placemnt,321017              Nursing & Residential Care Homes,A,2023,3
97,Corporate Services,WIMBLEDON TREE SURGEONS,INV-0659,27-Jun-23,708,118,14038,Buildings Maintenance,240000              Horticultural,A,2023,3
98,Environment and Regeneration,ROBERT MORGAN AND SONS LTD,STOUTHALLJUNE23,06-Jun-23,4125,0,14355,Other Misc Props,200000              Financial Services,A,2023,3
99,Community and Housing,UNITED RESPONSE,973300,06-Jun-23,9833.4,1638.79,14616,Learning Disabilities Placemnt,321000              Social Community Care Supplies & Services - Adult,A,2023,3
100,Community and Housing,UNITED RESPONSE,973314,06-Jun-23,12281.87,2046.87,14616,Learning Disabilities Placemnt,321000              Social Community Care Supplies & Services - Adult,A,2023,3
101,Community and Housing,UNITED RESPONSE,VSMR833053RH,08-Jun-23,4134.62,689.1,14616,Learning Disabilities Placemnt,321000              Social Community Care Supplies & Services - Adult,A,2023,3
102,Community and Housing,UNITED RESPONSE,VSMR833053DH,08-Jun-23,3842.88,640.48,14616,Learning Disabilities Placemnt,321000              Social Community Care Supplies & Services - Adult,A,2023,3
103,Community and Housing,UNITED RESPONSE,VSMR833053HM,08-Jun-23,4572.24,762.04,14616,Learning Disabilities Placemnt,321000              Social Community Care Supplies & Services - Adult,A,2023,3
104,Community and Housing,UNITED RESPONSE,VSMR833053BS,08-Jun-23,4086.05,681.01,14616,Learning Disabilities Placemnt,321000              Social Community Care Supplies & Services - Adult,A,2023,3
105,Community and Housing,UNITED RESPONSE,VSMR833053CW,08-Jun-23,4766.4,794.4,14616,Learning Disabilities Placemnt,321000              Social Community Care Supplies & Services - Adult,A,2023,3
106,Community and Housing,UNITED RESPONSE,VSMR834242BA,14-Jun-23,4837.78,806.3,14616,Learning Disabilities Placemnt,321000              Social Community Care Supplies & Services - Adult,A,2023,3
107,Community and Housing,UNITED RESPONSE,VSMR834242BO,14-Jun-23,4837.78,806.3,14616,Learning Disabilities Placemnt,321000              Social Community Care Supplies & Services - Adult,A,2023,3
108,Community and Housing,UNITED RESPONSE,VSMR834242ST,14-Jun-23,4837.78,806.3,14616,Learning Disabilities Placemnt,321000              Social Community Care Supplies & Services - Adult,A,2023,3
109,Community and Housing,UNITED RESPONSE,VSMR834242RW,14-Jun-23,4837.78,806.3,14616,Learning Disabilities Placemnt,321000              Social Community Care Supplies & Services - Adult,A,2023,3
110,Community and Housing,UNITED RESPONSE,VSMR834242,14-Jun-23,4837.78,806.3,14616,Learning Disabilities Placemnt,321000              Social Community Care Supplies & Services - Adult,A,2023,3
111,Corporate Services,British Telecommunications PLC Company,VP85391270Q086X0,15-Jun-23,13357.57,2226.26,18718,IT-Telecomms,270000              Information Communication Technology,A,2023,3
112,Environment and Regeneration,KINGSTON CORPORATION,37526679,05-Jun-23,14647.59,0,21573,Recycling Activities,180000              Environmental Services,A,2023,3
113,Corporate Services,KINGSTON CORPORATION,M02LEGAL23/24',12-Jun-23,15390,0,21573,SLLP Client Income,180000              Environmental Services,A,2023,3
114,Corporate Services,KINGSTON CORPORATION,37537204,14-Jun-23,9118,603.5,21573,HR TRANSACTIONS,180000              Environmental Services,A,2023,3
115,Environment and Regeneration,KINGSTON CORPORATION,37542747,03-Jul-23,12257.77,0,21573,Recycling Activities,180000              Environmental Services,A,2023,3
116,Environment and Regeneration,KINGSTON CORPORATION,37542739,03-Jul-23,26377.87,0,21573,Garden Waste Service,180000              Environmental Services,A,2023,3
117,Corporate Services,I J BEIM AND ASSOCIATES LTD,13458,01-Jun-23,597.36,99.56,24949,SLLP - Disbursements,280000              Legal Services,A,2023,3
118,Environment and Regeneration,ProSolve,428994,06-Jun-23,1098.43,183.07,27548,CPZ Implementation & Consult,230000              Highway Equipment & Materials,A,2023,3
119,"Children, Schools and Family",REDACTED PERSONAL DATA,975738,09-Jun-23,2431.07,0,27766,Fostering Support Team Placmnt,321100              Social Community Care Supplies & Services - Children,R,2023,3
120,Environment and Regeneration,MITCHAM COMMON CONSERVATORS,ANN-CONT 2023/24,29-Jun-23,24104,0,28571,Parks & Recreation Grounds,190000              Facilities & Management Services,A,2023,3
121,Community and Housing,TRINITY COURT NURSING HOME,975338,07-Jun-23,2861.6,0,30306,Older People Placements - East,321017              Nursing & Residential Care Homes,A,2023,3
122,Community and Housing,TRINITY COURT NURSING HOME,975483,07-Jun-23,2985.6,0,30306,Older People Placements - East,321017              Nursing & Residential Care Homes,A,2023,3
123,Community and Housing,TRINITY COURT NURSING HOME,975516,07-Jun-23,3063.24,0,30306,Older People Placements - East,321017              Nursing & Residential Care Homes,A,2023,3
124,Community and Housing,TRINITY COURT NURSING HOME,975529,07-Jun-23,3355.92,0,30306,Phys/Sens Placements - East,321017              Nursing & Residential Care Homes,A,2023,3
125,Community and Housing,TRINITY COURT NURSING HOME,975592,07-Jun-23,2985.6,0,30306,Older People Placements - East,321017              Nursing & Residential Care Homes,A,2023,3
126,Community and Housing,TRINITY COURT NURSING HOME,975599,07-Jun-23,2861.6,0,30306,Older People Placements - East,321017              Nursing & Residential Care Homes,A,2023,3
127,Community and Housing,TRINITY COURT NURSING HOME,975608,07-Jun-23,3063.24,0,30306,Older People Placements - East,321017              Nursing & Residential Care Homes,A,2023,3
128,Community and Housing,TRINITY COURT NURSING HOME,975663,07-Jun-23,2985.6,0,30306,Older People Placements - East,321017              Nursing & Residential Care Homes,A,2023,3
129,Community and Housing,TRINITY COURT NURSING HOME,975695,07-Jun-23,2876.32,0,30306,Older People Placements - East,321017              Nursing & Residential Care Homes,A,2023,3
130,Community and Housing,TRINITY COURT NURSING HOME,975697,07-Jun-23,3149.6,0,30306,Older People Placements - East,321017              Nursing & Residential Care Homes,A,2023,3
131,Community and Housing,TRINITY COURT NURSING HOME,975699,07-Jun-23,2521.12,0,30306,Older People Placements - East,321017              Nursing & Residential Care Homes,A,2023,3
132,Community and Housing,HAYDON PARK LODGE,975428,07-Jun-23,3485,0,31434,Learning Disabilities Placemnt,321017              Nursing & Residential Care Homes,A,2023,3
133,Community and Housing,HAYDON PARK LODGE,975457,07-Jun-23,4591.44,0,31434,Learning Disabilities Placemnt,321017              Nursing & Residential Care Homes,A,2023,3
134,Community and Housing,HAYDON PARK LODGE,975538,07-Jun-23,5070.76,0,31434,Learning Disabilities Placemnt,321017              Nursing & Residential Care Homes,A,2023,3
135,Community and Housing,HAYDON PARK LODGE,975578,07-Jun-23,4420.08,0,31434,Learning Disabilities Placemnt,321017              Nursing & Residential Care Homes,A,2023,3
136,Community and Housing,HAYDON PARK LODGE,975621,07-Jun-23,7000,0,31434,Learning Disabilities Placemnt,321017              Nursing & Residential Care Homes,A,2023,3
137,Community and Housing,Barchester Healthcare Wimbledon Beaumont,975273,07-Jun-23,3220.32,0,33384,Older People Placements - East,321017              Nursing & Residential Care Homes,A,2023,3
138,Community and Housing,Barchester Healthcare Wimbledon Beaumont,975373,07-Jun-23,4056,0,33384,Older People Placements - East,321017              Nursing & Residential Care Homes,A,2023,3
139,Community and Housing,Barchester Healthcare Wimbledon Beaumont,975393,07-Jun-23,3000,0,33384,Older People Placements - East,321017              Nursing & Residential Care Homes,A,2023,3
140,Community and Housing,Barchester Healthcare Wimbledon Beaumont,147029098,12-Jun-23,2773.28,0,33384,Phys/Sens Placements - East,321017              Nursing & Residential Care Homes,A,2023,3
141,Community and Housing,COMFORT CARE SERVICES (UK) LTD,SU0091/274,23-Jun-23,871.36,0,34932,Mental Health Placements,321000              Social Community Care Supplies & Services - Adult,A,2023,3
142,Community and Housing,COMFORT CARE SERVICES (UK) LTD,SU0146/1471,26-Jun-23,2380,0,34932,Mental Health Placements,321000              Social Community Care Supplies & Services - Adult,A,2023,3
143,Community and Housing,COMFORT CARE SERVICES (UK) LTD,SU0210/1134,26-Jun-23,2380,0,34932,Mental Health Placements,321000              Social Community Care Supplies & Services - Adult,A,2023,3
144,Community and Housing,COMFORT CARE SERVICES (UK) LTD,SU1051/1339-40,19-Jun-23,3295,0,34932,Mental Health Placements,321000              Social Community Care Supplies & Services - Adult,A,2023,3
145,Community and Housing,COMFORT CARE SERVICES (UK) LTD,SU0298/1028,26-Jun-23,2380,0,34932,Mental Health Placements,321000              Social Community Care Supplies & Services - Adult,A,2023,3
146,Community and Housing,COMFORT CARE SERVICES (UK) LTD,SU0133/1133,26-Jun-23,2380,0,34932,Mental Health Placements,321000              Social Community Care Supplies & Services - Adult,A,2023,3
147,Community and Housing,COMFORT CARE SERVICES (UK) LTD,SU0266/1546,19-Jun-23,2380,0,34932,Mental Health Placements,321000              Social Community Care Supplies & Services - Adult,A,2023,3
148,Community and Housing,COMFORT CARE SERVICES (UK) LTD,SU0208/1606,26-Jun-23,2380,0,34932,Mental Health Placements,321000              Social Community Care Supplies & Services - Adult,A,2023,3
149,Community and Housing,COMFORT CARE SERVICES (UK) LTD,SU0184/1027,26-Jun-23,2380,0,34932,Mental Health Placements,321000              Social Community Care Supplies & Services - Adult,A,2023,3
150,Community and Housing,COMFORT CARE SERVICES (UK) LTD,SU0201/1472,26-Jun-23,2380,0,34932,Mental Health Placements,321000              Social Community Care Supplies & Services - Adult,A,2023,3
151,Community and Housing,COMFORT CARE SERVICES (UK) LTD,SU0294/1594,26-Jun-23,2380,0,34932,Mental Health Placements,321000              Social Community Care Supplies & Services - Adult,A,2023,3
152,Community and Housing,COMFORT CARE SERVICES (UK) LTD,SU0291/1135,26-Jun-23,2380,0,34932,Mental Health Placements,321000              Social Community Care Supplies & Services - Adult,A,2023,3
153,Community and Housing,COMFORT CARE SERVICES (UK) LTD,SU1102/1605,19-Jun-23,2380,0,34932,Mental Health Placements,321000              Social Community Care Supplies & Services - Adult,A,2023,3
154,Community and Housing,COMFORT CARE SERVICES (UK) LTD,SU1041/863,23-Jun-23,1579.5,0,34932,Mental Health Placements,321000              Social Community Care Supplies & Services - Adult,A,2023,3
155,"Children, Schools and Family",CASTLE KINDERGARTEN,PCSUM23,15-Jun-23,1499,0,35082,Non-Delegated Statements,170000              Education,A,2023,3
156,"Children, Schools and Family",CASTLE KINDERGARTEN,P1 23 SENDIF,26-Jun-23,787.5,0,35082,EARLY YEARS NURSERY GRANTS,170000              Education,A,2023,3
157,"Children, Schools and Family",CASTLE KINDERGARTEN,P1 23 HEADCOUNT,27-Jun-23,11724.44,0,35082,EARLY YEARS NURSERY GRANTS,170000              Education,A,2023,3
158,"Children, Schools and Family",CROWN KINDERGARTEN,P1 23 HEADCOUNT,27-Jun-23,2676.24,0,35084,EARLY YEARS NURSERY GRANTS,170000              Education,A,2023,3
159,"Children, Schools and Family",JIGSAW DAY NURSERY,AGSUM23,15-Jun-23,1458,0,35097,Non-Delegated Statements,170000              Education,A,2023,3
160,"Children, Schools and Family",JIGSAW DAY NURSERY,P1 23 SENDIF,26-Jun-23,963,0,35097,EARLY YEARS NURSERY GRANTS,170000              Education,A,2023,3
161,"Children, Schools and Family",JIGSAW DAY NURSERY,P1 23 HEADCOUNT,27-Jun-23,9989.64,0,35097,EARLY YEARS NURSERY GRANTS,170000              Education,A,2023,3
162,"Children, Schools and Family",NURSERY ON THE GREEN,P1 23 HEADCOUNT,27-Jun-23,5843.88,0,35101,EARLY YEARS NURSERY GRANTS,170000              Education,A,2023,3
163,"Children, Schools and Family",URSULINE PREPARATORY SCHOOL,P1 23 HEADCOUNT,27-Jun-23,8283.6,0,35109,EARLY YEARS NURSERY GRANTS,170000              Education,A,2023,3
164,"Children, Schools and Family",WILLINGTON SCH.FOUNDATION LTD,P1 23 HEADCOUNT,27-Jun-23,2867.4,0,35111,EARLY YEARS NURSERY GRANTS,170000              Education,A,2023,3
165,"Children, Schools and Family",BUSY BEES DAY NURSERY - MORDEN,P1 23 HEADCOUNT,27-Jun-23,10267.92,0,35564,EARLY YEARS NURSERY GRANTS,170000              Education,A,2023,3
166,Unassigned,ST MATTHEW'S C OF E PRIMARY,SCHOOLS 2324/3 A,07-Jun-23,119948.39,0,36050,Schools,170000              Education,A,2023,3
167,Community and Housing,AGE UK MERTON,MERTON COM HUB,15-Jun-23,99810.5,0,37401,Physical/Sensory Contracts,190000              Facilities & Management Services,A,2023,3
168,"Children, Schools and Family",LITTLE LEARNERS,P1 23 HEADCOUNT,27-Jun-23,6166.22,0,39413,EARLY YEARS NURSERY GRANTS,170000              Education,A,2023,3
169,Community and Housing,JESMUND CARE LTD,975327,07-Jun-23,4400,0,46751,Older People Placements - East,321017              Nursing & Residential Care Homes,A,2023,3
170,Community and Housing,JESMUND CARE LTD,975651,07-Jun-23,3600,0,46751,Older People Placements - East,321017              Nursing & Residential Care Homes,A,2023,3
171,Corporate Services,MERTON CITIZEN ADVICE BUREAU,CIVIC PRIDE FUND,08-Jun-23,215533.87,0,48029,VOLUNTARY SECTOR COORDINATION,200000              Financial Services,A,2023,3
172,Community and Housing,REDACTED PERSONAL DATA,980006,21-Jun-23,4900.28,0,50448,Older People Placements - East,DIRECT PAYMENTS,R,2023,3
173,Community and Housing,LINKAGE COMMUNITY TR.LONG-STAY,975570,07-Jun-23,3340.08,0,52552,Learning Disabilities Placemnt,321017              Nursing & Residential Care Homes,A,2023,3
174,Community and Housing,RUTLAND HOUSE CARE HOME,975440,07-Jun-23,3220.32,0,53424,Older People Placements - East,321017              Nursing & Residential Care Homes,A,2023,3
175,Community and Housing,RUTLAND HOUSE CARE HOME,975448,07-Jun-23,3156,0,53424,Older People Placements - East,321017              Nursing & Residential Care Homes,A,2023,3
176,Community and Housing,RUTLAND HOUSE CARE HOME,975562,07-Jun-23,3200,0,53424,Older People Placements - East,321017              Nursing & Residential Care Homes,A,2023,3
177,"Children, Schools and Family",HASLEMERE HOUSE DAY NURSERY,P1 23 SENDIF,26-Jun-23,1890,0,55612,EARLY YEARS NURSERY GRANTS,170000              Education,A,2023,3
178,"Children, Schools and Family",HASLEMERE HOUSE DAY NURSERY,P1 23 HEADCOUNT,27-Jun-23,6872.04,0,55612,EARLY YEARS NURSERY GRANTS,170000              Education,A,2023,3
179,Community and Housing,PARK LODGE,975417,07-Jun-23,2895.68,0,56878,Learning Disabilities Placemnt,321017              Nursing & Residential Care Homes,A,2023,3
180,Community and Housing,PARK LODGE,975514,07-Jun-23,3026.8,0,56878,Learning Disabilities Placemnt,321017              Nursing & Residential Care Homes,A,2023,3
181,Unassigned,CRICKET GREEN SCHOOL,SCHOOLS 2324/3 A,07-Jun-23,368795.44,0,57057,Schools,170000              Education,A,2023,3
182,"Children, Schools and Family",PEARSON EDUCATION LTD.,3844860,06-Jun-23,540.9,90.15,57285,Language & Learning Service,170000              Education,A,2023,3
183,Corporate Services,JADE SECURITY SERVICE LTD,5646,22-Jun-23,3160.93,526.82,57563,Cash Collections,200000              Financial Services,A,2023,3
184,Community and Housing,CARE UK,975268,07-Jun-23,3229.52,0,58851,Older People Placements - East,321017              Nursing & Residential Care Homes,A,2023,3
185,Community and Housing,CARE UK,975271,07-Jun-23,4321.16,0,58851,Older People Placements - East,321017              Nursing & Residential Care Homes,A,2023,3
186,Community and Housing,CARE UK,975290,07-Jun-23,3800,0,58851,Older People Placements - East,321017              Nursing & Residential Care Homes,A,2023,3
187,Community and Housing,CARE UK,975342,07-Jun-23,3723.24,0,58851,Older People Placements - East,321017              Nursing & Residential Care Homes,A,2023,3
188,Community and Housing,CARE UK,975360,07-Jun-23,3963.24,0,58851,Older People Placements - East,321017              Nursing & Residential Care Homes,A,2023,3
189,Community and Housing,CARE UK,975455,07-Jun-23,3264.32,0,58851,Older People Placements - East,321017              Nursing & Residential Care Homes,A,2023,3
190,Community and Housing,CARE UK,975508,07-Jun-23,3723.24,0,58851,Older People Placements - East,321017              Nursing & Residential Care Homes,A,2023,3
191,Community and Housing,CARE UK,975563,07-Jun-23,3229.52,0,58851,Older People Placements - East,321017              Nursing & Residential Care Homes,A,2023,3
192,Community and Housing,CARE UK,975581,07-Jun-23,3723.24,0,58851,Older People Placements - East,321017              Nursing & Residential Care Homes,A,2023,3
193,Community and Housing,CARE UK,975647,07-Jun-23,4000,0,58851,Older People Placements - East,321017              Nursing & Residential Care Homes,A,2023,3
194,Community and Housing,CARE UK,975649,07-Jun-23,3229.52,0,58851,Older People Placements - East,321017              Nursing & Residential Care Homes,A,2023,3
195,"Children, Schools and Family",EDE'S (U.K.) LTD,INV25483,13-Jun-23,528.6,88.1,62345, Children's Centres Support,190000              Facilities & Management Services,A,2023,3
196,Capital,EDE'S (U.K.) LTD,NV25562,26-Jun-23,3729.98,621.66,62345,Works to other buildings,190000              Facilities & Management Services,A,2023,3
197,Community and Housing,BARONS LODGE NURSING HOME,975333,07-Jun-23,1716,0,62371,Mental Health Placements,321017              Nursing & Residential Care Homes,A,2023,3
198,Community and Housing,BARONS LODGE NURSING HOME,975426,07-Jun-23,4360,0,62371,Older People Placements - East,321017              Nursing & Residential Care Homes,A,2023,3
199,Community and Housing,BARONS LODGE NURSING HOME,975531,07-Jun-23,3502,0,62371,Mental Health Placements,321017              Nursing & Residential Care Homes,A,2023,3
200,Community and Housing,BARONS LODGE NURSING HOME,975542,07-Jun-23,4200,0,62371,Mental Health Placements,321017              Nursing & Residential Care Homes,A,2023,3
201,Community and Housing,BARONS LODGE NURSING HOME,975602,07-Jun-23,4360,0,62371,Mental Health Placements,321017              Nursing & Residential Care Homes,A,2023,3
202,Community and Housing,BARONS LODGE NURSING HOME,975609,07-Jun-23,4360,0,62371,Older People Placements - East,321017              Nursing & Residential Care Homes,A,2023,3
203,Community and Housing,BARONS LODGE NURSING HOME,975610,07-Jun-23,3807.2,0,62371,Learning Disabilities Placemnt,321017              Nursing & Residential Care Homes,A,2023,3
204,Community and Housing,BARONS LODGE NURSING HOME,975627,07-Jun-23,4800,0,62371,Older People Placements - East,321017              Nursing & Residential Care Homes,A,2023,3
205,Community and Housing,BARONS LODGE NURSING HOME,975644,07-Jun-23,3502,0,62371,Older People Placements - East,321017              Nursing & Residential Care Homes,A,2023,3
206,Community and Housing,BARONS LODGE NURSING HOME,975761,07-Jun-23,1671.43,0,62371,Older People Placements - East,321017              Nursing & Residential Care Homes,A,2023,3
207,Community and Housing,BARONS LODGE NURSING HOME,983952,30-Jun-23,934.29,0,62371,Older People Placements - East,321017              Nursing & Residential Care Homes,A,2023,3
208,Corporate Services,MASTERS LEGAL COSTS SERV'S LLP,2616/23151,01-Jun-23,600,100,63103,SLLP - Disbursements,280000              Legal Services                                                                            Confirmed,A,2023,3
209,Corporate Services,MASTERS LEGAL COSTS SERV'S LLP,74907,22-Jun-23,600,100,63103,SLLP - Disbursements,280000              Legal Services                                                                            Confirmed,A,2023,3
210,Community and Housing,SANCTUARY CARE LTD,975299,07-Jun-23,3117.52,0,63458,Learning Disabilities Placemnt,321017              Nursing & Residential Care Homes,A,2023,3
211,Community and Housing,THE REGARD PARTNERSHIP LTD,975284,07-Jun-23,6220.72,0,63796,Learning Disabilities Placemnt,321017              Nursing & Residential Care Homes,A,2023,3
212,Community and Housing,THE REGARD PARTNERSHIP LTD,975382,07-Jun-23,5973.28,0,63796,Learning Disabilities Placemnt,321017              Nursing & Residential Care Homes,A,2023,3
213,Community and Housing,THE REGARD PARTNERSHIP LTD,975401,07-Jun-23,9681.96,0,63796,Learning Disabilities Placemnt,321017              Nursing & Residential Care Homes,A,2023,3
214,Community and Housing,THE REGARD PARTNERSHIP LTD,975415,07-Jun-23,5765,0,63796,Learning Disabilities Placemnt,321017              Nursing & Residential Care Homes,A,2023,3
215,Community and Housing,THE REGARD PARTNERSHIP LTD,975520,07-Jun-23,6126.52,0,63796,Learning Disabilities Placemnt,321017              Nursing & Residential Care Homes,A,2023,3
216,Community and Housing,THE REGARD PARTNERSHIP LTD,975628,07-Jun-23,4901.24,0,63796,Learning Disabilities Placemnt,321017              Nursing & Residential Care Homes,A,2023,3
217,"Children, Schools and Family",CAROUSEL DAY NURSERY,P1 23 HEADCOUNT,27-Jun-23,8461.08,0,66990,EARLY YEARS NURSERY GRANTS,170000              Education,A,2023,3
218,"Children, Schools and Family",PLAYDAYS DAY NURSERY,P1 23 HEADCOUNT,27-Jun-23,2102.76,0,66992,EARLY YEARS NURSERY GRANTS,170000              Education,A,2023,3
219,Community and Housing,NAS SERVICES LIMITED,ASU4394538,16-Jun-23,4546.8,757.8,68929,Mental Health Placements,321100              Social Community Care Supplies & Services - Children,A,2023,3
220,Corporate Services,NEC Software Solutions UK Limited,91474321,22-Jun-23,1320,220,72946,Local Land Charges,190000              Facilities & Management Services,A,2023,3
221,"Children, Schools and Family",JANCETT CHILDCARE AND  JACE TRNG,P1 23 SENDIF,26-Jun-23,3339,0,75578,EARLY YEARS NURSERY GRANTS,260000              Human Resources,A,2023,3
222,"Children, Schools and Family",JANCETT CHILDCARE AND  JACE TRNG,P1 23 HEADCOUNT,27-Jun-23,3955.9,0,75578,EARLY YEARS NURSERY GRANTS,260000              Human Resources,A,2023,3
223,"Children, Schools and Family",JANCETT CHILDCARE AND  JACE TRNG,2004,29-Jun-23,1458,0,75578,Non-Delegated Statements,260000              Human Resources,A,2023,3
224,Community and Housing,BRANDON TRUST,975294,07-Jun-23,4054,0,76126,Learning Disabilities Placemnt,321017              Nursing & Residential Care Homes,A,2023,3
225,"Children, Schools and Family",DICKY BIRDS PRE SCHOOL NURSERY,P1 23 SENDIF,26-Jun-23,1732.5,0,76508,EARLY YEARS NURSERY GRANTS,170000              Education,A,2023,3
226,"Children, Schools and Family",DICKY BIRDS PRE SCHOOL NURSERY,P1 23 HEADCOUNT,27-Jun-23,13519.26,0,76508,EARLY YEARS NURSERY GRANTS,170000              Education,A,2023,3
227,"Children, Schools and Family",NESCOT,330176,29-Jun-23,929.94,0,76517,Non-Maintained Post 16 SEN,170000              Education,A,2023,3
228,"Children, Schools and Family",NESCOT,330173,29-Jun-23,929.94,0,76517,Non-Maintained Post 16 SEN,170000              Education,A,2023,3
229,"Children, Schools and Family",NESCOT,330174,29-Jun-23,929.94,0,76517,Non-Maintained Post 16 SEN,170000              Education,A,2023,3
230,"Children, Schools and Family",NESCOT,330179,29-Jun-23,2371.54,0,76517,Non-Maintained Post 16 SEN,170000              Education,A,2023,3
231,"Children, Schools and Family",NESCOT,330180,29-Jun-23,979.18,0,76517,Non-Maintained Post 16 SEN,170000              Education,A,2023,3
232,"Children, Schools and Family",NESCOT,330182,29-Jun-23,929.94,0,76517,Non-Maintained Post 16 SEN,170000              Education,A,2023,3
233,"Children, Schools and Family",NESCOT,330184,29-Jun-23,929.94,0,76517,Non-Maintained Post 16 SEN,170000              Education,A,2023,3
234,"Children, Schools and Family",NESCOT,330185,29-Jun-23,929.94,0,76517,Non-Maintained Post 16 SEN,170000              Education,A,2023,3
235,Unassigned,LONDON BOROUGH OF SUTTON,BAILIFF MAY 2023,13-Jun-23,109006.94,0,76615,Corporate Services,OLA,A,2023,3
236,Unassigned,POST OFFICE LTD,MERTON23/24PO6,14-Jun-23,17721.74,0,77066,Adults Social Care,200000              Financial Services,A,2023,3
237,Unassigned,POST OFFICE LTD,MERTON23/24PO7,29-Jun-23,17959.5,0,77066,Adults Social Care,200000              Financial Services,A,2023,3
238,Corporate Services,HEMMING GROUP LTD (LOCAL GOV),SZIM202300607,16-Jun-23,3594,599,78178,Director of Corporate Services,200000              Financial Services,A,2023,3
239,"Children, Schools and Family",PRIORS COURT FOUNDATION,1900,12-Jun-23,65884.04,10980.67,78722,SEN Residential (DSG),170000              Education,A,2023,3
240,Community and Housing,ABBEY HOUSE RESIDENTIAL HOMES,975295,07-Jun-23,4400,0,78937,Older People Placements - East,321017              Nursing & Residential Care Homes,A,2023,3
241,Community and Housing,ABBEY HOUSE RESIDENTIAL HOMES,975319,07-Jun-23,4400,0,78937,Older People Placements - East,321017              Nursing & Residential Care Homes,A,2023,3
242,Community and Housing,ABBEY HOUSE RESIDENTIAL HOMES,975321,07-Jun-23,5520,0,78937,Mental Health Placements,321017              Nursing & Residential Care Homes,A,2023,3
243,Community and Housing,ABBEY HOUSE RESIDENTIAL HOMES,983943,30-Jun-23,2014.29,0,78937,Older People Placements - East,321017              Nursing & Residential Care Homes,A,2023,3
244,Community and Housing,REDACTED PERSONAL DATA,980942,22-Jun-23,5499.68,0,81639,Older People Placements - East,DIRECT PAYMENTS,R,2023,3
245,"Children, Schools and Family",DEE'S DAY NURSERY,P1 23 HEADCOUNT,27-Jun-23,5352.48,0,82343,EARLY YEARS NURSERY GRANTS,170000              Education,A,2023,3
246,Corporate Services,IRON MOUNTAIN (UK) LTD,17148831,22-Jun-23,1154.71,192.45,82409,IT-Telecomms,270000              Information Communication Technology,A,2023,3
247,Corporate Services,REDACTED PERSONAL DATA,INVJD169,01-Jun-23,1560,260,83383,SLLP - Disbursements,280000              Legal Services,R,2023,3
248,Corporate Services,REDACTED PERSONAL DATA,INVJD159,06-Jun-23,2100,350,83383,SLLP - Disbursements,280000              Legal Services,R,2023,3
249,Corporate Services,REDACTED PERSONAL DATA,INVJD160,06-Jun-23,1200,200,83383,SLLP - Disbursements,280000              Legal Services,R,2023,3
250,Corporate Services,REDACTED PERSONAL DATA,INVJD185,12-Jun-23,840,140,83383,SLLP - Disbursements,280000              Legal Services,R,2023,3
251,Corporate Services,REDACTED PERSONAL DATA,INVJD180,16-Jun-23,2400,400,83383,SLLP - Disbursements,280000              Legal Services,R,2023,3
252,Corporate Services,REDACTED PERSONAL DATA,INVJD171,21-Jun-23,12630,2105,83383,SLLP - Disbursements,280000              Legal Services,R,2023,3
253,Corporate Services,REDACTED PERSONAL DATA,INVJD186,22-Jun-23,10800,1800,83383,SLLP - Disbursements,280000              Legal Services,R,2023,3
254,Unassigned,MALMESBURY PRIMARY SCHOOL,SCHOOLS 2324/3 A,07-Jun-23,197717.57,0,83593,Schools,170000              Education,A,2023,3
255,Environment and Regeneration,NEWSQUEST MEDIA GROUP LTD,42816281,19-Jun-23,3119.47,519.91,85566,CPZ Implementation & Consult,190000              Facilities & Management Services,A,2023,3
256,Environment and Regeneration,NEWSQUEST MEDIA GROUP LTD,42872372,26-Jun-23,4464.07,744.01,85566,CPZ Implementation & Consult,190000              Facilities & Management Services,A,2023,3
257,Environment and Regeneration,NEWSQUEST MEDIA GROUP LTD,42917270,03-Jul-23,1021.9,170.32,85566,CPZ Implementation & Consult,190000              Facilities & Management Services,A,2023,3
258,"Children, Schools and Family",CENTRE ACADEMY LONDON,SUM23-14,06-Jun-23,14300,0,88689,Non-Delegated Statements,170000              Education,A,2023,3
259,"Children, Schools and Family",CENTRE ACADEMY LONDON,SUM23-13,06-Jun-23,14300,0,88689,Non-Delegated Statements,170000              Education,A,2023,3
260,"Children, Schools and Family",CENTRE ACADEMY LONDON,SUM23-14 TW,21-Jun-23,14300,0,88689,Non-Delegated Statements,170000              Education,A,2023,3
261,"Children, Schools and Family",LONDON GRID FOR LEARNING TRUST,2020016066,13-Jun-23,1438.8,239.8,90449, Schools IT Support,270000              Information Communication Technology,A,2023,3
262,Community and Housing,SUPREME CARE SERVICES LIMITED,85736,01-Jun-23,1190.09,0,91840,Older People Placements - East,321000              Social Community Care Supplies & Services - Adult,A,2023,3
263,Community and Housing,SUPREME CARE SERVICES LIMITED,85733,02-Jun-23,3071.52,0,91840,Older People Placements - East,321000              Social Community Care Supplies & Services - Adult,A,2023,3
264,Community and Housing,THE GARWOOD FOUNDATION,MW.DFMAY23,01-Jun-23,1062,0,92268,Older People Placements - East,321000              Social Community Care Supplies & Services - Adult,A,2023,3
265,Community and Housing,Allied Healthcare,RF/264/1066917,15-Jun-23,1465.94,0,92896,Learning Disabilities Placemnt,321000              Social Community Care Supplies & Services - Adult,A,2023,3
266,Community and Housing,Allied Healthcare,2641066915B/19,07-Jun-23,826.67,0,92896,Learning Disabilities Placemnt,321000              Social Community Care Supplies & Services - Adult,A,2023,3
267,Community and Housing,Allied Healthcare,2641066915B/35,07-Jun-23,1162.23,0,92896,Phys/Sens Placements - East,321000              Social Community Care Supplies & Services - Adult,A,2023,3
268,Community and Housing,Allied Healthcare,2641066915B/46,07-Jun-23,1186.78,0,92896,Older People Placements - East,321000              Social Community Care Supplies & Services - Adult,A,2023,3
269,Community and Housing,Allied Healthcare,2641066915B/47,07-Jun-23,1180.9,0,92896,Older People Placements - East,321000              Social Community Care Supplies & Services - Adult,A,2023,3
270,Community and Housing,Allied Healthcare,2641066915B/21,07-Jun-23,688.72,0,92896,Older People Placements - East,321000              Social Community Care Supplies & Services - Adult,A,2023,3
271,Community and Housing,Allied Healthcare,2641066915B/29,07-Jun-23,646.47,0,92896,Learning Disabilities Placemnt,321000              Social Community Care Supplies & Services - Adult,A,2023,3
272,Community and Housing,Allied Healthcare,2641066915B/58,07-Jun-23,1503.41,0,92896,Older People Placements - East,321000              Social Community Care Supplies & Services - Adult,A,2023,3
273,Community and Housing,Allied Healthcare,2641066915B/8,07-Jun-23,1176.12,0,92896,Older People Placements - East,321000              Social Community Care Supplies & Services - Adult,A,2023,3
274,Community and Housing,Allied Healthcare,2641066915B/64,07-Jun-23,1521.17,0,92896,Older People Placements - East,321000              Social Community Care Supplies & Services - Adult,A,2023,3
275,Community and Housing,Allied Healthcare,2641066915B/7,07-Jun-23,825.59,0,92896,Older People Placements - East,321000              Social Community Care Supplies & Services - Adult,A,2023,3
276,Community and Housing,Allied Healthcare,2641066915B/53,07-Jun-23,961.9,0,92896,Older People Placements - East,321000              Social Community Care Supplies & Services - Adult,A,2023,3
277,Community and Housing,Allied Healthcare,2641066915B/1,07-Jun-23,1178.26,0,92896,Phys/Sens Placements - East,321000              Social Community Care Supplies & Services - Adult,A,2023,3
278,Community and Housing,Allied Healthcare,2641066915B/39,07-Jun-23,2692.46,0,92896,Older People Placements - East,321000              Social Community Care Supplies & Services - Adult,A,2023,3
279,Community and Housing,Allied Healthcare,2641066915B/31,07-Jun-23,2878.37,0,92896,Older People Placements - East,321000              Social Community Care Supplies & Services - Adult,A,2023,3
280,Community and Housing,Allied Healthcare,2641066915B/23,07-Jun-23,1786.13,0,92896,Learning Disabilities Placemnt,321000              Social Community Care Supplies & Services - Adult,A,2023,3
281,Community and Housing,Allied Healthcare,2641066915B/41,07-Jun-23,720.36,0,92896,Older People Placements - East,321000              Social Community Care Supplies & Services - Adult,A,2023,3
282,Community and Housing,Allied Healthcare,2641066915B/27,07-Jun-23,2933.13,0,92896,Older People Placements - East,321000              Social Community Care Supplies & Services - Adult,A,2023,3
283,Community and Housing,Allied Healthcare,2641066915B/24,07-Jun-23,574.32,0,92896,Learning Disabilities Placemnt,321000              Social Community Care Supplies & Services - Adult,A,2023,3
284,Community and Housing,Allied Healthcare,2641066915B/57,07-Jun-23,3000.23,0,92896,Older People Placements - East,321000              Social Community Care Supplies & Services - Adult,A,2023,3
285,Community and Housing,Allied Healthcare,2641066915B/42,07-Jun-23,1136.96,0,92896,Older People Placements - East,321000              Social Community Care Supplies & Services - Adult,A,2023,3
286,Community and Housing,Allied Healthcare,2641066915B/13,07-Jun-23,1558.56,0,92896,Older People Placements - East,321000              Social Community Care Supplies & Services - Adult,A,2023,3
287,Community and Housing,Allied Healthcare,2641066915B/51,07-Jun-23,2814.59,0,92896,Older People Placements - East,321000              Social Community Care Supplies & Services - Adult,A,2023,3
288,Community and Housing,Allied Healthcare,2641066915B/6,07-Jun-23,1695.75,0,92896,Older People Placements - East,321000              Social Community Care Supplies & Services - Adult,A,2023,3
289,Community and Housing,Allied Healthcare,2641066915B/32,07-Jun-23,739.09,0,92896,Learning Disabilities Placemnt,321000              Social Community Care Supplies & Services - Adult,A,2023,3
290,Community and Housing,Allied Healthcare,2641066915B/34,07-Jun-23,2567.33,0,92896,Phys/Sens Placements - East,321000              Social Community Care Supplies & Services - Adult,A,2023,3
291,Community and Housing,Allied Healthcare,2641066915B/20,07-Jun-23,756.77,0,92896,Older People Placements - East,321000              Social Community Care Supplies & Services - Adult,A,2023,3
292,Community and Housing,Allied Healthcare,2641066915B/62,07-Jun-23,1529.87,0,92896,Older People Placements - East,321000              Social Community Care Supplies & Services - Adult,A,2023,3
293,Community and Housing,Allied Healthcare,2641066915B/38,07-Jun-23,596.49,0,92896,Older People Placements - East,321000              Social Community Care Supplies & Services - Adult,A,2023,3
294,Community and Housing,Allied Healthcare,2641066915B/14,07-Jun-23,577.22,0,92896,Older People Placements - East,321000              Social Community Care Supplies & Services - Adult,A,2023,3
295,Community and Housing,Allied Healthcare,2641066915B/44,07-Jun-23,853.4,0,92896,Older People Placements - East,321000              Social Community Care Supplies & Services - Adult,A,2023,3
296,Community and Housing,Allied Healthcare,2641066915B/18,07-Jun-23,739.76,0,92896,Older People Placements - East,321000              Social Community Care Supplies & Services - Adult,A,2023,3
297,Community and Housing,Allied Healthcare,2641066915B/9,07-Jun-23,3237.66,0,92896,Older People Placements - East,321000              Social Community Care Supplies & Services - Adult,A,2023,3
298,Community and Housing,Allied Healthcare,2641066915B/56,07-Jun-23,3126.47,0,92896,Older People Placements - East,321000              Social Community Care Supplies & Services - Adult,A,2023,3
299,Community and Housing,Allied Healthcare,2641066915B/61,07-Jun-23,858.43,0,92896,Older People Placements - East,321000              Social Community Care Supplies & Services - Adult,A,2023,3
300,Community and Housing,Allied Healthcare,2641066915B/49,07-Jun-23,748.36,0,92896,Older People Placements - East,321000              Social Community Care Supplies & Services - Adult,A,2023,3
301,Community and Housing,Allied Healthcare,2641066915B/60,07-Jun-23,2911.79,0,92896,Older People Placements - East,321000              Social Community Care Supplies & Services - Adult,A,2023,3
302,Community and Housing,Allied Healthcare,2641066915B/54,07-Jun-23,1166.77,0,92896,Older People Placements - East,321000              Social Community Care Supplies & Services - Adult,A,2023,3
303,Community and Housing,Allied Healthcare,2641066915B/10,07-Jun-23,2273.45,0,92896,Older People Placements - East,321000              Social Community Care Supplies & Services - Adult,A,2023,3
304,Community and Housing,Allied Healthcare,2641066915B/26,07-Jun-23,1354.25,0,92896,Older People Placements - East,321000              Social Community Care Supplies & Services - Adult,A,2023,3
305,Community and Housing,Allied Healthcare,2641066915B/5,07-Jun-23,850.03,0,92896,Older People Placements - East,321000              Social Community Care Supplies & Services - Adult,A,2023,3
306,"Children, Schools and Family",BUILDING BLOCKS NURSERY,P1 23 HEADCOUNT,27-Jun-23,6104.38,0,93437,EARLY YEARS NURSERY GRANTS,170000              Education,A,2023,3
307,Community and Housing,CARE MANAGEMENT GROUP,975277,07-Jun-23,4593.88,0,93533,Mental Health Placements,321017              Nursing & Residential Care Homes,A,2023,3
308,Community and Housing,CARE MANAGEMENT GROUP,975347,07-Jun-23,6279.2,0,93533,Learning Disabilities Placemnt,321017              Nursing & Residential Care Homes,A,2023,3
309,Community and Housing,CARE MANAGEMENT GROUP,975453,07-Jun-23,5936.6,0,93533,Learning Disabilities Placemnt,321017              Nursing & Residential Care Homes,A,2023,3
310,Community and Housing,CARE MANAGEMENT GROUP,975502,07-Jun-23,8733.64,0,93533,Phys/Sens Placements - East,321017              Nursing & Residential Care Homes,A,2023,3
311,Community and Housing,CARE MANAGEMENT GROUP,975533,07-Jun-23,7712.12,0,93533,Learning Disabilities Placemnt,321017              Nursing & Residential Care Homes,A,2023,3
312,Community and Housing,CARE MANAGEMENT GROUP,975658,07-Jun-23,7974.36,0,93533,Learning Disabilities Placemnt,321017              Nursing & Residential Care Homes,A,2023,3
313,Community and Housing,CARE MANAGEMENT GROUP,613000662,16-Jun-23,6353.48,0,93533,Learning Disabilities Placemnt,321017              Nursing & Residential Care Homes,A,2023,3
314,"Children, Schools and Family",ST OLAVES NURSERY,P1 23 HEADCOUNT,27-Jun-23,10013.76,0,94303,EARLY YEARS NURSERY GRANTS,170000              Education,A,2023,3
315,Community and Housing,A AND R CARE LTD,975337,07-Jun-23,3300,0,94357,Older People Placements - East,321017              Nursing & Residential Care Homes,A,2023,3
316,Community and Housing,A AND R CARE LTD,975463,07-Jun-23,3763.24,0,94357,Older People Placements - East,321017              Nursing & Residential Care Homes,A,2023,3
317,Community and Housing,A AND R CARE LTD,975594,07-Jun-23,3400,0,94357,Older People Placements - East,321017              Nursing & Residential Care Homes,A,2023,3
318,Community and Housing,A AND R CARE LTD,975631,07-Jun-23,4800,0,94357,Older People Placements - East,321017              Nursing & Residential Care Homes,A,2023,3
319,Community and Housing,A AND R CARE LTD,975686,07-Jun-23,3824.32,0,94357,Phys/Sens Placements - East,321017              Nursing & Residential Care Homes,A,2023,3
320,Community and Housing,A AND R CARE LTD,983956,30-Jun-23,1050,0,94357,Older People Placements - East,321017              Nursing & Residential Care Homes,A,2023,3
321,Community and Housing,COMMONSIDE COMMUNITY DEV TRUST,GLAPINS RD GAZEB,06-Jun-23,850,0,95839,Galpins Road Support,321000              Social Community Care Supplies & Services - Adult,A,2023,3
322,"Children, Schools and Family",THE FOSTERING NETWORK,RINV/00009508BAL,15-Jun-23,832,0,95846,Fostering Support,260000              Human Resources,A,2023,3
323,"Children, Schools and Family",THE FOSTERING NETWORK,RINV/00009926,20-Jun-23,2944,0,95846,Fostering Support,260000              Human Resources,A,2023,3
324,"Children, Schools and Family",THE FOSTERING NETWORK,RINV/00009384,03-Jul-23,8400,1400,95846,Fostering Support,260000              Human Resources,A,2023,3
325,Community and Housing,Aspens Charities Ltd,37229,01-Jun-23,18309.2,0,96019,Learning Disabilities Placemnt,321017              Nursing & Residential Care Homes,A,2023,3
326,Community and Housing,Aspens Charities Ltd,38069,05-Jun-23,18309.2,0,96019,Learning Disabilities Placemnt,321017              Nursing & Residential Care Homes,A,2023,3
327,Community and Housing,Aspens Charities Ltd,975481,07-Jun-23,8909.92,0,96019,Learning Disabilities Placemnt,321017              Nursing & Residential Care Homes,A,2023,3
328,Community and Housing,Aspens Charities Ltd,35276,15-Jun-23,17318.36,0,96019,Learning Disabilities Placemnt,321017              Nursing & Residential Care Homes,A,2023,3
329,Community and Housing,REDACTED PERSONAL DATA,979651,21-Jun-23,4260.16,0,96859,Learning Disabilities Placemnt,DIRECT PAYMENTS,R,2023,3
330,Community and Housing,THE ABBEYFIELD SOCIETY,975612,07-Jun-23,4000,0,97539,Older People Placements - East,321000              Social Community Care Supplies & Services - Adult,A,2023,3
331,Community and Housing,EL-SHADDAI,983063,26-Jun-23,1052.08,0,97709,MH Housing Support Placements,321000              Social Community Care Supplies & Services - Adult,A,2023,3
332,Community and Housing,EL-SHADDAI,983083,26-Jun-23,780.68,0,97709,Phys/Sens Placements - East,321000              Social Community Care Supplies & Services - Adult,A,2023,3
333,Community and Housing,EL-SHADDAI,983086,26-Jun-23,1315.04,0,97709,Learning Disabilities Placemnt,321000              Social Community Care Supplies & Services - Adult,A,2023,3
334,Community and Housing,EL-SHADDAI,983093,26-Jun-23,1052.08,0,97709,Learning Disabilities Placemnt,321000              Social Community Care Supplies & Services - Adult,A,2023,3
335,Community and Housing,EL-SHADDAI,983055,27-Jun-23,2240,0,97709,Hospital To Home,321000              Social Community Care Supplies & Services - Adult,A,2023,3
336,Community and Housing,Rosenmanor Ltd,975475,07-Jun-23,2924.24,0,97808,Mental Health Placements,321017              Nursing & Residential Care Homes,A,2023,3
337,Environment and Regeneration,MERTON COMMUNITY TRANSPORT,17159,14-Jun-23,3430.65,0,98164,Passenger Transport,360000              Passenger Transport,A,2023,3
338,Community and Housing,MERTON COMMUNITY TRANSPORT,17154,16-Jun-23,1108.8,184.8,98164,Learning Disabilities Placemnt,360000              Passenger Transport,A,2023,3
339,Community and Housing,MERTON COMMUNITY TRANSPORT,17138,16-Jun-23,1465.2,244.2,98164,Learning Disabilities Placemnt,360000              Passenger Transport,A,2023,3
340,Unassigned,BEECHOLME PRIMARY ACADEMY,SCHOOLS 2324/3 A,07-Jun-23,17362.53,0,98168,Schools,170000              Education,A,2023,3
341,"Children, Schools and Family",WRIXON CARE,49560,06-Jun-23,3761.32,626.89,98412,Family Supp SafeGuard - Place,360000              Passenger Transport,A,2023,3
342,"Children, Schools and Family",Evolve Housing + Support,3242,23-Jun-23,2042.86,0,98536,UASC Care Leavers Over 18,321000              Social Community Care Supplies & Services - Adult,A,2023,3
343,"Children, Schools and Family",Evolve Housing + Support,3317,23-Jun-23,1850,0,98536,Placements Over 18,321000              Social Community Care Supplies & Services - Adult,A,2023,3
344,"Children, Schools and Family",Evolve Housing + Support,3318,23-Jun-23,1850,0,98536,Placements Over 18,321000              Social Community Care Supplies & Services - Adult,A,2023,3
345,"Children, Schools and Family",Evolve Housing + Support,3319,23-Jun-23,1603.65,0,98536,UASC Care Leavers Over 18,321000              Social Community Care Supplies & Services - Adult,A,2023,3
346,"Children, Schools and Family",Evolve Housing + Support,3320,23-Jun-23,1603.65,0,98536,UASC Care Leavers Over 18,321000              Social Community Care Supplies & Services - Adult,A,2023,3
347,"Children, Schools and Family",Evolve Housing + Support,3330,23-Jun-23,2061.84,0,98536,UASC Care Leavers Over 18,321000              Social Community Care Supplies & Services - Adult,A,2023,3
348,Community and Housing,ROYAL MENCAP SOCIETY,3772985,27-Jun-23,2290.96,0,98713,Learning Disabilities Placemnt,321000              Social Community Care Supplies & Services - Adult,A,2023,3
349,Community and Housing,ROYAL MENCAP SOCIETY,3772986,27-Jun-23,2613.96,0,98713,Learning Disabilities Placemnt,321000              Social Community Care Supplies & Services - Adult,A,2023,3
350,Unassigned,WEST WIMBLEDON PRIMARY SCHOOL,SCHOOLS 2324/3 A,07-Jun-23,182295.32,0,101674,Schools,170000              Education,A,2023,3
351,Unassigned,NORMAN ROAD HAULAGE LTD,230855,12-Jun-23,516,86,101898,Mitcham Common Conservators,380000              Vehicle Management,A,2023,3
352,Community and Housing,HILLDALE AND NORTHVIEW,975432,07-Jun-23,2072.52,0,103592,Older People Placements - East,321000              Social Community Care Supplies & Services - Adult,A,2023,3
353,Community and Housing,BUPA CARE HOMES,975300,07-Jun-23,3154.12,0,105027,Older People Placements - East,321017              Nursing & Residential Care Homes,A,2023,3
354,Community and Housing,BUPA CARE HOMES,975309,07-Jun-23,3289.24,0,105027,Older People Placements - East,321017              Nursing & Residential Care Homes,A,2023,3
355,Community and Housing,BUPA CARE HOMES,975322,07-Jun-23,3289.24,0,105027,Older People Placements - East,321017              Nursing & Residential Care Homes,A,2023,3
356,Community and Housing,BUPA CARE HOMES,975336,07-Jun-23,3154.12,0,105027,Older People Placements - East,321017              Nursing & Residential Care Homes,A,2023,3
357,Community and Housing,BUPA CARE HOMES,975343,07-Jun-23,1239.12,0,105027,Older People Placements - East,321017              Nursing & Residential Care Homes,A,2023,3
358,Community and Housing,BUPA CARE HOMES,975391,07-Jun-23,3289.24,0,105027,Older People Placements - East,321017              Nursing & Residential Care Homes,A,2023,3
359,Community and Housing,BUPA CARE HOMES,975405,07-Jun-23,3154.12,0,105027,Older People Placements - East,321017              Nursing & Residential Care Homes,A,2023,3
360,Community and Housing,BUPA CARE HOMES,975430,07-Jun-23,1762.1,0,105027,Older People Placements - East,321017              Nursing & Residential Care Homes,A,2023,3
361,Community and Housing,BUPA CARE HOMES,975435,07-Jun-23,3289.24,0,105027,Older People Placements - East,321017              Nursing & Residential Care Homes,A,2023,3
362,Community and Housing,BUPA CARE HOMES,975498,07-Jun-23,3289.24,0,105027,Older People Placements - East,321017              Nursing & Residential Care Homes,A,2023,3
363,Community and Housing,BUPA CARE HOMES,975521,07-Jun-23,3289.24,0,105027,Older People Placements - East,321017              Nursing & Residential Care Homes,A,2023,3
364,Community and Housing,BUPA CARE HOMES,975524,07-Jun-23,3154.12,0,105027,Older People Placements - East,321017              Nursing & Residential Care Homes,A,2023,3
365,Community and Housing,BUPA CARE HOMES,975532,07-Jun-23,3289.24,0,105027,Older People Placements - East,321017              Nursing & Residential Care Homes,A,2023,3
366,Community and Housing,BUPA CARE HOMES,975566,07-Jun-23,3289.24,0,105027,Older People Placements - East,321017              Nursing & Residential Care Homes,A,2023,3
367,Community and Housing,BUPA CARE HOMES,975574,07-Jun-23,4363.16,0,105027,Phys/Sens Placements - East,321017              Nursing & Residential Care Homes,A,2023,3
368,Community and Housing,BUPA CARE HOMES,975588,07-Jun-23,3569.4,0,105027,Older People Placements - East,321017              Nursing & Residential Care Homes,A,2023,3
369,Community and Housing,BUPA CARE HOMES,975603,07-Jun-23,3289.24,0,105027,Mental Health Placements,321017              Nursing & Residential Care Homes,A,2023,3
370,Community and Housing,BUPA CARE HOMES,975622,07-Jun-23,3154.12,0,105027,Older People Placements - East,321017              Nursing & Residential Care Homes,A,2023,3
371,Community and Housing,BUPA CARE HOMES,975643,07-Jun-23,3289.24,0,105027,Older People Placements - East,321017              Nursing & Residential Care Homes,A,2023,3
372,Community and Housing,BUPA CARE HOMES,975650,07-Jun-23,3289.24,0,105027,Older People Placements - East,321017              Nursing & Residential Care Homes,A,2023,3
373,Community and Housing,BUPA CARE HOMES,975672,07-Jun-23,3289.24,0,105027,Older People Placements - East,321017              Nursing & Residential Care Homes,A,2023,3
374,Community and Housing,BUPA CARE HOMES,975685,07-Jun-23,3289.24,0,105027,Older People Placements - East,321017              Nursing & Residential Care Homes,A,2023,3
375,Community and Housing,BUPA CARE HOMES,975708,07-Jun-23,3154.12,0,105027,Older People Placements - East,321017              Nursing & Residential Care Homes,A,2023,3
376,Community and Housing,REDACTED PERSONAL DATA,979992,21-Jun-23,2689.24,0,105300,Learning Disabilities Placemnt,DIRECT PAYMENTS,R,2023,3
377,"Children, Schools and Family",NEWSCHOOLS (MERTON) LIMITED,1NSM01063,19-Jun-23,4870.8,811.8,106428, PFI Unitary Charges,200000              Financial Services,A,2023,3
378,"Children, Schools and Family",NEWSCHOOLS (MERTON) LIMITED,NSM01054,21-Jun-23,13248,2208,106428, PFI Unitary Charges,200000              Financial Services,A,2023,3
379,"Children, Schools and Family",NEWSCHOOLS (MERTON) LIMITED,NSM01049,22-Jun-23,3556.8,592.8,106428, PFI Unitary Charges,200000              Financial Services,A,2023,3
380,"Children, Schools and Family",NEWSCHOOLS (MERTON) LIMITED,NSM01050,22-Jun-23,1249.92,208.32,106428, PFI Unitary Charges,200000              Financial Services,A,2023,3
381,"Children, Schools and Family",NEWSCHOOLS (MERTON) LIMITED,NSM01061,27-Jun-23,1993514.24,332252.37,106428, PFI Unitary Charges,200000              Financial Services,A,2023,3
382,"Children, Schools and Family",NEWSCHOOLS (MERTON) LIMITED,NSM01056,27-Jun-23,6901.57,1150.26,106428, PFI Unitary Charges,200000              Financial Services,A,2023,3
383,"Children, Schools and Family",NEWSCHOOLS (MERTON) LIMITED,NSM01059,27-Jun-23,5067.76,844.63,106428, PFI Unitary Charges,200000              Financial Services,A,2023,3
384,Capital,ASCENDIT LIFTS LTD,40222,29-Jun-23,5414,0,107196,Disabled Facilities Grant,"390000              Works - Construction, Repair & Maintenance",A,2023,3
385,Capital,ASCENDIT LIFTS LTD,40454,30-Jun-23,5548,0,107196,Disabled Facilities Grant,"390000              Works - Construction, Repair & Maintenance",A,2023,3
386,Capital,ASCENDIT LIFTS LTD,40438,29-Jun-23,850,0,107196,Disabled Facilities Grant,"390000              Works - Construction, Repair & Maintenance",A,2023,3
387,"Children, Schools and Family",The Eveline Day and Nursery Schools Ltd,P1 23 HEADCOUNT,27-Jun-23,5989.68,0,108282,EARLY YEARS NURSERY GRANTS,170000              Education,A,2023,3
388,Community and Housing,REDACTED PERSONAL DATA,983050,26-Jun-23,789.04,0,110403,MH Housing Support Placements,321000              Social Community Care Supplies & Services - Adult,R,2023,3
389,Community and Housing,REDACTED PERSONAL DATA,983052,26-Jun-23,1052.04,0,110403,Learning Disabilities Placemnt,321000              Social Community Care Supplies & Services - Adult,R,2023,3
390,Community and Housing,REDACTED PERSONAL DATA,983053,26-Jun-23,2000,0,110403,Older People Placements - East,321000              Social Community Care Supplies & Services - Adult,R,2023,3
391,Community and Housing,REDACTED PERSONAL DATA,983054,26-Jun-23,780.68,0,110403,MH Housing Support Placements,321000              Social Community Care Supplies & Services - Adult,R,2023,3
392,Community and Housing,REDACTED PERSONAL DATA,983065,26-Jun-23,780.68,0,110403,MH Housing Support Placements,321000              Social Community Care Supplies & Services - Adult,R,2023,3
393,Community and Housing,REDACTED PERSONAL DATA,983066,26-Jun-23,789.04,0,110403,MH Housing Support Placements,321000              Social Community Care Supplies & Services - Adult,R,2023,3
394,Community and Housing,REDACTED PERSONAL DATA,983071,26-Jun-23,1052.08,0,110403,Phys/Sens Placements - East,321000              Social Community Care Supplies & Services - Adult,R,2023,3
395,Community and Housing,REDACTED PERSONAL DATA,983073,26-Jun-23,1586.16,0,110403,Mental Health Placements,321000              Social Community Care Supplies & Services - Adult,R,2023,3
396,Community and Housing,REDACTED PERSONAL DATA,983079,26-Jun-23,780.68,0,110403,MH Housing Support Placements,321000              Social Community Care Supplies & Services - Adult,R,2023,3
397,Community and Housing,REDACTED PERSONAL DATA,983089,26-Jun-23,780.68,0,110403,MH Housing Support Placements,321000              Social Community Care Supplies & Services - Adult,R,2023,3
398,Community and Housing,REDACTED PERSONAL DATA,983090,26-Jun-23,780.68,0,110403,Mental Health Placements,321000              Social Community Care Supplies & Services - Adult,R,2023,3
399,Community and Housing,REDACTED PERSONAL DATA,983092,26-Jun-23,520.48,0,110403,MH Housing Support Placements,321000              Social Community Care Supplies & Services - Adult,R,2023,3
400,Community and Housing,REDACTED PERSONAL DATA,983059,26-Jun-23,780.68,0,110406,LD Housing Support Placements,321000              Social Community Care Supplies & Services - Adult,R,2023,3
401,"Children, Schools and Family",REDACTED PERSONAL DATA,973502,02-Jun-23,603.48,0,111277,Placements Under 18,321100              Social Community Care Supplies & Services - Children,R,2023,3
402,"Children, Schools and Family",REDACTED PERSONAL DATA,976949,09-Jun-23,514.26,0,111277,Placements Under 18,321100              Social Community Care Supplies & Services - Children,R,2023,3
403,"Children, Schools and Family",REDACTED PERSONAL DATA,979497,16-Jun-23,514.26,0,111277,Placements Under 18,321100              Social Community Care Supplies & Services - Children,R,2023,3
404,"Children, Schools and Family",REDACTED PERSONAL DATA,982511,23-Jun-23,514.26,0,111277,Placements Under 18,321100              Social Community Care Supplies & Services - Children,R,2023,3
405,"Children, Schools and Family",REDACTED PERSONAL DATA,984042,30-Jun-23,514.26,0,111277,Placements Under 18,321100              Social Community Care Supplies & Services - Children,R,2023,3
406,"Children, Schools and Family",REDACTED PERSONAL DATA,978487,15-Jun-23,9290.88,0,112660,Adoption placements,321100              Social Community Care Supplies & Services - Children,R,2023,3
407,Community and Housing,REDACTED PERSONAL DATA,979779,21-Jun-23,14250.44,0,113331,Learning Disabilities Placemnt,DIRECT PAYMENTS,R,2023,3
408,"Children, Schools and Family",Dicky Birds Pre Sch. Nurseries Dundonald,P1 23 SENDIF,26-Jun-23,2205,0,114041,EARLY YEARS NURSERY GRANTS,170000              Education,A,2023,3
409,"Children, Schools and Family",Dicky Birds Pre Sch. Nurseries Dundonald,P1 23 HEADCOUNT,27-Jun-23,10953.47,0,114041,EARLY YEARS NURSERY GRANTS,170000              Education,A,2023,3
410,Community and Housing,MIHOMECARE LIMITED,LIVE1W-270064,22-Jun-23,1368.5,0,114370,Learning Disabilities Placemnt,321000              Social Community Care Supplies & Services - Adult,A,2023,3
411,Community and Housing,MIHOMECARE LIMITED,LIVE1W-270033,13-Jun-23,1368.5,0,114370,Learning Disabilities Placemnt,321000              Social Community Care Supplies & Services - Adult,A,2023,3
412,Community and Housing,MIHOMECARE LIMITED,LIVE1W-270107,27-Jun-23,1368.5,0,114370,Learning Disabilities Placemnt,321000              Social Community Care Supplies & Services - Adult,A,2023,3
413,Community and Housing,REDACTED PERSONAL DATA,983060,26-Jun-23,780.68,0,114970,MH Housing Support Placements,321000              Social Community Care Supplies & Services - Adult,R,2023,3
414,Community and Housing,REDACTED PERSONAL DATA,983062,26-Jun-23,1857.56,0,114970,Mental Health Placements,321000              Social Community Care Supplies & Services - Adult,R,2023,3
415,Community and Housing,REDACTED PERSONAL DATA,983084,26-Jun-23,1052.08,0,114970,MH Housing Support Placements,321000              Social Community Care Supplies & Services - Adult,R,2023,3
416,Community and Housing,REDACTED PERSONAL DATA,983096,26-Jun-23,1586.2,0,114970,Mental Health Placements,321000              Social Community Care Supplies & Services - Adult,R,2023,3
417,Community and Housing,REDACTED PERSONAL DATA,983074,27-Jun-23,1040.92,0,114970,Hospital To Home,321000              Social Community Care Supplies & Services - Adult,R,2023,3
418,Community and Housing,ASTRA HOMES,MJ/36/23,12-Jun-23,1816.76,0,114991,Mental Health Placements,321000              Social Community Care Supplies & Services - Adult,A,2023,3
419,"Children, Schools and Family",The Eveline Day Nursery Grand Drive,P1 23 HEADCOUNT,27-Jun-23,11392.2,0,116784,EARLY YEARS NURSERY GRANTS,170000              Education,A,2023,3
420,Community and Housing,GRANGE COTTAGE LIMITED,975346,07-Jun-23,2680,0,117931,Older People Placements - East,321017              Nursing & Residential Care Homes,A,2023,3
421,Community and Housing,GRANGE COTTAGE LIMITED,975402,07-Jun-23,2680,0,117931,Older People Placements - East,321017              Nursing & Residential Care Homes,A,2023,3
422,Community and Housing,GRANGE COTTAGE LIMITED,975407,07-Jun-23,3200,0,117931,Older People Placements - East,321017              Nursing & Residential Care Homes,A,2023,3
423,Community and Housing,GRANGE COTTAGE LIMITED,975518,07-Jun-23,3600,0,117931,Older People Placements - East,321017              Nursing & Residential Care Homes,A,2023,3
424,Community and Housing,GRANGE COTTAGE LIMITED,975607,07-Jun-23,2680,0,117931,Older People Placements - East,321017              Nursing & Residential Care Homes,A,2023,3
425,Community and Housing,REDACTED PERSONAL DATA,983057,26-Jun-23,789.04,0,117970,MH Housing Support Placements,321000              Social Community Care Supplies & Services - Adult,R,2023,3
426,Community and Housing,REDACTED PERSONAL DATA,983067,26-Jun-23,1052.08,0,117970,Mental Health Placements,321000              Social Community Care Supplies & Services - Adult,R,2023,3
427,Community and Housing,REDACTED PERSONAL DATA,983082,26-Jun-23,1052.08,0,117970,Mental Health Placements,321000              Social Community Care Supplies & Services - Adult,R,2023,3
428,Community and Housing,L'ARCHE,975635,07-Jun-23,3050.24,0,118483,Learning Disabilities Placemnt,321017              Nursing & Residential Care Homes,A,2023,3
429,Community and Housing,Alexander House c/o Keychange Charity,975362,07-Jun-23,3100,0,119109,Older People Placements - East,321017              Nursing & Residential Care Homes,A,2023,3
430,Community and Housing,Alexander House c/o Keychange Charity,975419,07-Jun-23,6600,0,119109,Older People Placements - East,321017              Nursing & Residential Care Homes,A,2023,3
431,Community and Housing,Alexander House c/o Keychange Charity,975436,07-Jun-23,3220.32,0,119109,Older People Placements - East,321017              Nursing & Residential Care Homes,A,2023,3
432,Community and Housing,Alexander House c/o Keychange Charity,975645,07-Jun-23,4000,0,119109,Older People Placements - East,321017              Nursing & Residential Care Homes,A,2023,3
433,Community and Housing,Alexander House c/o Keychange Charity,975696,07-Jun-23,3840,0,119109,Older People Placements - East,321017              Nursing & Residential Care Homes,A,2023,3
434,Unassigned,Compass Contract Services (UK) Ltd,3000212581,06-Jun-23,17153.63,2858.94,119360,Corporate Services,110000              CATERING,A,2023,3
435,"Children, Schools and Family",PLAYDAYS DAY NURSERY,P1 23 HEADCOUNT,27-Jun-23,5352.48,0,121668,EARLY YEARS NURSERY GRANTS,170000              Education,A,2023,3
436,"Children, Schools and Family",REDACTED PERSONAL DATA,P1 23 HEADCOUNT,27-Jun-23,1375.56,0,122848,EARLY YEARS NURSERY GRANTS,200000              Financial Services,R,2023,3
437,"Children, Schools and Family",SHARED SERVICES CONNECTED LTD,40468,23-Jun-23,6447,0,123449,Placements Under 18,260000              Human Resources,A,2023,3
438,Environment and Regeneration,KINGDOM SECURITY LTD,SER-000418409NV,07-Jun-23,13872.89,2312.16,123458,Vestry Hall,260000              Human Resources,A,2023,3
439,Environment and Regeneration,KINGDOM SECURITY LTD,SER-00043989INV,22-Jun-23,12520.73,2086.74,123458,Vestry Hall,260000              Human Resources,A,2023,3
440,Environment and Regeneration,KINGDOM SECURITY LTD,SER-00043988INV,22-Jun-23,1237.49,206.25,123458,EDS2,260000              Human Resources,A,2023,3
441,Environment and Regeneration,KINGDOM SECURITY LTD,SER-00044234INV,22-Jun-23,2111.4,351.9,123458,Vestry Hall,260000              Human Resources,A,2023,3
442,Community and Housing,REDACTED PERSONAL DATA,980918,22-Jun-23,1334.84,0,124097,Older People Placements - East,DIRECT PAYMENTS,R,2023,3
443,Community and Housing,UNITED RESPONSE,975317,07-Jun-23,7605.02,1267.5,125227,Learning Disabilities Placemnt,321000              Social Community Care Supplies & Services - Adult,A,2023,3
444,Community and Housing,UNITED RESPONSE,975372,07-Jun-23,7605.02,1267.5,125227,Learning Disabilities Placemnt,321000              Social Community Care Supplies & Services - Adult,A,2023,3
445,Community and Housing,UNITED RESPONSE,975425,07-Jun-23,7605.02,1267.5,125227,Learning Disabilities Placemnt,321000              Social Community Care Supplies & Services - Adult,A,2023,3
446,Community and Housing,UNITED RESPONSE,975471,07-Jun-23,7605.02,1267.5,125227,Learning Disabilities Placemnt,321000              Social Community Care Supplies & Services - Adult,A,2023,3
447,Community and Housing,UNITED RESPONSE,975584,07-Jun-23,7605.02,1267.5,125227,Learning Disabilities Placemnt,321000              Social Community Care Supplies & Services - Adult,A,2023,3
448,Community and Housing,REDACTED PERSONAL DATA,979699,21-Jun-23,5441.22,0,125642,Phys/Sens Placements - East,DIRECT PAYMENTS,R,2023,3
449,Community and Housing,REDACTED PERSONAL DATA,979895,21-Jun-23,835.52,0,126189,Older People Placements - East,DIRECT PAYMENTS,R,2023,3
450,Capital,TRAFFICWATCH (UK) LTD.,3067,06-Jun-23,1050,175,127163,Highways & Footways,"390000              Works - Construction, Repair & Maintenance",A,2023,3
451,Community and Housing,REDACTED PERSONAL DATA,979655,21-Jun-23,668.24,0,127266,Phys/Sens Placements - East,DIRECT PAYMENTS,R,2023,3
452,"Children, Schools and Family",BLESSED LTD,BR02538,09-Jun-23,2032.8,338.8,130228,Non-Delegated Statements,170000              Education                                                                                 Confirmed,A,2023,3
453,Community and Housing,BUPA CARE HOMES,975316,07-Jun-23,6096.36,0,130491,Phys/Sens Placements - East,321017              Nursing & Residential Care Homes,A,2023,3
454,Community and Housing,BUPA CARE HOMES,975427,07-Jun-23,6050.76,0,130491,Phys/Sens Placements - East,321017              Nursing & Residential Care Homes,A,2023,3
455,"Children, Schools and Family",OAKTREE PRE-SCHOOL NURSERY,P1 23 HEADCOUNT,27-Jun-23,7104.78,0,131726,EARLY YEARS NURSERY GRANTS,170000              Education,A,2023,3
456,Corporate Services,EVAC AND CHAIR INTERNATIONAL LTD,INV156157,29-Jun-23,866.4,144.4,131743,Civic Centre,190000              Facilities & Management Services,A,2023,3
457,Environment and Regeneration,DOMINO 4 LIMITED,D.44277,08-Jun-23,775.5,129.25,132991,Waste Enforcement,190000              Facilities & Management Services                                                          Confirmed,A,2023,3
458,Unassigned,DOMINO 4 LIMITED,D.44284,02-Jun-23,1158,193,132991,Corporate Services,190000              Facilities & Management Services                                                          Confirmed,A,2023,3
459,Corporate Services,DOMINO 4 LIMITED,D.44285,19-Jun-23,1656,276,132991,Cost of Living Fund,190000              Facilities & Management Services                                                          Confirmed,A,2023,3
460,"Children, Schools and Family",NGA,112081,03-Jul-23,2310,0,133206, Governor Support,260000              Human Resources,A,2023,3
461,Community and Housing,VOYAGE CARE LTD,975395,07-Jun-23,6460.92,0,133700,Learning Disabilities Placemnt,321017              Nursing & Residential Care Homes,A,2023,3
462,Community and Housing,VOYAGE CARE LTD,975506,07-Jun-23,7721.6,0,133700,Learning Disabilities Placemnt,321017              Nursing & Residential Care Homes,A,2023,3
463,Community and Housing,VOYAGE CARE LTD,975582,07-Jun-23,7799.4,0,133700,Learning Disabilities Placemnt,321017              Nursing & Residential Care Homes,A,2023,3
464,Community and Housing,HOMECARE SERVICES LTD,29020,12-Jun-23,5474,0,134594,Phys/Sens Placements - East,321100              Social Community Care Supplies & Services - Children,A,2023,3
465,Community and Housing,Sunrise Rehabilitation Centre,975304,07-Jun-23,5213.88,0,135093,Learning Disabilities Placemnt,321017              Nursing & Residential Care Homes,A,2023,3
466,Community and Housing,Sunrise Rehabilitation Centre,975332,07-Jun-23,5213.88,0,135093,Learning Disabilities Placemnt,321017              Nursing & Residential Care Homes,A,2023,3
467,Community and Housing,Sunrise Rehabilitation Centre,975503,07-Jun-23,5161.52,0,135093,Learning Disabilities Placemnt,321017              Nursing & Residential Care Homes,A,2023,3
468,Community and Housing,Sunrise Rehabilitation Centre,975623,07-Jun-23,5043.72,0,135093,Learning Disabilities Placemnt,321017              Nursing & Residential Care Homes,A,2023,3
469,Community and Housing,Sunrise Rehabilitation Centre,975625,07-Jun-23,5174.6,0,135093,Learning Disabilities Placemnt,321017              Nursing & Residential Care Homes,A,2023,3
470,Community and Housing,Sunrise Rehabilitation Centre,975642,07-Jun-23,5213.88,0,135093,Learning Disabilities Placemnt,321017              Nursing & Residential Care Homes,A,2023,3
471,Community and Housing,Sunrise Rehabilitation Centre,975694,07-Jun-23,6102,0,135093,Learning Disabilities Placemnt,321017              Nursing & Residential Care Homes,A,2023,3
472,Community and Housing,Sunrise Rehabilitation Centre,975713,07-Jun-23,4363.08,0,135093,Learning Disabilities Placemnt,321017              Nursing & Residential Care Homes,A,2023,3
473,"Children, Schools and Family",Sunrise Rehabilitation Centre,980198,20-Jun-23,840,0,135093, Statementing-Transport,321017              Nursing & Residential Care Homes,A,2023,3
474,Community and Housing,SW LONDON ST GEORGES NHS TRUST,P0071072,27-Jun-23,7776.68,0,135195,Learning Disabilities Placemnt,310000              Healthcare,A,2023,3
475,Corporate Services,Lbox Communications (Beta Dist.South),336016,26-Jun-23,4767.18,794.53,135590,Printing,190000              Facilities & Management Services,A,2023,3
476,Corporate Services,Lbox Communications (Beta Dist.South),336194,03-Jul-23,1179.32,196.55,135590,Printing,190000              Facilities & Management Services,A,2023,3
477,Community and Housing,REDACTED PERSONAL DATA,979851,21-Jun-23,5781.42,0,135784,Phys/Sens Placements - East,DIRECT PAYMENTS,R,2023,3
478,"Children, Schools and Family",REDACTED PERSONAL DATA,983297,27-Jun-23,549.67,0,135795,Fostering Recruit/Assessment,321100              Social Community Care Supplies & Services - Children,R,2023,3
479,Community and Housing,VITALISE,975656,07-Jun-23,3089.14,0,135823,Learning Disabilities Placemnt,321017              Nursing & Residential Care Homes,A,2023,3
480,"Children, Schools and Family",Bright Horizons - Raynes Park,P1 23 HEADCOUNT,27-Jun-23,16131.36,0,136040,EARLY YEARS NURSERY GRANTS,170000              Education,A,2023,3
481,Unassigned,ZURICH INSURANCE GROUP,01E223/JUN2023,20-Jun-23,50000,0,137315,Corporate Services,200000              Financial Services,A,2023,3
482,Community and Housing,REDACTED PERSONAL DATA,979674,21-Jun-23,1078,0,139365,Phys/Sens Placements - East,DIRECT PAYMENTS,R,2023,3
483,"Children, Schools and Family",Building Blocks Childcare,P1 23 HEADCOUNT,27-Jun-23,4014.36,0,139778,EARLY YEARS NURSERY GRANTS,170000              Education,A,2023,3
484,Community and Housing,REDACTED PERSONAL DATA,980030,21-Jun-23,509.12,0,140662,Phys/Sens Placements - East,DIRECT PAYMENTS,R,2023,3
485,Community and Housing,REDACTED PERSONAL DATA,979693,21-Jun-23,5056.2,0,140759,Phys/Sens Placements - East,DIRECT PAYMENTS,R,2023,3
486,Community and Housing,SURREY AND BORDERS PARTNERSHIP,975460,07-Jun-23,11448.72,0,140911,Learning Disabilities Placemnt,321017              Nursing & Residential Care Homes,A,2023,3
487,Community and Housing,GARWOOD FOUNDATION,975340,07-Jun-23,2755.48,0,142358,Phys/Sens Placements - East,321017              Nursing & Residential Care Homes,A,2023,3
488,Community and Housing,GARWOOD FOUNDATION,975445,07-Jun-23,2755.48,0,142358,Older People Placements - East,321017              Nursing & Residential Care Homes,A,2023,3
489,Community and Housing,EVERGREEN PARTNERSHIP,975389,07-Jun-23,9675,0,142455,Learning Disabilities Placemnt,321017              Nursing & Residential Care Homes,A,2023,3
490,Community and Housing,EVERGREEN PARTNERSHIP,975409,07-Jun-23,6585.36,0,142455,Learning Disabilities Placemnt,321017              Nursing & Residential Care Homes,A,2023,3
491,Community and Housing,REDACTED PERSONAL DATA,983068,26-Jun-23,1052.08,0,143597,MH Housing Support Placements,321000              Social Community Care Supplies & Services - Adult,R,2023,3
492,Community and Housing,REDACTED PERSONAL DATA,983080,26-Jun-23,1315.04,0,143597,LD Housing Support Placements,321000              Social Community Care Supplies & Services - Adult,R,2023,3
493,Community and Housing,REDACTED PERSONAL DATA,983098,26-Jun-23,1462.32,0,143597,Learning Disabilities Placemnt,321000              Social Community Care Supplies & Services - Adult,R,2023,3
494,Corporate Services,REDACTED PERSONAL DATA,JR190,15-Jun-23,1188,0,143840,Translation Service,TRANSLATIONS,R,2023,3
495,Community and Housing,REDACTED PERSONAL DATA,979972,21-Jun-23,3731.72,0,144689,Learning Disabilities Placemnt,DIRECT PAYMENTS,R,2023,3
496,Environment and Regeneration,REDACTED PERSONAL DATA,1033,29-Jun-23,630,0,144799,Development Control,"390000              Works - Construction, Repair & Maintenance",R,2023,3
497,Community and Housing,CRAEGMOOR FACILITIES - WINDSOR,975441,07-Jun-23,6834.88,0,145152,Learning Disabilities Placemnt,321017              Nursing & Residential Care Homes,A,2023,3
498,"Children, Schools and Family",Date Valley School Trust,P1 23 HEADCOUNT,27-Jun-23,20071.8,0,145171,EARLY YEARS NURSERY GRANTS,170000              Education,A,2023,3
499,Community and Housing,REDACTED PERSONAL DATA,979777,21-Jun-23,4454.8,0,145882,Learning Disabilities Placemnt,DIRECT PAYMENTS,R,2023,3
500,"Children, Schools and Family",CAMBIAN AUTISM SERVICES LTD,CUI0001543,21-Jun-23,55294.34,0,146682,SEN Residential (DSG),321100              Social Community Care Supplies & Services - Children,A,2023,3
501,"Children, Schools and Family",WELFARE CALL (LAC) LTD,23LAC-076,05-Jun-23,26401.99,4400.33,146772,PupilPremium- Virtual School,321100              Social Community Care Supplies & Services - Children                                      Confimed,A,2023,3
502,"Children, Schools and Family",ACORN NURSERY,P1 23 HEADCOUNT,27-Jun-23,4707,0,147406,EARLY YEARS NURSERY GRANTS,200000              Financial Services,A,2023,3
503,Community and Housing,GENERATE,10274,05-Jun-23,1812.8,0,148332,Learning Disabilities Placemnt,321000              Social Community Care Supplies & Services - Adult,A,2023,3
504,Community and Housing,GENERATE,10591,05-Jun-23,2698.6,0,148332,Learning Disabilities Placemnt,321000              Social Community Care Supplies & Services - Adult,A,2023,3
505,Community and Housing,GENERATE,10307,05-Jun-23,3419.6,0,148332,Learning Disabilities Placemnt,321000              Social Community Care Supplies & Services - Adult,A,2023,3
506,Community and Housing,GENERATE,10470,05-Jun-23,2513.2,0,148332,Learning Disabilities Placemnt,321000              Social Community Care Supplies & Services - Adult,A,2023,3
507,Community and Housing,GENERATE,10748,05-Jun-23,1957,0,148332,Learning Disabilities Placemnt,321000              Social Community Care Supplies & Services - Adult,A,2023,3
508,Community and Housing,CHICHESTER HALL CARE HOME LTD,975653,07-Jun-23,2637.2,0,148358,Older People Placements - East,321017              Nursing & Residential Care Homes,A,2023,3
509,"Children, Schools and Family",Dicky Birds Pre Sch. Nurseries Queens Rd,P1 23 HEADCOUNT,27-Jun-23,9744.48,0,148567,EARLY YEARS NURSERY GRANTS,200000              Financial Services,A,2023,3
510,"Children, Schools and Family",MARIA MONTESSORI CHILDREN'S,P1 23 HEADCOUNT,27-Jun-23,5133.21,0,148568,EARLY YEARS NURSERY GRANTS,200000              Financial Services,A,2023,3
511,"Children, Schools and Family",REDACTED PERSONAL DATA,P1 23 HEADCOUNT,27-Jun-23,1063.8,0,149524,EARLY YEARS NURSERY GRANTS,321100              Social Community Care Supplies & Services - Children                                      Confirmed,R,2023,3
512,"Children, Schools and Family",DONHEAD SCHOOL,P1 23 HEADCOUNT,27-Jun-23,3058.56,0,149760,EARLY YEARS NURSERY GRANTS,170000              Education,A,2023,3
513,Community and Housing,YMCA St Pauls' Group,834,09-Jun-23,90223,0,149961,Supporting People (HRS),321000              Social Community Care Supplies & Services - Adult,A,2023,3
514,Unassigned,Canterbury Campus,SCHOOLS 2324/3 A,07-Jun-23,218084.74,0,150054,Schools,170000              Education,A,2023,3
515,Unassigned,BARNETT WADDINGHAM LLP,T23/8752,03-Jul-23,12047.5,2007.92,150927,Governance & Oversight Cost,PENSIONS,A,2023,3
516,Community and Housing,REDACTED PERSONAL DATA,979715,21-Jun-23,2544.32,0,151002,Older People Placements - East,DIRECT PAYMENTS,R,2023,3
517,Community and Housing,AIMS CARE PARTNERSHIP,975392,07-Jun-23,10560,0,151592,Learning Disabilities Placemnt,321017              Nursing & Residential Care Homes,A,2023,3
518,Community and Housing,AIMS CARE PARTNERSHIP,975429,07-Jun-23,3114.72,0,151592,Learning Disabilities Placemnt,321017              Nursing & Residential Care Homes,A,2023,3
519,Community and Housing,REDACTED PERSONAL DATA,979885,21-Jun-23,2333.6,0,151790,Older People Placements - East,DIRECT PAYMENTS,R,2023,3
520,Community and Housing,HOLISTIC COMMUNITY CARE - FC,M232401/13,07-Jun-23,663.73,0,151996,Older People Placements - East,321000              Social Community Care Supplies & Services - Adult,A,2023,3
521,Community and Housing,HOLISTIC COMMUNITY CARE - FC,M232401/5,07-Jun-23,962.56,0,151996,Older People Placements - East,321000              Social Community Care Supplies & Services - Adult,A,2023,3
522,Community and Housing,HOLISTIC COMMUNITY CARE - FC,M232401/9,07-Jun-23,768.48,0,151996,Phys/Sens Placements - East,321000              Social Community Care Supplies & Services - Adult,A,2023,3
523,Community and Housing,HOLISTIC COMMUNITY CARE - FC,M232401/10,07-Jun-23,692.39,0,151996,Older People Placements - East,321000              Social Community Care Supplies & Services - Adult,A,2023,3
524,Community and Housing,HOLISTIC COMMUNITY CARE - FC,M232401/2,07-Jun-23,630.5,0,151996,Older People Placements - East,321000              Social Community Care Supplies & Services - Adult,A,2023,3
525,Community and Housing,HOLISTIC COMMUNITY CARE - FC,M232401/14,07-Jun-23,1201.9,0,151996,Older People Placements - East,321000              Social Community Care Supplies & Services - Adult,A,2023,3
526,Community and Housing,HOLISTIC COMMUNITY CARE - FC,M232401/25,07-Jun-23,9710.22,0,151996,Older People Placements - East,321000              Social Community Care Supplies & Services - Adult,A,2023,3
527,Community and Housing,HOLISTIC COMMUNITY CARE - FC,M232401/1,07-Jun-23,3114.21,0,151996,Older People Placements - East,321000              Social Community Care Supplies & Services - Adult,A,2023,3
528,Community and Housing,HOLISTIC COMMUNITY CARE - FC,M232401/18,07-Jun-23,954.19,0,151996,Older People Placements - East,321000              Social Community Care Supplies & Services - Adult,A,2023,3
529,Community and Housing,HOLISTIC COMMUNITY CARE - FC,M232401/4,07-Jun-23,2150.17,0,151996,Older People Placements - East,321000              Social Community Care Supplies & Services - Adult,A,2023,3
530,Community and Housing,HOLISTIC COMMUNITY CARE - FC,M232401/11,07-Jun-23,742.6,0,151996,Older People Placements - East,321000              Social Community Care Supplies & Services - Adult,A,2023,3
531,Community and Housing,HOLISTIC COMMUNITY CARE - FC,M232401/15,07-Jun-23,845.07,0,151996,Older People Placements - East,321000              Social Community Care Supplies & Services - Adult,A,2023,3
532,Community and Housing,HOLISTIC COMMUNITY CARE - FC,M232401/16,07-Jun-23,1330.54,0,151996,Older People Placements - East,321000              Social Community Care Supplies & Services - Adult,A,2023,3
533,Community and Housing,HOLISTIC COMMUNITY CARE - FC,M232401/22,07-Jun-23,731.7,0,151996,Older People Placements - East,321000              Social Community Care Supplies & Services - Adult,A,2023,3
534,Community and Housing,HOLISTIC COMMUNITY CARE - FC,M232401/7,07-Jun-23,1690.79,0,151996,Older People Placements - East,321000              Social Community Care Supplies & Services - Adult,A,2023,3
535,Community and Housing,HOLISTIC COMMUNITY CARE - FC,3667,08-Jun-23,5080,0,151996,Older People Placements - East,321000              Social Community Care Supplies & Services - Adult,A,2023,3
536,Community and Housing,HOLISTIC COMMUNITY CARE - FC,LAMBETH P02/13,14-Jun-23,652.56,0,151996,Older People Placements - East,321000              Social Community Care Supplies & Services - Adult,A,2023,3
537,Community and Housing,HOLISTIC COMMUNITY CARE - FC,LAMBETH P02/4,14-Jun-23,1029.56,0,151996,Older People Placements - East,321000              Social Community Care Supplies & Services - Adult,A,2023,3
538,Community and Housing,HOLISTIC COMMUNITY CARE - FC,LAMBETH P02/8,14-Jun-23,818.26,0,151996,Phys/Sens Placements - East,321000              Social Community Care Supplies & Services - Adult,A,2023,3
539,Community and Housing,HOLISTIC COMMUNITY CARE - FC,LAMBETH P02/10,14-Jun-23,711.39,0,151996,Older People Placements - East,321000              Social Community Care Supplies & Services - Adult,A,2023,3
540,Community and Housing,HOLISTIC COMMUNITY CARE - FC,LAMBETH P02/2,14-Jun-23,683.71,0,151996,Older People Placements - East,321000              Social Community Care Supplies & Services - Adult,A,2023,3
541,Community and Housing,HOLISTIC COMMUNITY CARE - FC,LAMBETH P02/14,14-Jun-23,1184.09,0,151996,Older People Placements - East,321000              Social Community Care Supplies & Services - Adult,A,2023,3
542,Community and Housing,HOLISTIC COMMUNITY CARE - FC,LAMBETH P02/25,14-Jun-23,13724.17,0,151996,Older People Placements - East,321000              Social Community Care Supplies & Services - Adult,A,2023,3
543,Community and Housing,HOLISTIC COMMUNITY CARE - FC,LAMBETH P02/1,14-Jun-23,3230.92,0,151996,Older People Placements - East,321000              Social Community Care Supplies & Services - Adult,A,2023,3
544,Community and Housing,HOLISTIC COMMUNITY CARE - FC,LAMBETH P02/18,14-Jun-23,1047.88,0,151996,Older People Placements - East,321000              Social Community Care Supplies & Services - Adult,A,2023,3
545,Community and Housing,HOLISTIC COMMUNITY CARE - FC,LAMBETH P02/3,14-Jun-23,2263.03,0,151996,Older People Placements - East,321000              Social Community Care Supplies & Services - Adult,A,2023,3
546,Community and Housing,HOLISTIC COMMUNITY CARE - FC,LAMBETH P02/11,14-Jun-23,782.59,0,151996,Older People Placements - East,321000              Social Community Care Supplies & Services - Adult,A,2023,3
547,Community and Housing,HOLISTIC COMMUNITY CARE - FC,LAMBETH P02/15,14-Jun-23,904.98,0,151996,Older People Placements - East,321000              Social Community Care Supplies & Services - Adult,A,2023,3
548,Community and Housing,HOLISTIC COMMUNITY CARE - FC,LAMBETH P02/16,14-Jun-23,1534.7,0,151996,Older People Placements - East,321000              Social Community Care Supplies & Services - Adult,A,2023,3
549,Community and Housing,HOLISTIC COMMUNITY CARE - FC,LAMBETH P02/22,14-Jun-23,814.04,0,151996,Older People Placements - East,321000              Social Community Care Supplies & Services - Adult,A,2023,3
550,Community and Housing,HOLISTIC COMMUNITY CARE - FC,LAMBETH P02/6,14-Jun-23,1568.56,0,151996,Older People Placements - East,321000              Social Community Care Supplies & Services - Adult,A,2023,3
551,Community and Housing,HOLISTIC COMMUNITY CARE - FC,LAMBETH P03/13,29-Jun-23,676.26,0,151996,Older People Placements - East,321000              Social Community Care Supplies & Services - Adult,A,2023,3
552,Community and Housing,HOLISTIC COMMUNITY CARE - FC,LAMBETH P03/4,29-Jun-23,1043.72,0,151996,Older People Placements - East,321000              Social Community Care Supplies & Services - Adult,A,2023,3
553,Community and Housing,HOLISTIC COMMUNITY CARE - FC,LAMBETH P03/7,29-Jun-23,825.55,0,151996,Phys/Sens Placements - East,321000              Social Community Care Supplies & Services - Adult,A,2023,3
554,Community and Housing,HOLISTIC COMMUNITY CARE - FC,LAMBETH P03/9,29-Jun-23,817.59,0,151996,Older People Placements - East,321000              Social Community Care Supplies & Services - Adult,A,2023,3
555,Community and Housing,HOLISTIC COMMUNITY CARE - FC,LAMBETH P03/2,29-Jun-23,667.53,0,151996,Older People Placements - East,321000              Social Community Care Supplies & Services - Adult,A,2023,3
556,Community and Housing,HOLISTIC COMMUNITY CARE - FC,LAMBETH P03/14,29-Jun-23,1368.33,0,151996,Older People Placements - East,321000              Social Community Care Supplies & Services - Adult,A,2023,3
557,Community and Housing,HOLISTIC COMMUNITY CARE - FC,LAMBETH P03/24,29-Jun-23,13917.92,0,151996,Older People Placements - East,321000              Social Community Care Supplies & Services - Adult,A,2023,3
558,Community and Housing,HOLISTIC COMMUNITY CARE - FC,LAMBETH P03/8,29-Jun-23,1312.43,0,151996,Older People Placements - East,321000              Social Community Care Supplies & Services - Adult,A,2023,3
559,Community and Housing,HOLISTIC COMMUNITY CARE - FC,LAMBETH P03/11,29-Jun-23,1474.83,0,151996,Older People Placements - East,321000              Social Community Care Supplies & Services - Adult,A,2023,3
560,Community and Housing,HOLISTIC COMMUNITY CARE - FC,LAMBETH P03/1,29-Jun-23,3178.16,0,151996,Older People Placements - East,321000              Social Community Care Supplies & Services - Adult,A,2023,3
561,Community and Housing,HOLISTIC COMMUNITY CARE - FC,LAMBETH P03/18,29-Jun-23,1052.87,0,151996,Older People Placements - East,321000              Social Community Care Supplies & Services - Adult,A,2023,3
562,Community and Housing,HOLISTIC COMMUNITY CARE - FC,LAMBETH P03/3,29-Jun-23,2272.55,0,151996,Older People Placements - East,321000              Social Community Care Supplies & Services - Adult,A,2023,3
563,Community and Housing,HOLISTIC COMMUNITY CARE - FC,LAMBETH P03/10,29-Jun-23,837.67,0,151996,Older People Placements - East,321000              Social Community Care Supplies & Services - Adult,A,2023,3
564,Community and Housing,HOLISTIC COMMUNITY CARE - FC,LAMBETH P03/15,29-Jun-23,906.65,0,151996,Older People Placements - East,321000              Social Community Care Supplies & Services - Adult,A,2023,3
565,Community and Housing,HOLISTIC COMMUNITY CARE - FC,LAMBETH P03/16,29-Jun-23,1452.71,0,151996,Older People Placements - East,321000              Social Community Care Supplies & Services - Adult,A,2023,3
566,Community and Housing,HOLISTIC COMMUNITY CARE - FC,LAMBETH P03/21,29-Jun-23,825.23,0,151996,Older People Placements - East,321000              Social Community Care Supplies & Services - Adult,A,2023,3
567,Community and Housing,HOLISTIC COMMUNITY CARE - FC,LAMBETH P03/6,29-Jun-23,1822.06,0,151996,Older People Placements - East,321000              Social Community Care Supplies & Services - Adult,A,2023,3
568,Community and Housing,HOLISTIC COMMUNITY CARE - FC,3485,30-Jun-23,5080,0,151996,Older People Placements - East,321000              Social Community Care Supplies & Services - Adult,A,2023,3
569,Community and Housing,REDACTED PERSONAL DATA,980019,21-Jun-23,7434.32,0,152015,Older People Placements - East,321000              Social Community Care Supplies & Services - Adult,R,2023,3
570,Corporate Services,WANDSWORTH CORPORATION,20146925,08-Jun-23,1086.08,0,152180,SLLP Client Income,OLA,A,2023,3
571,Unassigned,WANDSWORTH CORPORATION,2101162973,03-Jul-23,8296,1382.67,152180,Administrative Cost,OLA,A,2023,3
572,Community and Housing,REDACTED PERSONAL DATA,979919,21-Jun-23,954.6,0,152709,Older People Placements - East,DIRECT PAYMENTS,R,2023,3
573,Community and Housing,REDACTED PERSONAL DATA,979784,21-Jun-23,1909.2,0,152990,Learning Disabilities Placemnt,DIRECT PAYMENTS,R,2023,3
574,Community and Housing,LYNTON HALL NURSING HOME,975283,12-Jun-23,3102.04,0,153795,Older People Placements - East,321017              Nursing & Residential Care Homes,A,2023,3
575,Community and Housing,LYNTON HALL NURSING HOME,975289,12-Jun-23,2988.48,0,153795,Older People Placements - East,321017              Nursing & Residential Care Homes,A,2023,3
576,Community and Housing,LYNTON HALL NURSING HOME,975469,12-Jun-23,3249.6,0,153795,Older People Placements - East,321017              Nursing & Residential Care Homes,A,2023,3
577,Community and Housing,C AND P HYGIENE,523055,19-Jun-23,840,140,154469,Older People Placements - East,130000              Cleaning & Janitorial,A,2023,3
578,Corporate Services,MBL SEMINARS LTD,1294165,19-Jun-23,3594,599,154631,Legal Shared Service,260000              Human Resources,A,2023,3
579,Unassigned,HARRIS ACADEMY MERTON,SCHOOLS 2324/3 A,07-Jun-23,60696.86,0,155274,Schools,170000              Education,A,2023,3
580,Unassigned,CFBT SCHOOLS TRUST,SCHOOLS 2324/3 A,07-Jun-23,26579.15,0,155275,Schools,170000              Education,A,2023,3
581,"Children, Schools and Family",BEDELSFORD SCHOOL,D1104104884,03-Jul-23,94048.75,0,156132,Non-Delegated Statements,170000              Education,A,2023,3
582,Community and Housing,IMAGINE INDEPENDENCE,N00000010545,19-Jun-23,7300,0,158720,Outbreak Contain Mngment Grant,321000              Social Community Care Supplies & Services - Adult,A,2023,3
583,Environment and Regeneration,LONDON BOROUGH OF CAMDEN,24847864,20-Jun-23,5500,0,159338,Private Sector Housing,OLA,A,2023,3
584,Community and Housing,REDACTED PERSONAL DATA,980958,22-Jun-23,871.48,0,159542,Older People Placements - East,DIRECT PAYMENTS,R,2023,3
585,Corporate Services,RECOGNITION EXPRESS,5947,22-Jun-23,1992,332,159730,Printing,190000              Facilities & Management Services,A,2023,3
586,Community and Housing,REDACTED PERSONAL DATA,980994,22-Jun-23,3220,0,160044,Phys/Sens Placements - East,DIRECT PAYMENTS,R,2023,3
587,Community and Housing,METROPOLITAN THAMES VALLEY,3063751SM,19-Jun-23,2171,0,160080,Learning Disabilities Placemnt,321017              Nursing & Residential Care Homes,A,2023,3
588,Community and Housing,METROPOLITAN THAMES VALLEY,3063751LD,19-Jun-23,2171,0,160080,Learning Disabilities Placemnt,321017              Nursing & Residential Care Homes,A,2023,3
589,Community and Housing,METROPOLITAN THAMES VALLEY,3063751SC,19-Jun-23,2171,0,160080,Learning Disabilities Placemnt,321017              Nursing & Residential Care Homes,A,2023,3
590,Community and Housing,METROPOLITAN THAMES VALLEY,3063751GB,19-Jun-23,2171,0,160080,Learning Disabilities Placemnt,321017              Nursing & Residential Care Homes,A,2023,3
591,Corporate Services,TROWERS AND HAMLINS,11-208178,28-Jun-23,9300,1550,160116,SLLP - Disbursements,280000              Legal Services                                                                            Confirmed,A,2023,3
592,"Children, Schools and Family",REDACTED PERSONAL DATA,980386,20-Jun-23,1082.6,0,160147,Child Disabilities - Placement,CSF-DIRECT PAYMENTS,R,2023,3
593,Community and Housing,REDACTED PERSONAL DATA,979808,21-Jun-23,1166.76,0,160244,Phys/Sens Placements - East,DIRECT PAYMENTS,R,2023,3
594,Community and Housing,REDACTED PERSONAL DATA,979749,21-Jun-23,604.6,0,160273,Learning Disabilities Placemnt,DIRECT PAYMENTS,R,2023,3
595,Community and Housing,REDACTED PERSONAL DATA,979864,21-Jun-23,889.96,0,160279,Phys/Sens Placements - East,DIRECT PAYMENTS,R,2023,3
596,"Children, Schools and Family",Fleet Educ.Services Ltd T/A Fleet Tutors,24545,12-Jun-23,2952,492,160300,Non-Delegated Statements,260000              Human Resources,A,2023,3
597,"Children, Schools and Family",Fleet Educ.Services Ltd T/A Fleet Tutors,24546,12-Jun-23,3129.6,521.6,160300,Non-Delegated Statements,260000              Human Resources,A,2023,3
598,"Children, Schools and Family",Fleet Educ.Services Ltd T/A Fleet Tutors,24857,15-Jun-23,1200,200,160300,Non-Delegated Statements,260000              Human Resources,A,2023,3
599,Community and Housing,REDACTED PERSONAL DATA,979638,21-Jun-23,1360.35,0,160450,Phys/Sens Placements - East,DIRECT PAYMENTS,R,2023,3
600,"Children, Schools and Family",THE NATIONAL FOSTERING AGENCY,449705,22-Jun-23,3295.62,0,160464,Placements Under 18,321100              Social Community Care Supplies & Services - Children,A,2023,3
601,"Children, Schools and Family",THE NATIONAL FOSTERING AGENCY,426695,23-Jun-23,1972.01,0,160464,Placements Under 18,321100              Social Community Care Supplies & Services - Children,A,2023,3
602,Community and Housing,THE AVENUES TRUST GROUP,1003481,03-Jul-23,9463.44,0,160730,Learning Disabilities Placemnt,321017              Nursing & Residential Care Homes,A,2023,3
603,Environment and Regeneration,CITY OF LONDON CORPORATION,4342542,28-Jun-23,534.43,89.07,160895,Licensing - RSP,180000              Environmental Services,A,2023,3
604,"Children, Schools and Family",REDACTED PERSONAL DATA,973464,02-Jun-23,637.31,0,161094,UASC LAC Under 18,321100              Social Community Care Supplies & Services - Children,R,2023,3
605,"Children, Schools and Family",REDACTED PERSONAL DATA,973510,02-Jun-23,637.31,0,161094,UASC LAC Under 18,321100              Social Community Care Supplies & Services - Children,R,2023,3
606,"Children, Schools and Family",REDACTED PERSONAL DATA,976915,09-Jun-23,548.09,0,161094,UASC LAC Under 18,321100              Social Community Care Supplies & Services - Children,R,2023,3
607,"Children, Schools and Family",REDACTED PERSONAL DATA,976958,09-Jun-23,548.09,0,161094,UASC LAC Under 18,321100              Social Community Care Supplies & Services - Children,R,2023,3
608,"Children, Schools and Family",REDACTED PERSONAL DATA,979461,16-Jun-23,548.09,0,161094,UASC LAC Under 18,321100              Social Community Care Supplies & Services - Children,R,2023,3
609,"Children, Schools and Family",REDACTED PERSONAL DATA,979505,16-Jun-23,548.09,0,161094,UASC LAC Under 18,321100              Social Community Care Supplies & Services - Children,R,2023,3
610,"Children, Schools and Family",REDACTED PERSONAL DATA,982476,23-Jun-23,548.09,0,161094,UASC LAC Under 18,321100              Social Community Care Supplies & Services - Children,R,2023,3
611,"Children, Schools and Family",REDACTED PERSONAL DATA,982519,23-Jun-23,548.09,0,161094,UASC LAC Under 18,321100              Social Community Care Supplies & Services - Children,R,2023,3
612,"Children, Schools and Family",REDACTED PERSONAL DATA,984008,30-Jun-23,548.09,0,161094,UASC LAC Under 18,321100              Social Community Care Supplies & Services - Children,R,2023,3
613,"Children, Schools and Family",REDACTED PERSONAL DATA,984049,30-Jun-23,548.09,0,161094,UASC LAC Under 18,321100              Social Community Care Supplies & Services - Children,R,2023,3
614,"Children, Schools and Family",CAPEL MANOR COLLEGE,120266,26-Jun-23,638.95,0,161418,Non-Maintained Post 16 SEN,170000              Education,A,2023,3
615,"Children, Schools and Family",CAPEL MANOR COLLEGE,120267,26-Jun-23,880.28,0,161418,Non-Maintained Post 16 SEN,170000              Education,A,2023,3
616,"Children, Schools and Family",CAPEL MANOR COLLEGE,120265,26-Jun-23,4879.03,0,161418,Non-Maintained Post 16 SEN,170000              Education,A,2023,3
617,Community and Housing,OTTAWAY STRATEGIC MANAGEMENT,INV3035,07-Jun-23,18000,3000,162092,Outbreak Contain Mngment Grant,310000              Healthcare,A,2023,3
618,Environment and Regeneration,QUARTIX  LTD,727966,26-Jun-23,1053,175.5,162608,Civil Enforcement Officers,270000              Information Communication Technology,A,2023,3
619,Community and Housing,REDACTED PERSONAL DATA,979710,21-Jun-23,1562.56,0,163392,Learning Disabilities Placemnt,DIRECT PAYMENTS,R,2023,3
620,Environment and Regeneration,D N H PROPERTY MAINTENANCE,2140DNH,19-Jun-23,2574,429,163395,EDS2,"390000              Works - Construction, Repair & Maintenance",C,2023,3
621,Environment and Regeneration,D N H PROPERTY MAINTENANCE,2216DNH,19-Jun-23,645.6,107.6,163395,Vestry Hall,"390000              Works - Construction, Repair & Maintenance",C,2023,3
622,Community and Housing,Tunstall Healthcare (UK) Limited,CD970017803,15-Jun-23,2160,360,163420,Hospital Discharge Grant,190000              Facilities & Management Services,A,2023,3
623,"Children, Schools and Family",REDACTED PERSONAL DATA,973443,02-Jun-23,548.09,0,163471,UASC LAC Under 18,200000              Financial Services,R,2023,3
624,"Children, Schools and Family",REDACTED PERSONAL DATA,973524,02-Jun-23,785.52,0,163471,Placements Under 18,200000              Financial Services,R,2023,3
625,"Children, Schools and Family",REDACTED PERSONAL DATA,973535,02-Jun-23,692.46,0,163471,Placements Under 18,200000              Financial Services,R,2023,3
626,"Children, Schools and Family",REDACTED PERSONAL DATA,976897,09-Jun-23,548.09,0,163471,UASC LAC Under 18,200000              Financial Services,R,2023,3
627,"Children, Schools and Family",REDACTED PERSONAL DATA,976971,09-Jun-23,785.52,0,163471,Placements Under 18,200000              Financial Services,R,2023,3
628,"Children, Schools and Family",REDACTED PERSONAL DATA,976981,09-Jun-23,692.46,0,163471,Placements Under 18,200000              Financial Services,R,2023,3
629,"Children, Schools and Family",REDACTED PERSONAL DATA,979443,16-Jun-23,548.09,0,163471,UASC LAC Under 18,200000              Financial Services,R,2023,3
630,"Children, Schools and Family",REDACTED PERSONAL DATA,979518,16-Jun-23,785.52,0,163471,Placements Under 18,200000              Financial Services,R,2023,3
631,"Children, Schools and Family",REDACTED PERSONAL DATA,979528,16-Jun-23,692.46,0,163471,Placements Under 18,200000              Financial Services,R,2023,3
632,"Children, Schools and Family",REDACTED PERSONAL DATA,982458,23-Jun-23,548.09,0,163471,UASC LAC Under 18,200000              Financial Services,R,2023,3
633,"Children, Schools and Family",REDACTED PERSONAL DATA,982532,23-Jun-23,785.52,0,163471,Placements Under 18,200000              Financial Services,R,2023,3
634,"Children, Schools and Family",REDACTED PERSONAL DATA,982542,23-Jun-23,692.46,0,163471,Placements Under 18,200000              Financial Services,R,2023,3
635,"Children, Schools and Family",REDACTED PERSONAL DATA,983989,30-Jun-23,548.09,0,163471,UASC LAC Under 18,200000              Financial Services,R,2023,3
636,"Children, Schools and Family",REDACTED PERSONAL DATA,984062,30-Jun-23,785.52,0,163471,Placements Under 18,200000              Financial Services,R,2023,3
637,"Children, Schools and Family",REDACTED PERSONAL DATA,984071,30-Jun-23,692.46,0,163471,Placements Under 18,200000              Financial Services,R,2023,3
638,"Children, Schools and Family",LA PETITE FLEUR PRE-SCHOOL,P1 23 HEADCOUNT,27-Jun-23,13116.24,0,163698,EARLY YEARS NURSERY GRANTS,200000              Financial Services,A,2023,3
639,Community and Housing,Active Prospects,975318,07-Jun-23,6103.76,0,163859,Learning Disabilities Placemnt,321017              Nursing & Residential Care Homes,A,2023,3
640,Community and Housing,REDACTED PERSONAL DATA,980927,22-Jun-23,1023.28,0,163971,Older People Placements - East,DIRECT PAYMENTS,R,2023,3
641,"Children, Schools and Family",BUMBLE BEES'S DAY NURSERY-COCC,P1 23 HEADCOUNT,27-Jun-23,5143.32,0,164240,EARLY YEARS NURSERY GRANTS,200000              Financial Services,A,2023,3
642,Corporate Services,ZURICH INSURANCE COMPANY,20571,16-Jun-23,61510.56,10251.76,164284,Insurance Premiums & Funding,200000              Financial Services,A,2023,3
643,Corporate Services,ZURICH INSURANCE COMPANY,HB01E223-0211,14-Jun-23,3374.22,0,164284,Insurance Premiums & Funding,200000              Financial Services,A,2023,3
644,Corporate Services,ZURICH INSURANCE COMPANY,TP01E223-0223,26-Jun-23,562.8,0,164284,Insurance Premiums & Funding,200000              Financial Services,A,2023,3
645,Corporate Services,ZURICH INSURANCE COMPANY,407000122,27-Jun-23,17869.62,2978.27,164284,Insurance Premiums & Funding,200000              Financial Services,A,2023,3
646,Corporate Services,ZURICH INSURANCE COMPANY,QLA01E2230633-00,26-Jun-23,48901.59,0,164284,Insurance Premiums & Funding,200000              Financial Services,A,2023,3
647,Community and Housing,LONDON COUNCILS,1ST QTR 22/23,13-Jun-23,1176694,0,164343,Concessionary Fares,OLA,A,2023,3
648,Community and Housing,LONDON COUNCILS,4339512,16-Jun-23,228568,0,164343,Concessionary Fares,OLA,A,2023,3
649,Community and Housing,LONDON COUNCILS,4342321,26-Jun-23,12017,0,164343,Concessionary Fares,OLA,A,2023,3
650,Environment and Regeneration,LONDON COUNCILS,4337076,03-Jul-23,3500,0,164343,Senior Management & Support,OLA,A,2023,3
651,Community and Housing,ENTERPRISE CARE SUPPORT LTD,20493,02-Jun-23,1190.12,0,164431,Older People Placements - East,321000              Social Community Care Supplies & Services - Adult,A,2023,3
652,Community and Housing,ENTERPRISE CARE SUPPORT LTD,20492,02-Jun-23,915.76,0,164431,Older People Placements - East,321000              Social Community Care Supplies & Services - Adult,A,2023,3
653,Community and Housing,ENTERPRISE CARE SUPPORT LTD,20491,02-Jun-23,1322.12,0,164431,Older People Placements - East,321000              Social Community Care Supplies & Services - Adult,A,2023,3
654,Community and Housing,ENTERPRISE CARE SUPPORT LTD,20489,02-Jun-23,3096.48,0,164431,Older People Placements - East,321000              Social Community Care Supplies & Services - Adult,A,2023,3
655,Community and Housing,ENTERPRISE CARE SUPPORT LTD,20482,05-Jun-23,783.42,0,164431,Learning Disabilities Placemnt,321000              Social Community Care Supplies & Services - Adult,A,2023,3
656,Community and Housing,ENTERPRISE CARE SUPPORT LTD,20479,05-Jun-23,832,0,164431,Older People Placements - East,321000              Social Community Care Supplies & Services - Adult,A,2023,3
657,Community and Housing,ENTERPRISE CARE SUPPORT LTD,20478,05-Jun-23,753.86,0,164431,Older People Placements - East,321000              Social Community Care Supplies & Services - Adult,A,2023,3
658,Community and Housing,ENTERPRISE CARE SUPPORT LTD,20477,05-Jun-23,589.62,0,164431,Older People Placements - East,321000              Social Community Care Supplies & Services - Adult,A,2023,3
659,Community and Housing,ENTERPRISE CARE SUPPORT LTD,20470,14-Jun-23,3910.74,0,164431,Older People Placements - East,321000              Social Community Care Supplies & Services - Adult,A,2023,3
660,Community and Housing,ENTERPRISE CARE SUPPORT LTD,20475-PG,14-Jun-23,1074.36,0,164431,Older People Placements - East,321000              Social Community Care Supplies & Services - Adult,A,2023,3
661,Community and Housing,ENTERPRISE CARE SUPPORT LTD,20474,14-Jun-23,832,0,164431,Older People Placements - East,321000              Social Community Care Supplies & Services - Adult,A,2023,3
662,Community and Housing,ENTERPRISE CARE SUPPORT LTD,20471,14-Jun-23,3096.48,0,164431,Older People Placements - East,321000              Social Community Care Supplies & Services - Adult,A,2023,3
663,Community and Housing,ENTERPRISE CARE SUPPORT LTD,20476,30-Jun-23,1177.65,0,164431,Older People Placements - East,321000              Social Community Care Supplies & Services - Adult,A,2023,3
664,Community and Housing,ENTERPRISE CARE SUPPORT LTD,20645,30-Jun-23,819.51,0,164431,Older People Placements - East,321000              Social Community Care Supplies & Services - Adult,A,2023,3
665,Community and Housing,ENTERPRISE CARE SUPPORT LTD,20634,30-Jun-23,1175.22,0,164431,Older People Placements - East,321000              Social Community Care Supplies & Services - Adult,A,2023,3
666,Community and Housing,ENTERPRISE CARE SUPPORT LTD,20635,30-Jun-23,2350.44,0,164431,Older People Placements - East,321000              Social Community Care Supplies & Services - Adult,A,2023,3
667,Community and Housing,ENTERPRISE CARE SUPPORT LTD,20637,30-Jun-23,1008.78,0,164431,Mental Health Placements,321000              Social Community Care Supplies & Services - Adult,A,2023,3
668,Community and Housing,ENTERPRISE CARE SUPPORT LTD,20632,30-Jun-23,1496.68,0,164431,Older People Placements - East,321000              Social Community Care Supplies & Services - Adult,A,2023,3
669,Community and Housing,BUPA CARE SERVICES BACS RECEIP,975515,07-Jun-23,8580.84,0,164629,Older People Placements - East,321017              Nursing & Residential Care Homes,A,2023,3
670,Community and Housing,REDACTED PERSONAL DATA,979945,21-Jun-23,920.96,0,164694,Older People Placements - East,DIRECT PAYMENTS,R,2023,3
671,Corporate Services,REDACTED PERSONAL DATA,INV876/GC40,08-Jun-23,900,150,164950,SLLP - Disbursements,280000              Legal Services                                                                            Confirmed,R,2023,3
672,Environment and Regeneration,777 DEMOLITION AND HAULAGE CO,70478,12-Jun-23,16440,2740,165107,Waste Disposal,180000              Environmental Services,A,2023,3
673,Unassigned,MARSTON GROUP,62741,22-Jun-23,10511,0,165202,Corporate Accountancy,200000              Financial Services,A,2023,3
674,Corporate Services,DX NETWORK SERVICES LTD,83810342,14-Jun-23,570,95,165316,Post services,300000              Mail Services,A,2023,3
675,"Children, Schools and Family",CHILDREN OF COLOUR,8233,05-Jun-23,5336.87,0,165365,Placements Under 18,321100              Social Community Care Supplies & Services - Children,A,2023,3
676,Community and Housing,REDACTED PERSONAL DATA,979968,21-Jun-23,1349.48,0,165602,Learning Disabilities Placemnt,DIRECT PAYMENTS,R,2023,3
677,Community and Housing,REDACTED PERSONAL DATA,979926,21-Jun-23,5766.6,0,165619,Phys/Sens Placements - East,DIRECT PAYMENTS,R,2023,3
678,Community and Housing,BUPA CARE HOMES (ANS) LTD,975674,07-Jun-23,4791.48,0,165704,Older People Placements - East,321017              Nursing & Residential Care Homes,A,2023,3
679,Community and Housing,REDACTED PERSONAL DATA,980010,21-Jun-23,1001.56,0,165786,Older People Placements - East,DIRECT PAYMENTS,R,2023,3
680,Community and Housing,REDACTED PERSONAL DATA,980022,21-Jun-23,700.8,0,166085,Learning Disabilities Placemnt,DIRECT PAYMENTS,R,2023,3
681,Community and Housing,REDACTED PERSONAL DATA,979700,21-Jun-23,1654.64,0,166158,Phys/Sens Placements - East,DIRECT PAYMENTS,R,2023,3
682,Environment and Regeneration,Wimbledon Society,N/HOOD  PROJECT,01-Jun-23,10000,0,166189,Reg & Partnerhips Staffing,200000              Financial Services,A,2023,3
683,"Children, Schools and Family",REDACTED PERSONAL DATA,P1 23 HEADCOUNT,27-Jun-23,2080.56,0,166244,EARLY YEARS NURSERY GRANTS,200000              Financial Services,R,2023,3
684,Corporate Services,WEIGHTMANS LLP,2166176,01-Jun-23,655.2,109.2,166459,SLLP - Disbursements,200000              Financial Services                                                                        confirmed,A,2023,3
685,Corporate Services,WEIGHTMANS LLP,2167082,01-Jun-23,502.91,0,166459,SLLP - Disbursements,200000              Financial Services                                                                        confirmed,A,2023,3
686,Corporate Services,WEIGHTMANS LLP,2142515,02-Jun-23,1062,177,166459,SLLP - Disbursements,200000              Financial Services                                                                        confirmed,A,2023,3
687,Community and Housing,REDACTED PERSONAL DATA,979729,21-Jun-23,4923.01,0,166547,Learning Disabilities Placemnt,DIRECT PAYMENTS,R,2023,3
688,"Children, Schools and Family",REDACTED PERSONAL DATA,973448,02-Jun-23,1416.03,0,166742,Placements Under 18,321100              Social Community Care Supplies & Services - Children,R,2023,3
689,"Children, Schools and Family",REDACTED PERSONAL DATA,976902,09-Jun-23,1741.36,0,166742,Placements Under 18,321100              Social Community Care Supplies & Services - Children,R,2023,3
690,"Children, Schools and Family",REDACTED PERSONAL DATA,979448,16-Jun-23,1354.2,0,166742,Placements Under 18,321100              Social Community Care Supplies & Services - Children,R,2023,3
691,"Children, Schools and Family",REDACTED PERSONAL DATA,982463,23-Jun-23,1354.2,0,166742,Placements Under 18,321100              Social Community Care Supplies & Services - Children,R,2023,3
692,"Children, Schools and Family",REDACTED PERSONAL DATA,983994,30-Jun-23,1354.2,0,166742,Placements Under 18,321100              Social Community Care Supplies & Services - Children,R,2023,3
693,Corporate Services,REDACTED PERSONAL DATA,00564-19442495-A,07-Jun-23,1437,0,166885,Client Finance Affairs,120000              Cemetery & Crematorium,R,2023,3
694,Corporate Services,REDACTED PERSONAL DATA,00564-19442517-A,13-Jun-23,1437,0,166885,Client Finance Affairs,120000              Cemetery & Crematorium,R,2023,3
695,Environment and Regeneration,UNIQUE OFFICE SOLUTIONS LTD,112712,19-Jun-23,1326,221,166889,EDS2,210000              Furniture & Soft Furnishings,A,2023,3
696,Environment and Regeneration,UNIQUE OFFICE SOLUTIONS LTD,112713,19-Jun-23,1091.52,181.92,166889,EDS2,210000              Furniture & Soft Furnishings,A,2023,3
697,Environment and Regeneration,UNIQUE OFFICE SOLUTIONS LTD,112727,30-Jun-23,4793.28,798.88,166889,EDS2,210000              Furniture & Soft Furnishings,A,2023,3
698,Environment and Regeneration,UNIQUE OFFICE SOLUTIONS LTD,112728,30-Jun-23,4793.28,798.88,166889,EDS2,210000              Furniture & Soft Furnishings,A,2023,3
699,"Children, Schools and Family",REDACTED PERSONAL DATA,980351,20-Jun-23,807.76,0,166972,Child Disabilities - Placement,CSF-DIRECT PAYMENTS,R,2023,3
700,"Children, Schools and Family",WIMBLEDON DAY NURSERY,P1 23 HEADCOUNT,27-Jun-23,9111.96,0,167298,EARLY YEARS NURSERY GRANTS,170000              Education,A,2023,3
701,Environment and Regeneration,IMPERIAL CIVIL ENFORC.SOLUT.,INV0000007083,01-Jun-23,592.85,98.81,167737,Civil Enforcement Officers,270000              Information Communication Technology,A,2023,3
702,Corporate Services,REDACTED PERSONAL DATA,10216759,06-Jun-23,3099.6,516.6,168092,SLLP - Disbursements,280000              Legal Services,R,2023,3
703,Corporate Services,REDACTED PERSONAL DATA,10231273,06-Jun-23,16015.2,2669.2,168092,SLLP - Disbursements,280000              Legal Services,R,2023,3
704,Corporate Services,REDACTED PERSONAL DATA,10233870,12-Jun-23,5616,936,168092,Chief Executive,280000              Legal Services,R,2023,3
705,Corporate Services,REDACTED PERSONAL DATA,10228177,16-Jun-23,2064.6,344.1,168092,Chief Executive,280000              Legal Services,R,2023,3
706,Corporate Services,REDACTED PERSONAL DATA,10233934,21-Jun-23,28579.2,4763.2,168092,SLLP - Disbursements,280000              Legal Services,R,2023,3
707,Corporate Services,REDACTED PERSONAL DATA,10226255,29-Jun-23,3564,594,168092,SLLP - Disbursements,280000              Legal Services,R,2023,3
708,Capital,CBS Adaptation Design,1764,06-Jun-23,1258.07,209.68,168147,Disabled Facilities Grant,200000              Financial Services,A,2023,3
709,Capital,CBS Adaptation Design,1763,06-Jun-23,1316.26,219.38,168147,Disabled Facilities Grant,200000              Financial Services,A,2023,3
710,Capital,CBS Adaptation Design,1750,06-Jun-23,1096.11,153.35,168147,Disabled Facilities Grant,200000              Financial Services,A,2023,3
711,Capital,CBS Adaptation Design,1752,06-Jun-23,645.29,78.38,168147,Disabled Facilities Grant,200000              Financial Services,A,2023,3
712,Capital,CBS Adaptation Design,1768,09-Jun-23,840,140,168147,Disabled Facilities Grant,200000              Financial Services,A,2023,3
713,Capital,CBS Adaptation Design,1744,09-Jun-23,2089.79,260.8,168147,Disabled Facilities Grant,200000              Financial Services,A,2023,3
714,Capital,CBS Adaptation Design,1746,09-Jun-23,1789.28,209.71,168147,Disabled Facilities Grant,200000              Financial Services,A,2023,3
715,Capital,CBS Adaptation Design,1748,09-Jun-23,2774.77,374.96,168147,Disabled Facilities Grant,200000              Financial Services,A,2023,3
716,Capital,CBS Adaptation Design,1758,09-Jun-23,2845.01,386.17,168147,Disabled Facilities Grant,200000              Financial Services,A,2023,3
717,Capital,CBS Adaptation Design,1757,09-Jun-23,2272.87,290.81,168147,Disabled Facilities Grant,200000              Financial Services,A,2023,3
718,Capital,CBS Adaptation Design,1770,09-Jun-23,2424.76,316.13,168147,Disabled Facilities Grant,200000              Financial Services,A,2023,3
719,Capital,CBS Adaptation Design,1756,09-Jun-23,1213.95,172.99,168147,Disabled Facilities Grant,200000              Financial Services,A,2023,3
720,Capital,CBS Adaptation Design,1753,09-Jun-23,3577.96,507.83,168147,Disabled Facilities Grant,200000              Financial Services,A,2023,3
721,Capital,CBS Adaptation Design,1759,09-Jun-23,1294.89,186.65,168147,Disabled Facilities Grant,200000              Financial Services,A,2023,3
722,Capital,CBS Adaptation Design,1761,09-Jun-23,584.27,68.21,168147,Disabled Facilities Grant,200000              Financial Services,A,2023,3
723,Capital,CBS Adaptation Design,1754,09-Jun-23,2759.28,371.88,168147,Disabled Facilities Grant,200000              Financial Services,A,2023,3
724,Capital,CBS Adaptation Design,1766,19-Jun-23,2968.37,407.23,168147,Disabled Facilities Grant,200000              Financial Services,A,2023,3
725,Capital,CBS Adaptation Design,1762,19-Jun-23,724.36,91.56,168147,Disabled Facilities Grant,200000              Financial Services,A,2023,3
726,Capital,CBS Adaptation Design,1769,22-Jun-23,751.23,96.04,168147,Disabled Facilities Grant,200000              Financial Services,A,2023,3
727,Capital,CBS Adaptation Design,1776,29-Jun-23,943.7,127.95,168147,Disabled Facilities Grant,200000              Financial Services,A,2023,3
728,Capital,CBS Adaptation Design,1784,29-Jun-23,1497.81,182.8,168147,Disabled Facilities Grant,200000              Financial Services,A,2023,3
729,Capital,CBS Adaptation Design,1779,29-Jun-23,1046.2,145.2,168147,Disabled Facilities Grant,200000              Financial Services,A,2023,3
730,Corporate Services,LANGUAGE BANK,MTS-100523,09-Jun-23,741,123.5,168229,Translation Service,TRANSLATIONS,A,2023,3
731,Corporate Services,LANGUAGE BANK,MTS-160523,09-Jun-23,843,140.5,168229,Translation Service,TRANSLATIONS,A,2023,3
732,Corporate Services,LANGUAGE BANK,MTS-190523,12-Jun-23,630,105,168229,Translation Service,TRANSLATIONS,A,2023,3
733,Corporate Services,LANGUAGE BANK,MTS-020623,19-Jun-23,669,111.5,168229,Translation Service,TRANSLATIONS,A,2023,3
734,Corporate Services,LANGUAGE BANK,MTS-250523,12-Jun-23,774,129,168229,Translation Service,TRANSLATIONS,A,2023,3
735,Corporate Services,LANGUAGE BANK,MTS-230523,12-Jun-23,822,137,168229,Translation Service,TRANSLATIONS,A,2023,3
736,Corporate Services,LANGUAGE BANK,MTS-260523,16-Jun-23,861,143.5,168229,Translation Service,TRANSLATIONS,A,2023,3
737,Corporate Services,LANGUAGE BANK,MTS-010623,16-Jun-23,516,86,168229,Translation Service,TRANSLATIONS,A,2023,3
738,Community and Housing,REDACTED PERSONAL DATA,979735,21-Jun-23,786.76,0,168403,Learning Disabilities Placemnt,DIRECT PAYMENTS,R,2023,3
739,Environment and Regeneration,VICTIM SUPPORT,3016632,14-Jun-23,39692.1,6615.35,168404,Crime and Strategy Team,310000              Healthcare,A,2023,3
740,"Children, Schools and Family",WILLOWS PRE SCHOOL,P1 23 HEADCOUNT,27-Jun-23,8793.36,0,168752,EARLY YEARS NURSERY GRANTS,170000              Education,A,2023,3
741,"Children, Schools and Family",OFSTED,SINCC3F63444,08-Jun-23,3216,0,168756,Fostering Support,170000              Education,A,2023,3
742,"Children, Schools and Family",OFSTED,SINCC3F63667,08-Jun-23,2059,0,168756,Head of Corporate Parenting,170000              Education,A,2023,3
743,Environment and Regeneration,AQUILA TRAINING SERVICES LTD,2522,12-Jun-23,1560,260,168957,EnvHealth Pollution - RSP,260000              Human Resources,A,2023,3
744,Community and Housing,HOME CONNECTIONS LETTINGS LTD,INV-1483,19-Jun-23,34200,5700,168983,Housing Needs & Enablg-central,270000              Information Communication Technology,A,2023,3
745,Community and Housing,FITZROY SUPPORT,975349,07-Jun-23,6414.52,0,169400,Learning Disabilities Placemnt,321017              Nursing & Residential Care Homes,A,2023,3
746,Environment and Regeneration,KC Services Group,42786,03-Jul-23,1920,320,169420,Leisure Centres - Client Side,"390000              Works - Construction, Repair & Maintenance",A,2023,3
747,"Children, Schools and Family",REDACTED PERSONAL DATA,P1 23 HEADCOUNT,27-Jun-23,3475.8,0,169972,EARLY YEARS NURSERY GRANTS,321100              Social Community Care Supplies & Services - Children,R,2023,3
748,Corporate Services,REDACTED PERSONAL DATA,INVFS380,16-Jun-23,5700,950,170067,SLLP - Disbursements,280000              Legal Services                                                                            Confirmed,R,2023,3
749,"Children, Schools and Family",JULIUS RUTHERFOORD AND CO LTD,INVS149697,21-Jun-23,1229.42,204.9,170092,Bond Road Building,130000              Cleaning & Janitorial,A,2023,3
750,"Children, Schools and Family",JULIUS RUTHERFOORD AND CO LTD,INVS149719,21-Jun-23,861.97,143.66,170092,Church Road Building,130000              Cleaning & Janitorial,A,2023,3
751,"Children, Schools and Family",JULIUS RUTHERFOORD AND CO LTD,INVS149842,21-Jun-23,862.03,143.67,170092,Ivy Garden CC Building,130000              Cleaning & Janitorial,A,2023,3
752,"Children, Schools and Family",JULIUS RUTHERFOORD AND CO LTD,INVS149669,21-Jun-23,861.97,143.66,170092,Lower Morden CC Building Mgt,130000              Cleaning & Janitorial,A,2023,3
753,"Children, Schools and Family",JULIUS RUTHERFOORD AND CO LTD,INVS149880,21-Jun-23,1298.96,216.49,170092,Newminster CC Building Mgt,130000              Cleaning & Janitorial,A,2023,3
754,Community and Housing,JULIUS RUTHERFOORD AND CO LTD,INVS148860,13-Jun-23,600,100,170092,Galpins Road Support,130000              Cleaning & Janitorial,A,2023,3
755,Community and Housing,INDEPENDENCE HOMES LTD,975619,07-Jun-23,7935.88,0,170527,Learning Disabilities Placemnt,321017              Nursing & Residential Care Homes,A,2023,3
756,Community and Housing,INDEPENDENCE HOMES LTD,CED00139,15-Jun-23,5662.72,0,170527,Learning Disabilities Placemnt,321017              Nursing & Residential Care Homes,A,2023,3
757,"Children, Schools and Family",GREATER LONDON FOSTERING LTD,INV-0574,23-Jun-23,3337.2,0,170596,Placements Under 18,321100              Social Community Care Supplies & Services - Children,A,2023,3
758,"Children, Schools and Family",GREATER LONDON FOSTERING LTD,INV-0749,23-Jun-23,3448.44,0,170596,Placements Under 18,321100              Social Community Care Supplies & Services - Children,A,2023,3
759,"Children, Schools and Family",GREATER LONDON FOSTERING LTD,INV-0751,23-Jun-23,3697.68,0,170596,Placements Under 18,321100              Social Community Care Supplies & Services - Children,A,2023,3
760,"Children, Schools and Family",GREATER LONDON FOSTERING LTD,INV-0750,23-Jun-23,3516.95,0,170596,Placements Under 18,321100              Social Community Care Supplies & Services - Children,A,2023,3
761,"Children, Schools and Family",GREATER LONDON FOSTERING LTD,INV-0244,27-Jun-23,3114.72,0,170596,Placements Under 18,321100              Social Community Care Supplies & Services - Children,A,2023,3
762,"Children, Schools and Family",GREATER LONDON FOSTERING LTD,INV-0363,27-Jun-23,3448.44,0,170596,Placements Under 18,321100              Social Community Care Supplies & Services - Children,A,2023,3
763,"Children, Schools and Family",GREATER LONDON FOSTERING LTD,INV-0829,27-Jun-23,1954.24,0,170596,Placements Under 18,321100              Social Community Care Supplies & Services - Children,A,2023,3
764,"Children, Schools and Family",CENMAC,CPSI2274,09-Jun-23,1200,0,170767,Non-Delegated Statements,321100              Social Community Care Supplies & Services - Children,A,2023,3
765,"Children, Schools and Family",CENMAC,CPSI2273,12-Jun-23,2801,0,170767,Non-Delegated Statements,321100              Social Community Care Supplies & Services - Children,A,2023,3
766,Community and Housing,REDACTED PERSONAL DATA,979940,21-Jun-23,1427.4,0,170878,Learning Disabilities Placemnt,DIRECT PAYMENTS,R,2023,3
767,Community and Housing,REDACTED PERSONAL DATA,980023,21-Jun-23,5311.75,0,171056,Phys/Sens Placements - East,DIRECT PAYMENTS,R,2023,3
768,Community and Housing,ST GEORGES RES. CARE HOME,975661,07-Jun-23,4871.4,0,171491,Learning Disabilities Placemnt,321017              Nursing & Residential Care Homes,A,2023,3
769,Community and Housing,ST GEORGES RES. CARE HOME,975687,07-Jun-23,4024.2,0,171491,Learning Disabilities Placemnt,321017              Nursing & Residential Care Homes,A,2023,3
770,Corporate Services,SSD LIMITED,SI-567,02-Jun-23,1500,250,171736,Civic Centre,190000              Facilities & Management Services,A,2023,3
771,Corporate Services,SSD LIMITED,SI-568,07-Jun-23,665.66,110.94,171736,E & R Buildings,190000              Facilities & Management Services,A,2023,3
772,Corporate Services,SSD LIMITED,SI-569,13-Jun-23,25297.2,4216.2,171736,Civic Centre,190000              Facilities & Management Services,A,2023,3
773,Community and Housing,SSD LIMITED,SI-570,15-Jun-23,1791.41,298.57,171736,Libraries Service-Civic Centre,190000              Facilities & Management Services,A,2023,3
774,Corporate Services,SSD LIMITED,SI583,29-Jun-23,2622,437,171736,Corporate Services Buildings,190000              Facilities & Management Services,A,2023,3
775,Community and Housing,REDACTED PERSONAL DATA,979892,21-Jun-23,552.6,0,172070,Learning Disabilities Placemnt,DIRECT PAYMENTS,R,2023,3
776,Community and Housing,NORBURY PROPERTY SERV LDN LTD,SI-8911,23-Jun-23,10444.87,0,172104,Bed & Breakfast - accomm,321000              Social Community Care Supplies & Services - Adult,A,2023,3
777,Community and Housing,EALING COUNCIL,975307,07-Jun-23,2985.92,0,172129,Mental Health Placements,OLA,A,2023,3
778,Community and Housing,CARRICKS BROOK,975323,07-Jun-23,6536.16,0,172297,Learning Disabilities Placemnt,321017              Nursing & Residential Care Homes,A,2023,3
779,Community and Housing,BROADHAM CARE LTD,975377,07-Jun-23,7386.96,0,172298,Learning Disabilities Placemnt,321017              Nursing & Residential Care Homes,A,2023,3
780,Community and Housing,BROADHAM CARE LTD,975646,07-Jun-23,7638.12,0,172298,Learning Disabilities Placemnt,321017              Nursing & Residential Care Homes,A,2023,3
781,Unassigned,KENNEDYS,012300334961M890,13-Jun-23,3345.6,557.6,172486,Corporate Services,280000              Legal Services,A,2023,3
782,Unassigned,KENNEDYS,012300338511LON1,14-Jun-23,1225.2,204.2,172486,Corporate Services,280000              Legal Services,A,2023,3
783,Unassigned,KENNEDYS,012300378751LON1,19-Jun-23,1344.6,224.1,172486,Corporate Services,280000              Legal Services,A,2023,3
784,Unassigned,KENNEDYS,012300378001M890,26-Jun-23,612.1,0,172486,Corporate Accountancy,280000              Legal Services,A,2023,3
785,Unassigned,KENNEDYS,012300396041M890,29-Jun-23,2822.4,470.4,172486,Corporate Services,280000              Legal Services,A,2023,3
786,"Children, Schools and Family",REDACTED PERSONAL DATA,978520,15-Jun-23,1229.78,0,172509,Adoption placements,321100              Social Community Care Supplies & Services - Children,R,2023,3
787,"Children, Schools and Family",LINDEN LODGE SCHOOL,INV1302,14-Jun-23,1375,0,172798,Child Disabilities - Placement,170000              Education,A,2023,3
788,"Children, Schools and Family",LINDEN LODGE SCHOOL,INV-1300,14-Jun-23,2750,0,172798,Child Disabilities - Placement,170000              Education,A,2023,3
789,"Children, Schools and Family",LINDEN LODGE SCHOOL,INV-1294,16-Jun-23,1375,0,172798,Child Disabilities - Placement,170000              Education,A,2023,3
790,Community and Housing,REDACTED PERSONAL DATA,980915,22-Jun-23,876.24,0,172912,Learning Disabilities Placemnt,DIRECT PAYMENTS,R,2023,3
791,Community and Housing,REDACTED PERSONAL DATA,980953,22-Jun-23,764.28,0,172914,Learning Disabilities Placemnt,DIRECT PAYMENTS,R,2023,3
792,"Children, Schools and Family",REDACTED PERSONAL DATA,980829,20-Jun-23,5216.87,0,172922,Fostering Recruit/Assessment,321100              Social Community Care Supplies & Services - Children,R,2023,3
793,"Children, Schools and Family",REDACTED PERSONAL DATA,980832,20-Jun-23,3517.13,0,172922,Fostering Recruit/Assessment,321100              Social Community Care Supplies & Services - Children,R,2023,3
794,Community and Housing,GUARDIAN NEWS AND MEDIA LTD,1312018,07-Jun-23,13841.1,2306.85,173136,OP/PS Mgt AD Adult Social Care,260000              Human Resources,A,2023,3
795,Corporate Services,ALTODIGITAL NETWORKS LTD,867632ALTO,19-Jun-23,56723.3,9453.88,173240,Corp Print Strategy,190000              Facilities & Management Services,A,2023,3
796,Community and Housing,HAVERING COURT NURSING HOME,975287,07-Jun-23,4954.12,0,173297,Older People Placements - East,321017              Nursing & Residential Care Homes,A,2023,3
797,Community and Housing,REDACTED PERSONAL DATA,979910,21-Jun-23,795.52,0,173308,Phys/Sens Placements - East,DIRECT PAYMENTS,R,2023,3
798,Community and Housing,SOUTH THAMES COLLEGE,5005640,12-Jun-23,511058.11,0,173357,AE Main Adult Learning,190000              Facilities & Management Services,A,2023,3
799,"Children, Schools and Family",REDACTED PERSONAL DATA,PKING17102020,28-Jun-23,889,0,173600,PupilPremium- Virtual School,321100              Social Community Care Supplies & Services - Children,R,2023,3
800,"Children, Schools and Family",REDACTED PERSONAL DATA,976051,08-Jun-23,5506.04,0,173793,Child Disabilities - Placement,CSF-DIRECT PAYMENTS,R,2023,3
801,"Children, Schools and Family",REDACTED PERSONAL DATA,980315,20-Jun-23,5506.04,0,173793,Child Disabilities - Placement,CSF-DIRECT PAYMENTS,R,2023,3
802,Community and Housing,HARBOUR CARE (UK) LTD,975595,07-Jun-23,6448.68,0,173947,Learning Disabilities Placemnt,321017              Nursing & Residential Care Homes,A,2023,3
803,Community and Housing,ASHINGTON HOUSE,975345,07-Jun-23,4406.68,0,174259,Learning Disabilities Placemnt,321017              Nursing & Residential Care Homes,A,2023,3
804,Community and Housing,REDACTED PERSONAL DATA,979728,21-Jun-23,740.72,0,174449,Phys/Sens Placements - East,DIRECT PAYMENTS,R,2023,3
805,Community and Housing,PRECIOUS HOMES LTD,VER002561,15-Jun-23,10423.35,0,174641,Learning Disabilities Placemnt,321017              Nursing & Residential Care Homes,A,2023,3
806,Community and Housing,ALPENBEST LIMITED,280523FS,27-Jun-23,580.16,0,174789,Older People Placements - East,321000              Social Community Care Supplies & Services - Adult,A,2023,3
807,Community and Housing,ALPENBEST LIMITED,280523,27-Jun-23,605.1,0,174789,Older People Placements - East,321000              Social Community Care Supplies & Services - Adult,A,2023,3
808,Community and Housing,ALPENBEST LIMITED,040623FS,27-Jun-23,609.96,0,174789,Older People Placements - East,321000              Social Community Care Supplies & Services - Adult,A,2023,3
809,Community and Housing,ALPENBEST LIMITED,040623AT,27-Jun-23,622.43,0,174789,Older People Placements - East,321000              Social Community Care Supplies & Services - Adult,A,2023,3
810,Community and Housing,ALPENBEST LIMITED,110623AS,27-Jun-23,580.16,0,174789,Older People Placements - East,321000              Social Community Care Supplies & Services - Adult,A,2023,3
811,Community and Housing,ALPENBEST LIMITED,110623AT,27-Jun-23,592.63,0,174789,Older People Placements - East,321000              Social Community Care Supplies & Services - Adult,A,2023,3
812,Community and Housing,ALPENBEST LIMITED,180623FS,27-Jun-23,580.16,0,174789,Older People Placements - East,321000              Social Community Care Supplies & Services - Adult,A,2023,3
813,Community and Housing,ALPENBEST LIMITED,180623AT,27-Jun-23,592.63,0,174789,Older People Placements - East,321000              Social Community Care Supplies & Services - Adult,A,2023,3
814,Community and Housing,SUTTON COURT CARE CENTRE,975390,07-Jun-23,2827.36,0,174833,Older People Placements - East,321017              Nursing & Residential Care Homes,A,2023,3
815,Community and Housing,SUTTON COURT CARE CENTRE,975411,07-Jun-23,3723.24,0,174833,Older People Placements - East,321017              Nursing & Residential Care Homes,A,2023,3
816,Community and Housing,SUTTON COURT CARE CENTRE,975490,07-Jun-23,3163.36,0,174833,Older People Placements - East,321017              Nursing & Residential Care Homes,A,2023,3
817,Community and Housing,SUTTON COURT CARE CENTRE,975517,07-Jun-23,4049.6,0,174833,Phys/Sens Placements - East,321017              Nursing & Residential Care Homes,A,2023,3
818,Community and Housing,SUTTON COURT CARE CENTRE,975666,07-Jun-23,4139.36,0,174833,Phys/Sens Placements - East,321017              Nursing & Residential Care Homes,A,2023,3
819,Community and Housing,REDACTED PERSONAL DATA,979664,21-Jun-23,636.4,0,174975,Learning Disabilities Placemnt,DIRECT PAYMENTS,R,2023,3
820,Capital,ARCADIS CONSULTING (UK) LTD,680014819,27-Jun-23,702.92,117.15,175537,Highways & Footways,230000              Highway Equipment & Materials,A,2023,3
821,Community and Housing,KISIMUL SCHOOL,975313,07-Jun-23,12524.72,0,175545,Learning Disabilities Placemnt,321017              Nursing & Residential Care Homes,A,2023,3
822,Community and Housing,KISIMUL SCHOOL,975557,07-Jun-23,16304,0,175545,Learning Disabilities Placemnt,321017              Nursing & Residential Care Homes,A,2023,3
823,Community and Housing,REDACTED PERSONAL DATA,979788,21-Jun-23,1781.92,0,175782,Phys/Sens Placements - East,DIRECT PAYMENTS,R,2023,3
824,Corporate Services,LAVAT CONSULTING LIMITED,INV-111085,20-Jun-23,1200,200,175816,Corporately Funded Items,260000              Human Resources,A,2023,3
825,Community and Housing,REDACTED PERSONAL DATA,979850,21-Jun-23,1388.44,0,175960,Learning Disabilities Placemnt,DIRECT PAYMENTS,R,2023,3
826,Environment and Regeneration,M J MAPP LTD,127000/6767,05-Jun-23,7954.7,1325.78,176206,Parking - Car Parks,250000              Housing Management,A,2023,3
827,Community and Housing,REDACTED PERSONAL DATA,979835,21-Jun-23,5222.8,0,176783,Phys/Sens Placements - East,DIRECT PAYMENTS,R,2023,3
828,"Children, Schools and Family",THE PRE-SCHOOL GROUP LTD,P1 23 SENDIF,26-Jun-23,819,0,176785,EARLY YEARS NURSERY GRANTS,200000              Financial Services,A,2023,3
829,"Children, Schools and Family",THE PRE-SCHOOL GROUP LTD,P1 23 HEADCOUNT,27-Jun-23,16272.08,0,176785,EARLY YEARS NURSERY GRANTS,200000              Financial Services,A,2023,3
830,Community and Housing,REDACTED PERSONAL DATA,979946,21-Jun-23,1430.08,0,176868,Phys/Sens Placements - East,DIRECT PAYMENTS,R,2023,3
831,"Children, Schools and Family",TRIPLE P UK LIMITED,INUK13157,09-Jun-23,1973.99,328.99,177030,Family Wellbeing Service,170000              Education,A,2023,3
832,Community and Housing,SPRING LAKE CARE HOME LTD,975458,07-Jun-23,11418,0,177067,Learning Disabilities Placemnt,321017              Nursing & Residential Care Homes,A,2023,3
833,Community and Housing,SPRING LAKE CARE HOME LTD,975659,07-Jun-23,6468,0,177067,Learning Disabilities Placemnt,321017              Nursing & Residential Care Homes,A,2023,3
834,Community and Housing,REDACTED PERSONAL DATA,979934,21-Jun-23,652.32,0,177115,Older People Placements - East,DIRECT PAYMENTS,R,2023,3
835,"Children, Schools and Family",HA TUTORS LTD,INV-13656,09-Jun-23,1716,286,177219,Non-Delegated Statements,170000              Education,A,2023,3
836,"Children, Schools and Family",HA TUTORS LTD,INV-13660,09-Jun-23,2227.2,371.2,177219,Non-Delegated Statements,170000              Education,A,2023,3
837,"Children, Schools and Family",HA TUTORS LTD,INV-13665,09-Jun-23,1502.4,250.4,177219,Non-Delegated Statements,170000              Education,A,2023,3
838,"Children, Schools and Family",HA TUTORS LTD,INV-13662,09-Jun-23,5094,849,177219,Non-Delegated Statements,170000              Education,A,2023,3
839,"Children, Schools and Family",HA TUTORS LTD,INV-13657,09-Jun-23,4926.6,821.1,177219,Non-Delegated Statements,170000              Education,A,2023,3
840,"Children, Schools and Family",HA TUTORS LTD,INV-13659,09-Jun-23,1718.4,286.4,177219,Non-Delegated Statements,170000              Education,A,2023,3
841,"Children, Schools and Family",HA TUTORS LTD,INV-13661,09-Jun-23,4825.2,804.2,177219,Non-Delegated Statements,170000              Education,A,2023,3
842,"Children, Schools and Family",HA TUTORS LTD,INV-13663,09-Jun-23,1161.6,193.6,177219,Non-Delegated Statements,170000              Education,A,2023,3
843,"Children, Schools and Family",HA TUTORS LTD,INV-13658,09-Jun-23,6463.2,1077.2,177219,Non-Delegated Statements,170000              Education,A,2023,3
844,"Children, Schools and Family",HA TUTORS LTD,INV-13664,09-Jun-23,3007.2,501.2,177219,Non-Delegated Statements,170000              Education,A,2023,3
845,Capital,UK POWER NETWORKS (OPERATIONS),92151169,09-Jun-23,1144.8,190.8,177333,Highways & Footways,180000              Environmental Services,A,2023,3
846,Corporate Services,EXPERT IN MIND,40650,16-Jun-23,1072.1,178.68,177342,SLLP - Disbursements,280000              Legal Services                                                                            Confirmed,A,2023,3
847,Corporate Services,EXPERT IN MIND,39810,20-Jun-23,664.51,110.75,177342,SLLP - Disbursements,280000              Legal Services                                                                            Confirmed,A,2023,3
848,"Children, Schools and Family",EXPERT IN MIND,40370,23-Jun-23,3931.2,655.2,177342,Family Supp SafeGuard - Place,280000              Legal Services                                                                            Confirmed,A,2023,3
849,Community and Housing,HYTYME B AND B,26930,07-Jun-23,11190,1865,177425,Bed & Breakfast - accomm,321000              Social Community Care Supplies & Services - Adult,A,2023,3
850,Community and Housing,REDACTED PERSONAL DATA,979733,21-Jun-23,710.2,0,177453,Phys/Sens Placements - East,DIRECT PAYMENTS,R,2023,3
851,Community and Housing,REDACTED PERSONAL DATA,979721,21-Jun-23,724.72,0,177476,Learning Disabilities Placemnt,DIRECT PAYMENTS,R,2023,3
852,Community and Housing,REDACTED PERSONAL DATA,979667,21-Jun-23,1197.28,0,177502,Phys/Sens Placements - East,DIRECT PAYMENTS,R,2023,3
853,"Children, Schools and Family",BUTTERFLIES CHILDCARE LIMITED,P1 23 SENDIF,26-Jun-23,1102.5,0,177504,EARLY YEARS NURSERY GRANTS,200000              Financial Services,A,2023,3
854,"Children, Schools and Family",BUTTERFLIES CHILDCARE LIMITED,P1 23 HEADCOUNT,27-Jun-23,4779,0,177504,EARLY YEARS NURSERY GRANTS,200000              Financial Services,A,2023,3
855,Capital,SUSTAINABLE MERTON,MERTON GARDEN,16-Jun-23,32373,0,177594,Mitcham Area Regeneration,190000              Facilities & Management Services,A,2023,3
856,Capital,SUSTAINABLE MERTON,THE WHEEL1,22-Jun-23,59615,0,177594,Mitcham Area Regeneration,190000              Facilities & Management Services,A,2023,3
857,Corporate Services,HPI LIMITED,6160-001796511,19-Jun-23,550.91,91.82,177649,Local Taxation Bailiffs,200000              Financial Services,A,2023,3
858,Community and Housing,THE ARTEMIS TEAM LIMITED,14747,28-Jun-23,2720.38,453.4,177680,Learning Disabilities Placemnt,290000              Arts & Leisure Services,A,2023,3
859,Community and Housing,THE ARTEMIS TEAM LIMITED,14745,28-Jun-23,1154.09,192.35,177680,Learning Disabilities Placemnt,290000              Arts & Leisure Services,A,2023,3
860,Community and Housing,REDACTED PERSONAL DATA,979738,21-Jun-23,572.76,0,177739,Phys/Sens Placements - East,DIRECT PAYMENTS,R,2023,3
861,Community and Housing,REDACTED PERSONAL DATA,979753,21-Jun-23,668.24,0,177785,Phys/Sens Placements - East,DIRECT PAYMENTS,R,2023,3
862,"Children, Schools and Family",REDACTED PERSONAL DATA,P1 23 HEADCOUNT,27-Jun-23,1148.9,0,177813,EARLY YEARS NURSERY GRANTS,200000              Financial Services,R,2023,3
863,Corporate Services,REDACTED PERSONAL DATA,1329/SHA,22-Jun-23,1050,175,177872,SLLP - Disbursements,280000              Legal Services                                                                            Confirmed,R,2023,3
864,"Children, Schools and Family",MINI TREASURES DAY NURSERY,P1 23 HEADCOUNT,27-Jun-23,30691.8,0,177930,EARLY YEARS NURSERY GRANTS,200000              Financial Services,A,2023,3
865,Community and Housing,WORKSHOP 305,SLAP166,30-Jun-23,538.32,0,177941,Learning Disabilities Placemnt,321000              Social Community Care Supplies & Services - Adult,A,2023,3
866,Community and Housing,WORKSHOP 305,RAG166,30-Jun-23,807.6,0,177941,Learning Disabilities Placemnt,321000              Social Community Care Supplies & Services - Adult,A,2023,3
867,Community and Housing,WORKSHOP 305,ASCO166,30-Jun-23,807.6,0,177941,Learning Disabilities Placemnt,321000              Social Community Care Supplies & Services - Adult,A,2023,3
868,Community and Housing,WORKSHOP 305,AGAR166,30-Jun-23,538.4,0,177941,Learning Disabilities Placemnt,321000              Social Community Care Supplies & Services - Adult,A,2023,3
869,Community and Housing,REDACTED PERSONAL DATA,980907,22-Jun-23,695.92,0,177967,Learning Disabilities Placemnt,DIRECT PAYMENTS,R,2023,3
870,Community and Housing,REDACTED PERSONAL DATA,979792,21-Jun-23,890.96,0,177999,Learning Disabilities Placemnt,DIRECT PAYMENTS,R,2023,3
871,Community and Housing,REDACTED PERSONAL DATA,979724,21-Jun-23,1008.44,0,178412,Learning Disabilities Placemnt,DIRECT PAYMENTS,R,2023,3
872,Community and Housing,REDACTED PERSONAL DATA,979917,21-Jun-23,4454.8,0,178412,Learning Disabilities Placemnt,DIRECT PAYMENTS,R,2023,3
873,"Children, Schools and Family",Little Hearts Pre School,P1 23 HEADCOUNT,27-Jun-23,3832.2,0,178454,EARLY YEARS NURSERY GRANTS,200000              Financial Services,A,2023,3
874,Community and Housing,BRAMBLEDOWN CARE HOME,975470,07-Jun-23,7448.8,0,178465,Phys/Sens Placements - East,321017              Nursing & Residential Care Homes,A,2023,3
875,Corporate Services,THOMSON REUTERS,6154648898,22-Jun-23,566.4,94.4,178554,SLLP - Disbursements,260000              Human Resources,A,2023,3
876,Community and Housing,LOVE WALK RESIDENTIAL HOME,975468,07-Jun-23,3381.4,0,178620,Phys/Sens Placements - East,321017              Nursing & Residential Care Homes,A,2023,3
877,Community and Housing,KEW HOUSE,975478,07-Jun-23,3289.24,0,178621,Older People Placements - East,321017              Nursing & Residential Care Homes,A,2023,3
878,Community and Housing,KEW HOUSE,975554,07-Jun-23,5800,0,178621,Older People Placements - East,321017              Nursing & Residential Care Homes,A,2023,3
879,Community and Housing,KEW HOUSE,975701,07-Jun-23,3220.32,0,178621,Older People Placements - East,321017              Nursing & Residential Care Homes,A,2023,3
880,Community and Housing,REDACTED PERSONAL DATA,979927,21-Jun-23,4710.56,0,178802,Learning Disabilities Placemnt,DIRECT PAYMENTS,R,2023,3
881,Community and Housing,REDACTED PERSONAL DATA,979866,21-Jun-23,1776.8,0,178874,Learning Disabilities Placemnt,DIRECT PAYMENTS,R,2023,3
882,"Children, Schools and Family",MODERN MONTESSORI INTL. LTD,P1 23 HEADCOUNT,27-Jun-23,3108.6,0,178883,EARLY YEARS NURSERY GRANTS,200000              Financial Services,A,2023,3
883,"Children, Schools and Family",REDACTED PERSONAL DATA,983292,27-Jun-23,505.71,0,178940,Fostering Recruit/Assessment,321100              Social Community Care Supplies & Services - Children,R,2023,3
884,"Children, Schools and Family",REDACTED PERSONAL DATA,983310,27-Jun-23,522.51,0,178940,Fostering Recruit/Assessment,321100              Social Community Care Supplies & Services - Children,R,2023,3
885,"Children, Schools and Family",REDACTED PERSONAL DATA,983331,27-Jun-23,522.51,0,178940,Fostering Recruit/Assessment,321100              Social Community Care Supplies & Services - Children,R,2023,3
886,Corporate Services,PENNA PLC,673223,22-Jun-23,5199.99,866.66,179007,Chief Executive,190000              Facilities & Management Services,A,2023,3
887,Corporate Services,PENNA PLC,673927,03-Jul-23,11403.6,1900.6,179007,Press and Public Relations,190000              Facilities & Management Services,A,2023,3
888,Corporate Services,PENNA PLC,673928,03-Jul-23,9649.2,1608.2,179007,Press and Public Relations,190000              Facilities & Management Services,A,2023,3
889,Community and Housing,REDACTED PERSONAL DATA,980037,21-Jun-23,1261.84,0,179049,Learning Disabilities Placemnt,DIRECT PAYMENTS,R,2023,3
890,"Children, Schools and Family",WILLOWS PRE-SCHOOL,P1 23 HEADCOUNT,27-Jun-23,2676.24,0,179134,EARLY YEARS NURSERY GRANTS,170000              Education,A,2023,3
891,Community and Housing,REDACTED PERSONAL DATA,979639,21-Jun-23,678.2,0,179142,Learning Disabilities Placemnt,DIRECT PAYMENTS,R,2023,3
892,"Children, Schools and Family",LITTLE HANDS MONTESSORI,P1 23 HEADCOUNT,27-Jun-23,9111.96,0,179165,EARLY YEARS NURSERY GRANTS,200000              Financial Services,A,2023,3
893,Community and Housing,REDACTED PERSONAL DATA,979741,21-Jun-23,1222.8,0,179299,Older People Placements - East,DIRECT PAYMENTS,R,2023,3
894,Community and Housing,REDACTED PERSONAL DATA,980969,22-Jun-23,1704.12,0,179332,Phys/Sens Placements - East,DIRECT PAYMENTS,R,2023,3
895,Community and Housing,REDACTED PERSONAL DATA,979942,21-Jun-23,4143.75,0,179383,Learning Disabilities Placemnt,DIRECT PAYMENTS,R,2023,3
896,Community and Housing,ELYSIUM CARE PARTNERSHIPS LTD,975507,07-Jun-23,9049.16,0,179734,Learning Disabilities Placemnt,321017              Nursing & Residential Care Homes,A,2023,3
897,Community and Housing,ELYSIUM CARE PARTNERSHIPS LTD,975522,07-Jun-23,3462.2,0,179734,Learning Disabilities Placemnt,321017              Nursing & Residential Care Homes,A,2023,3
898,Community and Housing,ELYSIUM CARE PARTNERSHIPS LTD,975636,07-Jun-23,9821,0,179734,Learning Disabilities Placemnt,321017              Nursing & Residential Care Homes,A,2023,3
899,Community and Housing,WESTHOPE LTD,975474,07-Jun-23,6350.78,1058.46,179748,Learning Disabilities Placemnt,321017              Nursing & Residential Care Homes,A,2023,3
900,Environment and Regeneration,BARKLANDS TREE SPECIALISTS,349,13-Jun-23,8122.3,1353.55,179780,Pks Rec Grds (Unloc),240000              Horticultural,A,2023,3
901,Environment and Regeneration,BARKLANDS TREE SPECIALISTS,347,13-Jun-23,812.84,135.47,179780,Pks Rec Grds (Unloc),240000              Horticultural,A,2023,3
902,Environment and Regeneration,BARKLANDS TREE SPECIALISTS,348,13-Jun-23,5152.5,858.75,179780,Pks Rec Grds (Unloc),240000              Horticultural,A,2023,3
903,Community and Housing,SUNNINGDALE HOUSE CARE HOME,975630,07-Jun-23,2575,0,179794,Learning Disabilities Placemnt,321017              Nursing & Residential Care Homes,A,2023,3
904,Community and Housing,SUNLIGHT HOUSE,975413,07-Jun-23,7667.6,0,179813,Learning Disabilities Placemnt,321017              Nursing & Residential Care Homes,A,2023,3
905,Community and Housing,SUNLIGHT HOUSE,975528,07-Jun-23,5140,0,179813,Learning Disabilities Placemnt,321017              Nursing & Residential Care Homes,A,2023,3
906,"Children, Schools and Family",COLLIERS WOOD VILLAGE DAY NUR.,P1 23 HEADCOUNT,27-Jun-23,6576.48,0,179896,EARLY YEARS NURSERY GRANTS,200000              Financial Services,A,2023,3
907,Community and Housing,BHAKTI SHYAMA CARE CENTRE,975403,07-Jun-23,3557.92,0,179993,Older People Placements - East,321017              Nursing & Residential Care Homes,A,2023,3
908,Community and Housing,BHAKTI SHYAMA CARE CENTRE,975698,07-Jun-23,2985.6,0,179993,Older People Placements - East,321017              Nursing & Residential Care Homes,A,2023,3
909,"Children, Schools and Family",REAMCARE LTD,LHRPAM062301,23-Jun-23,20105.67,0,180045,Placements Under 18,321100              Social Community Care Supplies & Services - Children Residential,A,2023,3
910,"Children, Schools and Family",ST CATHERINE'S SCHOOL,183,12-Jun-23,25199.13,0,180147,SEN Residential (DSG),170000              Education,A,2023,3
911,Community and Housing,REDACTED PERSONAL DATA,980017,21-Jun-23,1029.64,0,180174,Older People Placements - East,DIRECT PAYMENTS,R,2023,3
912,Community and Housing,SUNRISE DAY CARE,DP4921,07-Jun-23,1470.32,0,180196,Older People Placements - East,321000              Social Community Care Supplies & Services - Adult,A,2023,3
913,Community and Housing,SUNRISE DAY CARE,DP4922,07-Jun-23,1710.3,0,180196,Older People Placements - East,321000              Social Community Care Supplies & Services - Adult,A,2023,3
914,Community and Housing,SUNRISE DAY CARE,DP4923,07-Jun-23,3090.48,0,180196,Phys/Sens Placements - East,321000              Social Community Care Supplies & Services - Adult,A,2023,3
915,Community and Housing,SUNRISE DAY CARE,4518,07-Jun-23,510.24,0,180196,Older People Placements - East,321000              Social Community Care Supplies & Services - Adult,A,2023,3
916,Community and Housing,SUNRISE DAY CARE,4521,07-Jun-23,510.24,0,180196,Older People Placements - East,321000              Social Community Care Supplies & Services - Adult,A,2023,3
917,Community and Housing,SUNRISE DAY CARE,4522,07-Jun-23,680.32,0,180196,Learning Disabilities Placemnt,321000              Social Community Care Supplies & Services - Adult,A,2023,3
918,Community and Housing,SUNRISE DAY CARE,4529,07-Jun-23,765.35,0,180196,Older People Placements - East,321000              Social Community Care Supplies & Services - Adult,A,2023,3
919,Community and Housing,SUNRISE DAY CARE,4530,07-Jun-23,510.24,0,180196,Older People Placements - East,321000              Social Community Care Supplies & Services - Adult,A,2023,3
920,Community and Housing,SUNRISE DAY CARE,4531,07-Jun-23,510.24,0,180196,Older People Placements - East,321000              Social Community Care Supplies & Services - Adult,A,2023,3
921,Community and Housing,SUNRISE DAY CARE,4555,30-Jun-23,510.24,0,180196,Older People Placements - East,321000              Social Community Care Supplies & Services - Adult,A,2023,3
922,Community and Housing,SUNRISE DAY CARE,DP4943,30-Jun-23,1454.12,0,180196,Older People Placements - East,321000              Social Community Care Supplies & Services - Adult,A,2023,3
923,Community and Housing,SUNRISE DAY CARE,DP4944,30-Jun-23,1986.34,0,180196,Older People Placements - East,321000              Social Community Care Supplies & Services - Adult,A,2023,3
924,Community and Housing,SUNRISE DAY CARE,DP4945,30-Jun-23,3051.78,0,180196,Phys/Sens Placements - East,321000              Social Community Care Supplies & Services - Adult,A,2023,3
925,Community and Housing,SUNRISE DAY CARE,4542KP,30-Jun-23,510.24,0,180196,Older People Placements - East,321000              Social Community Care Supplies & Services - Adult,A,2023,3
926,Community and Housing,SUNRISE DAY CARE,4546,30-Jun-23,680.32,0,180196,Learning Disabilities Placemnt,321000              Social Community Care Supplies & Services - Adult,A,2023,3
927,Community and Housing,SUNRISE DAY CARE,4545,30-Jun-23,510.24,0,180196,Older People Placements - East,321000              Social Community Care Supplies & Services - Adult,A,2023,3
928,Community and Housing,SUNRISE DAY CARE,4553,30-Jun-23,807.88,0,180196,Older People Placements - East,321000              Social Community Care Supplies & Services - Adult,A,2023,3
929,Community and Housing,SUNRISE DAY CARE,4554,30-Jun-23,510.24,0,180196,Older People Placements - East,321000              Social Community Care Supplies & Services - Adult,A,2023,3
930,Community and Housing,REDACTED PERSONAL DATA,979786,21-Jun-23,509.12,0,180242,Phys/Sens Placements - East,DIRECT PAYMENTS,R,2023,3
931,Community and Housing,REDACTED PERSONAL DATA,979663,21-Jun-23,1177.36,0,180282,Phys/Sens Placements - East,DIRECT PAYMENTS,R,2023,3
932,Community and Housing,REDACTED PERSONAL DATA,979669,21-Jun-23,2839.28,0,180285,Older People Placements - East,DIRECT PAYMENTS,R,2023,3
933,Community and Housing,SEVACARE,72030-514140,21-Jun-23,1296.38,0,180307,Older People Placements - East,321000              Social Community Care Supplies & Services - Adult,A,2023,3
934,Community and Housing,SEVACARE,72030-752403,21-Jun-23,967.96,0,180307,Older People Placements - East,321000              Social Community Care Supplies & Services - Adult,A,2023,3
935,Community and Housing,SEVACARE,72030-791266,21-Jun-23,604.98,0,180307,Older People Placements - East,321000              Social Community Care Supplies & Services - Adult,A,2023,3
936,Community and Housing,SEVACARE,72030-869265,21-Jun-23,743.26,0,180307,Older People Placements - East,321000              Social Community Care Supplies & Services - Adult,A,2023,3
937,Community and Housing,SEVACARE,72030-994084,21-Jun-23,622.26,0,180307,Older People Placements - East,321000              Social Community Care Supplies & Services - Adult,A,2023,3
938,Community and Housing,SEVACARE,72030-982561,21-Jun-23,933.39,0,180307,Older People Placements - East,321000              Social Community Care Supplies & Services - Adult,A,2023,3
939,Community and Housing,SEVACARE,72030-79481,21-Jun-23,1490.66,0,180307,Older People Placements - East,321000              Social Community Care Supplies & Services - Adult,A,2023,3
940,Community and Housing,SEVACARE,72030-98888,21-Jun-23,1175.38,0,180307,Older People Placements - East,321000              Social Community Care Supplies & Services - Adult,A,2023,3
941,Community and Housing,SEVACARE,72030-506355,21-Jun-23,898.82,0,180307,Phys/Sens Placements - East,321000              Social Community Care Supplies & Services - Adult,A,2023,3
942,Community and Housing,SEVACARE,72030-569458,21-Jun-23,1417.37,0,180307,Phys/Sens Placements - East,321000              Social Community Care Supplies & Services - Adult,A,2023,3
943,Community and Housing,SEVACARE,72030-41998,21-Jun-23,570.41,0,180307,Phys/Sens Placements - East,321000              Social Community Care Supplies & Services - Adult,A,2023,3
944,Community and Housing,SEVACARE,72030-52108,21-Jun-23,622.26,0,180307,Learning Disabilities Placemnt,321000              Social Community Care Supplies & Services - Adult,A,2023,3
945,Community and Housing,SEVACARE,72030-872605,21-Jun-23,639.55,0,180307,Older People Placements - East,321000              Social Community Care Supplies & Services - Adult,A,2023,3
946,Community and Housing,SEVACARE,72030-867847,21-Jun-23,1088.96,0,180307,Older People Placements - East,321000              Social Community Care Supplies & Services - Adult,A,2023,3
947,Community and Housing,SEVACARE,72030-565513,21-Jun-23,2955.74,0,180307,Phys/Sens Placements - East,321000              Social Community Care Supplies & Services - Adult,A,2023,3
948,Community and Housing,SEVACARE,72030-78739,21-Jun-23,691.4,0,180307,Learning Disabilities Placemnt,321000              Social Community Care Supplies & Services - Adult,A,2023,3
949,Community and Housing,SEVACARE,72030-74975,21-Jun-23,1780.35,0,180307,Older People Placements - East,321000              Social Community Care Supplies & Services - Adult,A,2023,3
950,Community and Housing,SEVACARE,72030-38267,21-Jun-23,1054.39,0,180307,Older People Placements - East,321000              Social Community Care Supplies & Services - Adult,A,2023,3
951,Community and Housing,SEVACARE,72030-68278,21-Jun-23,2938.45,0,180307,Learning Disabilities Placemnt,321000              Social Community Care Supplies & Services - Adult,A,2023,3
952,Community and Housing,SEVACARE,72030-72268,21-Jun-23,1348.23,0,180307,Learning Disabilities Placemnt,321000              Social Community Care Supplies & Services - Adult,A,2023,3
953,Community and Housing,SEVACARE,72030-614353,21-Jun-23,501.27,0,180307,Older People Placements - East,321000              Social Community Care Supplies & Services - Adult,A,2023,3
954,Community and Housing,SEVACARE,72030-871695,21-Jun-23,985.25,0,180307,Older People Placements - East,321000              Social Community Care Supplies & Services - Adult,A,2023,3
955,Community and Housing,SEVACARE,72030-503697,21-Jun-23,864.25,0,180307,Older People Placements - East,321000              Social Community Care Supplies & Services - Adult,A,2023,3
956,Community and Housing,SEVACARE,72030-932264,21-Jun-23,501.27,0,180307,Older People Placements - East,321000              Social Community Care Supplies & Services - Adult,A,2023,3
957,Community and Housing,SEVACARE,72030-533922,21-Jun-23,9340.8,0,180307,Older People Placements - East,321000              Social Community Care Supplies & Services - Adult,A,2023,3
958,Community and Housing,SEVACARE,72030-654036,21-Jun-23,622.26,0,180307,Older People Placements - East,321000              Social Community Care Supplies & Services - Adult,A,2023,3
959,Community and Housing,SEVACARE,72030BLOCK,21-Jun-23,1733.2,0,180307,Older People Placements - East,321000              Social Community Care Supplies & Services - Adult,A,2023,3
960,Community and Housing,SEVACARE,11.06.23/4,23-Jun-23,1246.9,0,180307,Older People Placements - East,321000              Social Community Care Supplies & Services - Adult,A,2023,3
961,Community and Housing,SEVACARE,11.06.23/2,23-Jun-23,810.42,0,180307,Older People Placements - East,321000              Social Community Care Supplies & Services - Adult,A,2023,3
962,Community and Housing,SEVACARE,11.06.23/9,23-Jun-23,1105.64,0,180307,Older People Placements - East,321000              Social Community Care Supplies & Services - Adult,A,2023,3
963,Community and Housing,SEVACARE,11.06.23/5,23-Jun-23,1272.58,0,180307,Older People Placements - East,321000              Social Community Care Supplies & Services - Adult,A,2023,3
964,Community and Housing,SEVACARE,11.06.23/3,23-Jun-23,753.83,0,180307,Older People Placements - East,321000              Social Community Care Supplies & Services - Adult,A,2023,3
965,Capital,NETWORK SOLUTIONS INC,LBM246,22-Jun-23,4436.4,739.4,180382,Planned Replacement Programme,270000              Information Communication Technology,A,2023,3
966,Environment and Regeneration,NETWORK SOLUTIONS INC,LBM249,29-Jun-23,2400,400,180382,EDS2,270000              Information Communication Technology,A,2023,3
967,Capital,NETWORK SOLUTIONS INC,LBM247,22-Jun-23,1712.4,285.4,180382,Civic Centre,270000              Information Communication Technology,A,2023,3
968,Community and Housing,REDACTED PERSONAL DATA,979863,21-Jun-23,1803.16,0,180395,Older People Placements - East,DIRECT PAYMENTS,R,2023,3
969,"Children, Schools and Family",BURNTWOOD SCHOOL,BTSI59,05-Jun-23,31351.38,0,180406,Non-Delegated Statements,170000              Education,A,2023,3
970,"Children, Schools and Family",RESTORE PLC,1368879,19-Jun-23,878.82,146.47,180441,Head of CSC & Youth Inclusion,190000              Facilities & Management Services,A,2023,3
971,Corporate Services,RESTORE PLC,1370576,19-Jun-23,654.37,109.06,180441,Legal Shared Service,190000              Facilities & Management Services,A,2023,3
972,"Children, Schools and Family",RESTORE PLC,1370574,03-Jul-23,607.02,101.17,180441,Fostering Recruit/Assessment,190000              Facilities & Management Services,A,2023,3
973,Community and Housing,REDACTED PERSONAL DATA,979978,21-Jun-23,1320.52,0,180447,Older People Placements - East,DIRECT PAYMENTS,R,2023,3
974,Community and Housing,REDACTED PERSONAL DATA,979818,21-Jun-23,500.96,0,180478,Phys/Sens Placements - East,DIRECT PAYMENTS,R,2023,3
975,"Children, Schools and Family",REDACTED PERSONAL DATA,973496,02-Jun-23,637.31,0,180579,UASC LAC Under 18,321100              Social Community Care Supplies & Services - Children,R,2023,3
976,"Children, Schools and Family",REDACTED PERSONAL DATA,973525,02-Jun-23,630.35,0,180579,Placements Under 18,321100              Social Community Care Supplies & Services - Children,R,2023,3
977,"Children, Schools and Family",REDACTED PERSONAL DATA,976944,09-Jun-23,548.09,0,180579,UASC LAC Under 18,321100              Social Community Care Supplies & Services - Children,R,2023,3
978,"Children, Schools and Family",REDACTED PERSONAL DATA,976972,09-Jun-23,548.09,0,180579,Placements Under 18,321100              Social Community Care Supplies & Services - Children,R,2023,3
979,"Children, Schools and Family",REDACTED PERSONAL DATA,979492,16-Jun-23,548.09,0,180579,UASC LAC Under 18,321100              Social Community Care Supplies & Services - Children,R,2023,3
980,"Children, Schools and Family",REDACTED PERSONAL DATA,979519,16-Jun-23,548.09,0,180579,Placements Under 18,321100              Social Community Care Supplies & Services - Children,R,2023,3
981,"Children, Schools and Family",REDACTED PERSONAL DATA,982506,23-Jun-23,548.09,0,180579,UASC LAC Under 18,321100              Social Community Care Supplies & Services - Children,R,2023,3
982,"Children, Schools and Family",REDACTED PERSONAL DATA,982533,23-Jun-23,548.09,0,180579,Placements Under 18,321100              Social Community Care Supplies & Services - Children,R,2023,3
983,"Children, Schools and Family",REDACTED PERSONAL DATA,984037,30-Jun-23,548.09,0,180579,UASC LAC Under 18,321100              Social Community Care Supplies & Services - Children,R,2023,3
984,"Children, Schools and Family",REDACTED PERSONAL DATA,984063,30-Jun-23,548.09,0,180579,Placements Under 18,321100              Social Community Care Supplies & Services - Children,R,2023,3
985,Unassigned,LOVE WIMBLEDON LTD BUS.IMP.DIS,5016,29-Jun-23,162012.38,27002.06,180802,Corporate Services,200000              Financial Services,A,2023,3
986,Community and Housing,REDACTED PERSONAL DATA,979661,21-Jun-23,763.68,0,180804,Learning Disabilities Placemnt,DIRECT PAYMENTS,R,2023,3
987,"Children, Schools and Family",FIVE RIVERS CHILD CARE,103930,23-Jun-23,6421.43,0,180823,Placements Under 18,360000              Passenger Transport                                                                       Confirmed,A,2023,3
988,Community and Housing,REDACTED PERSONAL DATA,979757,21-Jun-23,1913.16,0,180866,Phys/Sens Placements - East,DIRECT PAYMENTS,R,2023,3
989,Community and Housing,REDACTED PERSONAL DATA,980965,22-Jun-23,1701.92,0,180889,Older People Placements - East,DIRECT PAYMENTS,R,2023,3
990,Community and Housing,SENAD ECCLESBOURNE LODGE,975302,07-Jun-23,9810.88,0,180904,Learning Disabilities Placemnt,321017              Nursing & Residential Care Homes,A,2023,3
991,Community and Housing,REDACTED PERSONAL DATA,979973,21-Jun-23,3595.13,0,180999,Older People Placements - East,DIRECT PAYMENTS,R,2023,3
992,Environment and Regeneration,PREMIER MINICAB SER. UK LTD,68076,12-Jun-23,5190,865,181053,Passenger Transport,360000              Passenger Transport,A,2023,3
993,Environment and Regeneration,PREMIER MINICAB SER. UK LTD,68414,12-Jun-23,3120,520,181053,Passenger Transport,360000              Passenger Transport,A,2023,3
994,Environment and Regeneration,PREMIER MINICAB SER. UK LTD,68267,12-Jun-23,3780,630,181053,Passenger Transport,360000              Passenger Transport,A,2023,3
995,Environment and Regeneration,PREMIER MINICAB SER. UK LTD,69204,12-Jun-23,1440,240,181053,Passenger Transport,360000              Passenger Transport,A,2023,3
996,Environment and Regeneration,PREMIER MINICAB SER. UK LTD,68798,12-Jun-23,1980,330,181053,Passenger Transport,360000              Passenger Transport,A,2023,3
997,Environment and Regeneration,PREMIER MINICAB SER. UK LTD,70075,19-Jun-23,2490,415,181053,Passenger Transport,360000              Passenger Transport,A,2023,3
998,Environment and Regeneration,PREMIER MINICAB SER. UK LTD,70593,03-Jul-23,2340,390,181053,Passenger Transport,360000              Passenger Transport,A,2023,3
999,Environment and Regeneration,PREMIER MINICAB SER. UK LTD,69952,19-Jun-23,2370,395,181053,Passenger Transport,360000              Passenger Transport,A,2023,3
1000,Environment and Regeneration,PREMIER MINICAB SER. UK LTD,69684,19-Jun-23,1440,240,181053,Passenger Transport,360000              Passenger Transport,A,2023,3
1001,Environment and Regeneration,PREMIER MINICAB SER. UK LTD,69811,19-Jun-23,1560,260,181053,Passenger Transport,360000              Passenger Transport,A,2023,3
1002,Corporate Services,PANACEA SOFTWARE LTD,INV1565,23-Jun-23,18552,3092,181095,Marketing & Communication,190000              Facilities & Management Services,A,2023,3
1003,Community and Housing,REDACTED PERSONAL DATA,979705,21-Jun-23,2396.48,0,181129,Older People Placements - East,DIRECT PAYMENTS,R,2023,3
1004,Community and Housing,Community Equipment Services,9100000742,15-Jun-23,630,105,181238,Pooled Equipment,410000              Social Community Care Supplies & Services,A,2023,3
1005,Corporate Services,REDACTED PERSONAL DATA,1710,14-Jun-23,2160,360,181367,SLLP - Disbursements,280000              Legal Services                                                                            Confirmed,R,2023,3
1006,Community and Housing,REDACTED PERSONAL DATA,979642,21-Jun-23,1400.08,0,181418,Older People Placements - East,DIRECT PAYMENTS,R,2023,3
1007,"Children, Schools and Family",Moor House School and College,INV11631,12-Jun-23,18459.67,0,181592,SEN Residential (DSG),170000              Education,A,2023,3
1008,"Children, Schools and Family",KIKI'S CHILDREN'S CLINIC,16120,19-Jun-23,570,0,181849,Non-Delegated Statements,310000              Healthcare                                                                                Confirmed,A,2023,3
1009,"Children, Schools and Family",Dicky Birds Nurseries Ltd - Pelham Road,P1 23 SENDIF,26-Jun-23,1404,0,181874,EARLY YEARS NURSERY GRANTS,200000              Financial Services,A,2023,3
1010,"Children, Schools and Family",Dicky Birds Nurseries Ltd - Pelham Road,P1 23 HEADCOUNT,27-Jun-23,4446.72,0,181874,EARLY YEARS NURSERY GRANTS,200000              Financial Services,A,2023,3
1011,"Children, Schools and Family",LOVE LANE DAY NURSERY,P1 23 HEADCOUNT,27-Jun-23,10923.12,0,181933,EARLY YEARS NURSERY GRANTS,200000              Financial Services,A,2023,3
1012,Environment and Regeneration,METIS CONSULTANTS LIMITED,4741,22-Jun-23,3904,650.67,181960,Highways Maintenance,150000              Consultancy,A,2023,3
1013,Environment and Regeneration,METIS CONSULTANTS LIMITED,4745,22-Jun-23,3600,600,181960,Highways Maintenance,150000              Consultancy,A,2023,3
1014,Corporate Services,SHARPE PRITCHARD SOLICITORS,100000885,01-Jun-23,818.4,136.4,182165,SLLP - Disbursements,280000              Legal Services                                                                            Confirmed,A,2023,3
1015,Corporate Services,SHARPE PRITCHARD SOLICITORS,100001527,01-Jun-23,7660.8,1276.8,182165,SLLP - Disbursements,280000              Legal Services                                                                            Confirmed,A,2023,3
1016,Unassigned,SHARPE PRITCHARD SOLICITORS,100000883,19-Jun-23,1385.8,0,182165,Corporate Accountancy,280000              Legal Services                                                                            Confirmed,A,2023,3
1017,Corporate Services,SHARPE PRITCHARD SOLICITORS,100002050,28-Jun-23,2809.2,468.2,182165,SLLP - Disbursements,280000              Legal Services                                                                            Confirmed,A,2023,3
1018,Community and Housing,REDACTED PERSONAL DATA,RNWL 8 SHELLEY,07-Jun-23,2000,0,182235,Homelessness Prevention,321000              Social Community Care Supplies & Services - Adult,R,2023,3
1019,Community and Housing,REDACTED PERSONAL DATA,RNWL 8SHELLEYCRT,12-Jun-23,2000,0,182235,Homelessness Prevention,321000              Social Community Care Supplies & Services - Adult,R,2023,3
1020,Corporate Services,REDACTED PERSONAL DATA,1745/JN,22-Jun-23,1050,175,182247,SLLP - Disbursements,280000              Legal Services                                                                            Confirmed,R,2023,3
1021,Corporate Services,REDACTED PERSONAL DATA,1746/JN,22-Jun-23,1050,175,182247,SLLP - Disbursements,280000              Legal Services                                                                            Confirmed,R,2023,3
1022,Community and Housing,REDACTED PERSONAL DATA,979796,21-Jun-23,518.21,0,182334,Learning Disabilities Placemnt,DIRECT PAYMENTS,R,2023,3
1023,Corporate Services,ERNST AND YOUNG LLP,GB01G000415052,20-Jun-23,166166.4,27694.4,182340,Corporate Accountancy,200000              Financial Services,A,2023,3
1024,Community and Housing,REDACTED PERSONAL DATA,979648,21-Jun-23,4454.8,0,182348,Older People Placements - East,DIRECT PAYMENTS,R,2023,3
1025,Corporate Services,BIRKIN CLEANING SERVICES LTD,29626,02-Jun-23,2213.82,368.97,182414,Corporate Contracts - FM,130000              Cleaning & Janitorial,A,2023,3
1026,Corporate Services,BIRKIN CLEANING SERVICES LTD,29630,02-Jun-23,7869.83,1311.64,182414,Corporate Contracts - FM,130000              Cleaning & Janitorial,A,2023,3
1027,Community and Housing,BIRKIN CLEANING SERVICES LTD,29632,01-Jun-23,966.26,161.04,182414,Wimbledon Library,130000              Cleaning & Janitorial,A,2023,3
1028,"Children, Schools and Family",BIRKIN CLEANING SERVICES LTD,29636,01-Jun-23,683.54,113.92,182414,Merton Youth Centres.,130000              Cleaning & Janitorial,A,2023,3
1029,Environment and Regeneration,BIRKIN CLEANING SERVICES LTD,30950,26-Jun-23,3237.44,539.57,182414,Vestry Hall,130000              Cleaning & Janitorial,A,2023,3
1030,Corporate Services,BIRKIN CLEANING SERVICES LTD,22227,14-Jun-23,842.4,140.4,182414,Civic Centre,130000              Cleaning & Janitorial,A,2023,3
1031,"Children, Schools and Family",REDACTED PERSONAL DATA,980281,20-Jun-23,811.4,0,182494,Child Disabilities - Placement,DIRECT PAYMENTS,R,2023,3
1032,"Children, Schools and Family",REDACTED PERSONAL DATA,973474,02-Jun-23,663.29,0,182558,UASC LAC Under 18,321100              Social Community Care Supplies & Services - Children,R,2023,3
1033,Community and Housing,REDACTED PERSONAL DATA,979814,21-Jun-23,4839.9,0,182584,Phys/Sens Placements - East,DIRECT PAYMENTS,R,2023,3
1034,"Children, Schools and Family",REDACTED PERSONAL DATA,973454,02-Jun-23,637.31,0,182648,UASC LAC Under 18,321100              Social Community Care Supplies & Services - Children,R,2023,3
1035,"Children, Schools and Family",REDACTED PERSONAL DATA,973513,02-Jun-23,637.31,0,182648,UASC LAC Under 18,321100              Social Community Care Supplies & Services - Children,R,2023,3
1036,"Children, Schools and Family",REDACTED PERSONAL DATA,976907,09-Jun-23,548.09,0,182648,UASC LAC Under 18,321100              Social Community Care Supplies & Services - Children,R,2023,3
1037,"Children, Schools and Family",REDACTED PERSONAL DATA,976960,09-Jun-23,548.09,0,182648,UASC LAC Under 18,321100              Social Community Care Supplies & Services - Children,R,2023,3
1038,"Children, Schools and Family",REDACTED PERSONAL DATA,979453,16-Jun-23,548.09,0,182648,UASC LAC Under 18,321100              Social Community Care Supplies & Services - Children,R,2023,3
1039,"Children, Schools and Family",REDACTED PERSONAL DATA,979507,16-Jun-23,548.09,0,182648,UASC LAC Under 18,321100              Social Community Care Supplies & Services - Children,R,2023,3
1040,"Children, Schools and Family",REDACTED PERSONAL DATA,982468,23-Jun-23,548.09,0,182648,UASC LAC Under 18,321100              Social Community Care Supplies & Services - Children,R,2023,3
1041,"Children, Schools and Family",REDACTED PERSONAL DATA,982521,23-Jun-23,548.09,0,182648,UASC LAC Under 18,321100              Social Community Care Supplies & Services - Children,R,2023,3
1042,"Children, Schools and Family",REDACTED PERSONAL DATA,983999,30-Jun-23,548.09,0,182648,UASC LAC Under 18,321100              Social Community Care Supplies & Services - Children,R,2023,3
1043,"Children, Schools and Family",REDACTED PERSONAL DATA,984051,30-Jun-23,548.09,0,182648,UASC LAC Under 18,321100              Social Community Care Supplies & Services - Children,R,2023,3
1044,"Children, Schools and Family",KINGSWOOD DAYCARE NURSERY LTD,P1 23 SENDIF,26-Jun-23,504,0,182740,EARLY YEARS NURSERY GRANTS,200000              Financial Services,A,2023,3
1045,"Children, Schools and Family",KINGSWOOD DAYCARE NURSERY LTD,P1 23 HEADCOUNT,27-Jun-23,7414.2,0,182740,EARLY YEARS NURSERY GRANTS,200000              Financial Services,A,2023,3
1046,Community and Housing,REDACTED PERSONAL DATA,981006,22-Jun-23,5148,0,182894,Learning Disabilities Placemnt,DIRECT PAYMENTS,R,2023,3
1047,Corporate Services,PELLINGS LLP,SI9035299,13-Jun-23,1200,200,182945,SLLP - Disbursements,280000              Legal Services                                                                            Confirmed,A,2023,3
1048,Corporate Services,PELLINGS LLP,SI9035204,05-Jun-23,1200,200,182945,SLLP - Disbursements,280000              Legal Services                                                                            Confirmed,A,2023,3
1049,Corporate Services,PELLINGS LLP,SI9035210,09-Jun-23,1200,200,182945,SLLP - Disbursements,280000              Legal Services                                                                            Confirmed,A,2023,3
1050,Corporate Services,PELLINGS LLP,SI9035460,19-Jun-23,1200,200,182945,SLLP - Disbursements,280000              Legal Services                                                                            Confirmed,A,2023,3
1051,Corporate Services,PELLINGS LLP,SI9035449,19-Jun-23,1200,200,182945,SLLP - Disbursements,280000              Legal Services                                                                            Confirmed,A,2023,3
1052,Corporate Services,REDACTED PERSONAL DATA,30163461,08-Jun-23,36786,6131,183158,Chief Executive,200000              Financial Services                                                                        Confirmed,R,2023,3
1053,Community and Housing,REDACTED PERSONAL DATA,979762,21-Jun-23,4038,0,183167,Older People Placements - East,DIRECT PAYMENTS,R,2023,3
1054,Community and Housing,ST ANTONYS CARE HOME,975358,07-Jun-23,3571.43,0,183206,Older People Placements - East,321017              Nursing & Residential Care Homes,A,2023,3
1055,Community and Housing,ST ANTONYS CARE HOME,975434,07-Jun-23,3840,0,183206,Older People Placements - East,321017              Nursing & Residential Care Homes,A,2023,3
1056,Community and Housing,ST ANTONYS CARE HOME,975462,07-Jun-23,3840,0,183206,Older People Placements - East,321017              Nursing & Residential Care Homes,A,2023,3
1057,Community and Housing,ST ANTONYS CARE HOME,975527,07-Jun-23,4000,0,183206,Older People Placements - East,321017              Nursing & Residential Care Homes,A,2023,3
1058,"Children, Schools and Family",REDACTED PERSONAL DATA,980318,20-Jun-23,509.12,0,183241, Childrens Short Breaks,CSF-DIRECT PAYMENTS,R,2023,3
1059,Unassigned,HARRIS ACADEMY MORDEN,SCHOOLS 2324/3 A,07-Jun-23,67009,0,183257,Schools,170000              Education,A,2023,3
1060,Community and Housing,REDACTED PERSONAL DATA,979768,21-Jun-23,1163.36,0,183460,Learning Disabilities Placemnt,DIRECT PAYMENTS,R,2023,3
1061,Community and Housing,REDACTED PERSONAL DATA,979823,21-Jun-23,986.44,0,183464,Older People Placements - East,DIRECT PAYMENTS,R,2023,3
1062,"Children, Schools and Family",WIMBLEDON DAY NURSERY 2,P1 23 HEADCOUNT,27-Jun-23,7901.28,0,183490,EARLY YEARS NURSERY GRANTS,200000              Financial Services,A,2023,3
1063,Community and Housing,CREST MANOR LTD,CM0814,07-Jun-23,5742.75,0,183548,Bed & Breakfast - accomm,250000              Housing Management,A,2023,3
1064,"Children, Schools and Family",REDACTED PERSONAL DATA,980337,20-Jun-23,1710,0,183558,Child Disabilities - Placement,CSF-DIRECT PAYMENTS,R,2023,3
1065,Community and Housing,Kent House Care Home,975576,07-Jun-23,2884,0,183560,Older People Placements - East,321017              Nursing & Residential Care Homes,A,2023,3
1066,Community and Housing,REDACTED PERSONAL DATA,979730,21-Jun-23,540.96,0,183690,Older People Placements - East,DIRECT PAYMENTS,R,2023,3
1067,Community and Housing,REDACTED PERSONAL DATA,981008,22-Jun-23,679.2,0,184011,Older People Placements - East,DIRECT PAYMENTS,R,2023,3
1068,Community and Housing,NHS MERTON CCG,975361,19-Jun-23,2320,0,184012,Mental Health Placements,310000              Healthcare,A,2023,3
1069,Community and Housing,NHS MERTON CCG,975447,19-Jun-23,1662.08,0,184012,Mental Health Placements,310000              Healthcare,A,2023,3
1070,Community and Housing,NHS MERTON CCG,975541,19-Jun-23,3504.56,0,184012,Mental Health Placements,310000              Healthcare,A,2023,3
1071,Community and Housing,NHS MERTON CCG,975579,19-Jun-23,5935.12,0,184012,Mental Health Placements,310000              Healthcare,A,2023,3
1072,"Children, Schools and Family",LEXTOX,289577,12-Jun-23,652.8,108.8,184053,Family Supp SafeGuard - Place,280000              Legal Services,A,2023,3
1073,"Children, Schools and Family",LEXTOX,292900,14-Jun-23,961.2,160.2,184053,Family Supp SafeGuard - Place,280000              Legal Services,A,2023,3
1074,"Children, Schools and Family",LEXTOX,294308,29-Jun-23,643.2,107.2,184053,Family Supp SafeGuard - Place,280000              Legal Services,A,2023,3
1075,Corporate Services,LEXTOX,294425,30-Jun-23,508.38,84.73,184053,SLLP - Disbursements,280000              Legal Services,A,2023,3
1076,Community and Housing,REDACTED PERSONAL DATA,979872,21-Jun-23,2530.08,0,184175,Older People Placements - East,DIRECT PAYMENTS,R,2023,3
1077,Community and Housing,CROWNWISE LTD,MP/167/113,15-Jun-23,1160,0,184360,Mental Health Placements,321000              Social Community Care Supplies & Services - Adult,A,2023,3
1078,Community and Housing,CROWNWISE LTD,983944,30-Jun-23,5696.04,0,184360,Mental Health Placements,321000              Social Community Care Supplies & Services - Adult,A,2023,3
1079,Community and Housing,MARIAN HOUSE NURSING HOME,975350,07-Jun-23,2834.56,0,184385,Older People Placements - East,321017              Nursing & Residential Care Homes,A,2023,3
1080,"Children, Schools and Family",REDACTED PERSONAL DATA,973570,02-Jun-23,582.17,0,184386,Placements Under 18,321100              Social Community Care Supplies & Services - Children,R,2023,3
1081,"Children, Schools and Family",REDACTED PERSONAL DATA,977013,09-Jun-23,582.17,0,184386,Placements Under 18,321100              Social Community Care Supplies & Services - Children,R,2023,3
1082,"Children, Schools and Family",REDACTED PERSONAL DATA,979562,16-Jun-23,582.17,0,184386,Placements Under 18,321100              Social Community Care Supplies & Services - Children,R,2023,3
1083,"Children, Schools and Family",REDACTED PERSONAL DATA,982575,23-Jun-23,582.17,0,184386,Placements Under 18,321100              Social Community Care Supplies & Services - Children,R,2023,3
1084,"Children, Schools and Family",REDACTED PERSONAL DATA,984102,30-Jun-23,582.17,0,184386,Placements Under 18,321100              Social Community Care Supplies & Services - Children,R,2023,3
1085,Community and Housing,REDACTED PERSONAL DATA,979893,21-Jun-23,4087.56,0,184580,Older People Placements - East,DIRECT PAYMENTS,R,2023,3
1086,"Children, Schools and Family",Carew Academy,D1101105313,13-Jun-23,5158.62,0,184603,Non-Delegated Statements,170000              Education,A,2023,3
1087,"Children, Schools and Family",Carew Academy,DI101105161-BAL,14-Jun-23,9366.67,0,184603,Non-Delegated Statements,170000              Education,A,2023,3
1088,Community and Housing,REDACTED PERSONAL DATA,979868,21-Jun-23,726.92,0,184608,Older People Placements - East,DIRECT PAYMENTS,R,2023,3
1089,"Children, Schools and Family",FUNKY OWLS NURSERY,P1 23 HEADCOUNT,27-Jun-23,5784.84,0,184637,EARLY YEARS NURSERY GRANTS,200000              Financial Services,A,2023,3
1090,"Children, Schools and Family",Bright Horizons Wimbledon House Nursery,P1 23 SENDIF,26-Jun-23,1354.39,0,184692,EARLY YEARS NURSERY GRANTS,170000              Education,A,2023,3
1091,"Children, Schools and Family",Bright Horizons Wimbledon House Nursery,P1 23 HEADCOUNT,27-Jun-23,41608.33,0,184692,EARLY YEARS NURSERY GRANTS,170000              Education,A,2023,3
1092,Corporate Services,SEARCHFLOW LTD,INV9364088,29-Jun-23,638.69,106.45,184757,SLLP - Disbursements,190000              Facilities & Management Services,A,2023,3
1093,Community and Housing,SK HOUSING LTD,6891,07-Jun-23,24164.4,4027.4,184774,Bed & Breakfast - accomm,321000              Social Community Care Supplies & Services - Adult,A,2023,3
1094,Community and Housing,CROHAM PLACE,975296,07-Jun-23,9007.52,0,184807,Learning Disabilities Placemnt,321017              Nursing & Residential Care Homes,A,2023,3
1095,Community and Housing,CROHAM PLACE,975450,07-Jun-23,9400,0,184807,Mental Health Placements,321017              Nursing & Residential Care Homes,A,2023,3
1096,Community and Housing,CROHAM PLACE,975451,07-Jun-23,9400,0,184807,Learning Disabilities Placemnt,321017              Nursing & Residential Care Homes,A,2023,3
1097,Community and Housing,CROHAM PLACE,975489,07-Jun-23,9400,0,184807,Mental Health Placements,321017              Nursing & Residential Care Homes,A,2023,3
1098,Community and Housing,REDACTED PERSONAL DATA,980009,21-Jun-23,860.56,0,184819,Older People Placements - East,DIRECT PAYMENTS,R,2023,3
1099,"Children, Schools and Family",HIGHER LEVEL CARE (HLC) LTD,14901,27-Jun-23,3764.02,0,184822,UASC Care Leavers Over 18,321100              Social Community Care Supplies & Services - Children Residential,A,2023,3
1100,"Children, Schools and Family",HIGHER LEVEL CARE (HLC) LTD,14905,27-Jun-23,3764.33,0,184822,UASC LAC Under 18,321100              Social Community Care Supplies & Services - Children Residential,A,2023,3
1101,"Children, Schools and Family",HIGHER LEVEL CARE (HLC) LTD,14904,27-Jun-23,1992.86,0,184822,UASC Care Leavers Over 18,321100              Social Community Care Supplies & Services - Children Residential,A,2023,3
1102,"Children, Schools and Family",HIGHER LEVEL CARE (HLC) LTD,14903,27-Jun-23,2435.67,0,184822,Placements Over 18,321100              Social Community Care Supplies & Services - Children Residential,A,2023,3
1103,Community and Housing,QUARTZ PROPERTIES,LBM116,07-Jun-23,42600.39,0,184919,Bed & Breakfast - accomm,321000              Social Community Care Supplies & Services - Adult,A,2023,3
1104,Community and Housing,REDACTED PERSONAL DATA,979906,21-Jun-23,572.76,0,184950,Phys/Sens Placements - East,DIRECT PAYMENTS,R,2023,3
1105,Community and Housing,HOLDSWORTHS,544477,19-Jun-23,603.83,6.02,185001,Eastway Day Centre,110000              Catering,A,2023,3
1106,Community and Housing,LONDON CARE LTD,M70367,15-Jun-23,932.2,0,185026,Learning Disabilities Placemnt,321000              Social Community Care Supplies & Services - Adult,A,2023,3
1107,Community and Housing,LONDON CARE LTD,165219817,08-Jun-23,5474,0,185026,Older People Placements - East,321000              Social Community Care Supplies & Services - Adult,A,2023,3
1108,"Children, Schools and Family",BROWNE JACOBSON,IN-000145752,28-Jun-23,2002.2,333.7,185063, PFI Unitary Charges,280000              Legal Services,A,2023,3
1109,Community and Housing,CHELSEA AND WESTMINSTER HOSPITAL,N0054388,28-Jun-23,6342.86,0,185106,PH - Sexual Health,310000              Healthcare,A,2023,3
1110,"Children, Schools and Family",THE CREATIVE TEAM,9015.23,14-Jun-23,4098,683,185173, Teenage Pregnancy,190000              Facilities & Management Services,A,2023,3
1111,Corporate Services,NERCON LTD,179618,27-Jun-23,1056,176,185192,Corporate Contracts - FM,130000              Cleaning & Janitorial,A,2023,3
1112,Community and Housing,REDACTED PERSONAL DATA,979878,21-Jun-23,1178.16,0,185250,Older People Placements - East,DIRECT PAYMENTS,R,2023,3
1113,"Children, Schools and Family",ORCHARD HILL COLLEGE,DI2020101052,15-Jun-23,12617.88,0,185253,Non-Maintained Post 16 SEN,170000              Education,A,2023,3
1114,"Children, Schools and Family",ORCHARD HILL COLLEGE,DI2020101046,16-Jun-23,17649.8,0,185253,Non-Maintained Post 16 SEN,170000              Education,A,2023,3
1115,"Children, Schools and Family",ORCHARD HILL COLLEGE,DI203A101142,23-Jun-23,1321.29,0,185253,Non-Maintained Post 16 SEN,170000              Education,A,2023,3
1116,Community and Housing,ROOMS AND  STUDIOS MANAGEMENT,1268,06-Jun-23,138471.35,23078.56,185280,Bed & Breakfast - accomm,321000              Social Community Care Supplies & Services - Adult,A,2023,3
1117,Community and Housing,ROOMS AND  STUDIOS MANAGEMENT,1267,07-Jun-23,3834,639,185280,Bed & Breakfast - accomm,321000              Social Community Care Supplies & Services - Adult,A,2023,3
1118,Community and Housing,REDACTED PERSONAL DATA,979678,21-Jun-23,5575.42,0,185353,Mental Health Placements,DIRECT PAYMENTS,R,2023,3
1119,Corporate Services,INFORM CPI LTD,AL65730,08-Jun-23,900,150,185356,Local Taxation Services,270000              Information Communication Technology,A,2023,3
1120,Corporate Services,REDACTED PERSONAL DATA,INV/JDO77,23-Jun-23,8850,1475,185360,SLLP - Disbursements,280000              Legal Services                                                                            Confirmed,R,2023,3
1121,Corporate Services,REDACTED PERSONAL DATA,INV/JDO85,28-Jun-23,1200,200,185360,SLLP - Disbursements,280000              Legal Services                                                                            Confirmed,R,2023,3
1122,Corporate Services,REDACTED PERSONAL DATA,INV/JDO84,28-Jun-23,2160,360,185360,SLLP - Disbursements,280000              Legal Services                                                                            Confirmed,R,2023,3
1123,Community and Housing,WISDOM SUPPORT SERVICES LTD,12459,15-Jun-23,1701.52,0,185366,Older People Placements - East,321000              Social Community Care Supplies & Services - Adult,A,2023,3
1124,Community and Housing,WISDOM SUPPORT SERVICES LTD,12479,26-Jun-23,1231.8,0,185366,Older People Placements - East,321000              Social Community Care Supplies & Services - Adult,A,2023,3
1125,Community and Housing,WISDOM SUPPORT SERVICES LTD,12480,26-Jun-23,2261.58,0,185366,Older People Placements - East,321000              Social Community Care Supplies & Services - Adult,A,2023,3
1126,Community and Housing,WISDOM SUPPORT SERVICES LTD,12477,26-Jun-23,4500.99,0,185366,Learning Disabilities Placemnt,321000              Social Community Care Supplies & Services - Adult,A,2023,3
1127,Community and Housing,WISDOM SUPPORT SERVICES LTD,12478,26-Jun-23,1313.92,0,185366,Learning Disabilities Placemnt,321000              Social Community Care Supplies & Services - Adult,A,2023,3
1128,"Children, Schools and Family",Dicky Birds Nurseries - Pepys Road,P1 23 HEADCOUNT,27-Jun-23,4396.68,0,185387,EARLY YEARS NURSERY GRANTS,200000              Financial Services,A,2023,3
1129,Corporate Services,Carter Brown The Expert Service Ltd,TI048682,14-Jun-23,2339.4,389.9,185403,SLLP - Disbursements,280000              Legal Services                                                                            Confirmed,A,2023,3
1130,Corporate Services,Carter Brown The Expert Service Ltd,TI049015,27-Jun-23,2286.6,381.1,185403,SLLP - Disbursements,280000              Legal Services                                                                            Confirmed,A,2023,3
1131,Corporate Services,Carter Brown The Expert Service Ltd,TI049083,28-Jun-23,2031.6,338.6,185403,SLLP - Disbursements,280000              Legal Services                                                                            Confirmed,A,2023,3
1132,Corporate Services,Carter Brown The Expert Service Ltd,TI048915,23-Jun-23,694.33,115.72,185403,SLLP - Disbursements,280000              Legal Services                                                                            Confirmed,A,2023,3
1133,Corporate Services,Carter Brown The Expert Service Ltd,TI048543,15-Jun-23,795.05,132.51,185403,SLLP - Disbursements,280000              Legal Services                                                                            Confirmed,A,2023,3
1134,Community and Housing,THORNBECK COLLEGE,975414,07-Jun-23,10320.52,0,185470,Learning Disabilities Placemnt,321100              Social Community Care Supplies & Services - Children,A,2023,3
1135,Community and Housing,REDACTED PERSONAL DATA,979702,21-Jun-23,636.4,0,185557,Learning Disabilities Placemnt,DIRECT PAYMENTS,R,2023,3
1136,Corporate Services,REDACTED PERSONAL DATA,1704,23-Jun-23,1440,240,185649,SLLP - Disbursements,280000              Legal Services,R,2023,3
1137,Community and Housing,REDACTED PERSONAL DATA,979959,21-Jun-23,1036.68,0,185653,Older People Placements - East,DIRECT PAYMENTS,R,2023,3
1138,Community and Housing,REDACTED PERSONAL DATA,979902,21-Jun-23,615.48,0,185709,Learning Disabilities Placemnt,DIRECT PAYMENTS,R,2023,3
1139,Unassigned,BENEDICT PRIMARY ACADEMY,SCHOOLS 2324/3 A,07-Jun-23,16016.41,0,185720,Schools,170000              Education,A,2023,3
1140,Community and Housing,M K ACCOMMODATION,MK5821,12-Jun-23,650,0,185816,Bed & Breakfast - accomm,321000              Social Community Care Supplies & Services - Adult,A,2023,3
1141,Environment and Regeneration,MITCHAM TOWN COMMUNITY TRUST,234,30-Jun-23,1000,0,185878,HLF Canons,170000              Education,A,2023,3
1142,"Children, Schools and Family",THE COMPLETE WORKS LTD,TCW22/23-1785,16-Jun-23,7905,0,185891,Non-Delegated Statements,170000              Education                                                                                 Confirmed,A,2023,3
1143,Community and Housing,REDACTED PERSONAL DATA,983677,28-Jun-23,626.42,0,185946,Mental Health Placements,321000              Social Community Care Supplies & Services - Adult,R,2023,3
1144,Community and Housing,E HOMES AND SHELTERS,EHSL1658,07-Jun-23,37751.78,0,185995,Bed & Breakfast - accomm,321000              Social Community Care Supplies & Services - Adult,A,2023,3
1145,"Children, Schools and Family",REDACTED PERSONAL DATA,980290,20-Jun-23,977.88,0,186027,Child Disabilities - Placement,CSF-DIRECT PAYMENTS,R,2023,3
1146,Community and Housing,REDACTED PERSONAL DATA,979976,21-Jun-23,1378.52,0,186071,Older People Placements - East,DIRECT PAYMENTS,R,2023,3
1147,Environment and Regeneration,LA (Local Authority) Support Ltd,SER-00043688INV,22-Jun-23,10035.9,1672.65,186193,PARK OPERATIONS,180000              Environmental Services,A,2023,3
1148,Environment and Regeneration,LA (Local Authority) Support Ltd,SER-00043451INV,22-Jun-23,18522,3087,186193,Waste Enforcement,180000              Environmental Services,A,2023,3
1149,Environment and Regeneration,LA (Local Authority) Support Ltd,SER-00044161INV,22-Jun-23,5300.84,883.47,186193,Waste Enforcement,180000              Environmental Services,A,2023,3
1150,"Children, Schools and Family",CARE O LINE,20758,01-Jun-23,6717.36,0,186615,Family Supp SafeGuard - Place,321100              Social Community Care Supplies & Services - Children,A,2023,3
1151,"Children, Schools and Family",COMPASS FOSTERING LONDON LTD,35173,05-Jun-23,3897.01,0,186716,UASC LAC Under 18,321100              Social Community Care Supplies & Services - Children,A,2023,3
1152,"Children, Schools and Family",OCTAVIA HOUSE SCHOOLS LTD,INV-0706,29-Jun-23,15000,0,186728,Non-Delegated Statements,170000              Education,A,2023,3
1153,"Children, Schools and Family",OCTAVIA HOUSE SCHOOLS LTD,INV-0705,29-Jun-23,15000,0,186728,Non-Delegated Statements,170000              Education,A,2023,3
1154,"Children, Schools and Family",REDACTED PERSONAL DATA,P1 23 HEADCOUNT,27-Jun-23,851.04,0,186745,EARLY YEARS NURSERY GRANTS,200000              Financial Services,R,2023,3
1155,Community and Housing,SUPREME HOMES LTD,975537,07-Jun-23,1956.8,0,186763,Mental Health Placements,321100              Social Community Care Supplies & Services - Children,A,2023,3
1156,Community and Housing,REDACTED PERSONAL DATA,979937,21-Jun-23,1336.44,0,186789,Phys/Sens Placements - East,DIRECT PAYMENTS,R,2023,3
1157,"Children, Schools and Family",YOUNG LONDON TODAY,INV-26354,14-Jun-23,4071.3,0,186890,Placements Under 18,321100              Social Community Care Supplies & Services - Children,A,2023,3
